Department Family,Entity,Date,Expense Type,Expense Area,Supplier,Transaction Number,Amount
Home Office,CRB - Criminal Records Bureau,11/11/2010,Public Private Partnership contract / agreement,CRB - Criminal Records Bureau,Capita Business Services Ltd,15154  13,"292,113.69"
Home Office,CRB - Criminal Records Bureau,12/11/2010,Police costs per check,CRB - Criminal Records Bureau,Bedfordshire Police,15151  1,"28,990.07"
Home Office,CRB - Criminal Records Bureau,12/11/2010,Police costs per check,CRB - Criminal Records Bureau,Cheshire Police Authority,15151  2,"61,690.90"
Home Office,CRB - Criminal Records Bureau,12/11/2010,Police costs per check,CRB - Criminal Records Bureau,Cleveland Police Authority,15151  4,"25,959.21"
Home Office,CRB - Criminal Records Bureau,12/11/2010,Police costs per check,CRB - Criminal Records Bureau,Cumbria Police Authority Main,15151  5,"29,888.99"
Home Office,CRB - Criminal Records Bureau,12/11/2010,Police costs per check,CRB - Criminal Records Bureau,Devon & Cornwall Police Author,15151  6,"37,875.95"
Home Office,CRB - Criminal Records Bureau,12/11/2010,Police costs per check,CRB - Criminal Records Bureau,Greater Manchester Police,15151  10,"192,533.22"
Home Office,CRB - Criminal Records Bureau,12/11/2010,Police costs per check,CRB - Criminal Records Bureau,Gwent Police Authority,15151  11,"29,127.40"
Home Office,CRB - Criminal Records Bureau,12/11/2010,Police costs per check,CRB - Criminal Records Bureau,Hampshire Police Authority,15151  12,"73,979.13"
Home Office,CRB - Criminal Records Bureau,12/11/2010,Police costs per check,CRB - Criminal Records Bureau,Humberside Police Authority,15151  15,"83,456.61"
Home Office,CRB - Criminal Records Bureau,12/11/2010,Police costs per check,CRB - Criminal Records Bureau,Merseyside Police Authority,15151  17,"75,054.57"
Home Office,CRB - Criminal Records Bureau,12/11/2010,Police costs per check,CRB - Criminal Records Bureau,The Metropolitan Police,15151  18,"47,421.36"
Home Office,CRB - Criminal Records Bureau,12/11/2010,Police costs per check,CRB - Criminal Records Bureau,Northants Police Authority,15151  19,"35,940.19"
Home Office,CRB - Criminal Records Bureau,12/11/2010,Police costs per check,CRB - Criminal Records Bureau,Norfolk Police Authority,15151  20,"39,715.71"
Home Office,CRB - Criminal Records Bureau,12/11/2010,Police costs per check,CRB - Criminal Records Bureau,Nottinghamshire Police Authori,15151  21,"46,204.10"
Home Office,CRB - Criminal Records Bureau,12/11/2010,Police costs per check,CRB - Criminal Records Bureau,North Wales Police Funding Acc,15151  22,"42,507.21"
Home Office,CRB - Criminal Records Bureau,12/11/2010,Police costs per check,CRB - Criminal Records Bureau,North Yorkshire Police Authori,15151  23,"48,909.39"
Home Office,CRB - Criminal Records Bureau,12/11/2010,Police costs per check,CRB - Criminal Records Bureau,Disclosure Scotland,15151  26,"29,740.98"
Home Office,CRB - Criminal Records Bureau,12/11/2010,Police costs per check,CRB - Criminal Records Bureau,Avon & Somerset Police,15151  27,"65,981.43"
Home Office,CRB - Criminal Records Bureau,12/11/2010,Police costs per check,CRB - Criminal Records Bureau,South Yorkshire Police,15151  28,"41,392.97"
Home Office,CRB - Criminal Records Bureau,12/11/2010,Police costs per check,CRB - Criminal Records Bureau,Staffordshire Police Authority,15151  29,"35,180.43"
Home Office,CRB - Criminal Records Bureau,12/11/2010,Police costs per check,CRB - Criminal Records Bureau,Suffolk Police Authority,15151  30,"28,835.83"
Home Office,CRB - Criminal Records Bureau,12/11/2010,Police costs per check,CRB - Criminal Records Bureau,West Midlands Police,15151  33,"153,939.45"
Home Office,CRB - Criminal Records Bureau,15/11/2010,Police costs per check,CRB - Criminal Records Bureau,The Metropolitan Police,15167  3,"679,281.74"
Home Office,CRB - Criminal Records Bureau,16/11/2010,Police costs per check,CRB - Criminal Records Bureau,Cambridgeshire Police Auth,15175  1,"61,055.52"
Home Office,CRB - Criminal Records Bureau,16/11/2010,Police costs per check,CRB - Criminal Records Bureau,Durham Police Authority,15175  4,"27,638.04"
Home Office,CRB - Criminal Records Bureau,16/11/2010,Police costs per check,CRB - Criminal Records Bureau,Greater Manchester Police,15175  7,"102,912.46"
Home Office,CRB - Criminal Records Bureau,16/11/2010,Police costs per check,CRB - Criminal Records Bureau,KENT CONSTABULARY,15175  12,"71,924.54"
Home Office,CRB - Criminal Records Bureau,16/11/2010,Police costs per check,CRB - Criminal Records Bureau,Leicestershire Police Authorit,15175  14,"60,258.65"
Home Office,CRB - Criminal Records Bureau,16/11/2010,Police costs per check,CRB - Criminal Records Bureau,Surrey Police Authority,15175  20,"51,063.48"
Home Office,CRB - Criminal Records Bureau,16/11/2010,Police costs per check,CRB - Criminal Records Bureau,West Mercia Police Fund,15175  23,"44,792.84"
Home Office,CRB - Criminal Records Bureau,18/11/2010,Police costs per check,CRB - Criminal Records Bureau,NPIA,15193  5,"181,585.53"
Home Office,CRB - Criminal Records Bureau,18/11/2010,Police costs per check,CRB - Criminal Records Bureau,Thames Valley Police Authority,15193  7,"227,586.02"
Home Office,CRB - Criminal Records Bureau,22/11/2010,Accommodation Rates,CRB - Criminal Records Bureau,Liverpool City Council,15202  3,"63,756.00"
Home Office,CRB - Criminal Records Bureau,30/11/2010,Police costs per check,CRB - Criminal Records Bureau,Hertfordshire Police Authority,15247  5,"60,110.89"
Home Office,CRB - Criminal Records Bureau,30/11/2010,Police costs per check,CRB - Criminal Records Bureau,Northumbria Police,15247  6,"44,215.95"
Home Office,CRB - Criminal Records Bureau,30/11/2010,Police costs per check,CRB - Criminal Records Bureau,South Wales Police,15247  8,"33,698.89"
Home Office,CRB - Criminal Records Bureau,30/11/2010,Police costs per check,CRB - Criminal Records Bureau,Sussex Police,15247  9,"33,570.78"
Home Office,CRB - Criminal Records Bureau,30/11/2010,Police costs per check,CRB - Criminal Records Bureau,West Yorkshire Police,15247  10,"83,459.99"
Home Office,CRB - Criminal Records Bureau,30/11/2010,Public Private Partnership contract / agreement,CRB - Criminal Records Bureau,Capita Business Services Ltd,15269 43,"13,210,577.09"
Home Office,Home Office,26/10/2010,Other Gov't Dept. -Request For Transfer,Communications,COI COMMUNICATIONS,1843102,"34,075.00"
Home Office,Home Office,05/11/2010,Published Products.Electronic publication & music,Communications,SAVVIS UK LTD,1825741,"31,224.19"
Home Office,Home Office,30/10/2010,Grant,CPG - Crime & Policing Group,NORTH YORKSHIRE & YORK PCT (G),1842398,"184,735.58"
Home Office,Home Office,01/11/2010,Grant,CPG - Crime & Policing Group,THE SUZY LAMPLUGH TRUST (G),1840646,"25,000.00"
Home Office,Home Office,01/11/2010,Grant,CPG - Crime & Policing Group,WELSH ASSEMBLY GOVERNMENT (G),1775357,"1,493,529.25"
Home Office,Home Office,02/11/2010,Grant,CPG - Crime & Policing Group,WEST MIDLANDS POLICE AUTHORITY 1 (G),1776364,"22,127,422.00"
Home Office,Home Office,02/11/2010,Grant,CPG - Crime & Policing Group,NEW WEST MERCIA POLICE AUTHORITY (G),1776361,"5,975,708.00"
Home Office,Home Office,02/11/2010,Grant,CPG - Crime & Policing Group,WARWICKSHIRE POLICE AUTHORITY 1 (G),1776359,"2,817,766.00"
Home Office,Home Office,02/11/2010,Grant,CPG - Crime & Policing Group,THAMES VALLEY POLICE (G),1776357,"12,593,917.00"
Home Office,Home Office,02/11/2010,Grant,CPG - Crime & Policing Group,SUSSEX POLICE AUTHORITY 1 (G),1776356,"8,620,882.00"
Home Office,Home Office,02/11/2010,Grant,CPG - Crime & Policing Group,SURREY POLICE AUTHORITY 1 (G),1776354,"5,754,318.00"
Home Office,Home Office,02/11/2010,Grant,CPG - Crime & Policing Group,SUFFOLK POLICE AUTHORITY (G),1776352,"3,646,757.00"
Home Office,Home Office,02/11/2010,Grant,CPG - Crime & Policing Group,STAFFORDSHIRE POLICE AUTHORITY (G),1776351,"5,855,265.00"
Home Office,Home Office,02/11/2010,Grant,CPG - Crime & Policing Group,SOUTH YORKSHIRE POLICE AUTHORITY 1 (G),1776348,"8,777,081.00"
Home Office,Home Office,02/11/2010,Grant,CPG - Crime & Policing Group,SOUTH WALES POLICE AUTHORITY 1 (G),1776347,"8,425,424.00"
Home Office,Home Office,02/11/2010,Grant,CPG - Crime & Policing Group,NOTTINGHAMSHIRE POLICE AUTHORITY 2 (G),1776346,"6,605,626.00"
Home Office,Home Office,02/11/2010,Grant,CPG - Crime & Policing Group,NORTHUMBRIA POLICE (G),1776343,"9,285,752.00"
Home Office,Home Office,02/11/2010,Grant,CPG - Crime & Policing Group,NORTHAMPTONSHIRE POLICE 1 (G),1776342,"3,765,162.00"
Home Office,Home Office,02/11/2010,Grant,CPG - Crime & Policing Group,NORTH YORKSHIRE POLICE AUTHORITY (G),1776340,"3,936,672.00"
Home Office,Home Office,02/11/2010,Grant,CPG - Crime & Policing Group,NORTH WALES POLICE AUTHORITY (G),1776338,"3,880,835.00"
Home Office,Home Office,02/11/2010,Grant,CPG - Crime & Policing Group,NORFOLK POLICE AUTHORITY 1 (G),1776336,"4,453,785.00"
Home Office,Home Office,02/11/2010,Grant,CPG - Crime & Policing Group,GREATER LONDON AUTHORITY (G),1776335,"93,454,725.00"
Home Office,Home Office,02/11/2010,Grant,CPG - Crime & Policing Group,MERSEYSIDE POLICE AUTHORITY 1 (G),1776334,"11,310,724.00"
Home Office,Home Office,02/11/2010,Grant,CPG - Crime & Policing Group,LINCOLNSHIRE POLICE AUTHORITY 1 (G),1776333,"3,535,554.00"
Home Office,Home Office,02/11/2010,Grant,CPG - Crime & Policing Group,LEICESTERSHIRE POLICE AUTHORITY (G),1776331,"5,636,757.00"
Home Office,Home Office,02/11/2010,Grant,CPG - Crime & Policing Group,LANCASHIRE POLICE AUTHORITY 1 (G),1776330,"9,324,083.00"
Home Office,Home Office,02/11/2010,Grant,CPG - Crime & Policing Group,KENT POLICE AUTHORITY 1 (G),1776328,"9,891,864.00"
Home Office,Home Office,02/11/2010,Grant,CPG - Crime & Policing Group,HUMBERSIDE POLICE AUTHORITY 1 (G),1776326,"5,800,959.00"
Home Office,Home Office,02/11/2010,Grant,CPG - Crime & Policing Group,HERTFORDSHIRE POLICE AUTHORITY 1 (G),1776324,"6,525,387.00"
Home Office,Home Office,02/11/2010,Grant,CPG - Crime & Policing Group,HAMPSHIRE POLICE AUTHORITY 1 (G),1776322,"10,472,722.00"
Home Office,Home Office,02/11/2010,Grant,CPG - Crime & Policing Group,GWENT POLICE AUTHORITY 1 (G),1776319,"3,885,765.00"
Home Office,Home Office,02/11/2010,Grant,CPG - Crime & Policing Group,GREATER MANCHESTER POLICE AUTHORITY (G),1776318,"20,179,915.00"
Home Office,Home Office,02/11/2010,Grant,CPG - Crime & Policing Group,GLOUCESTERSHIRE POLICE AUTHORITY (G),1776316,"3,026,196.00"
Home Office,Home Office,02/11/2010,Grant,CPG - Crime & Policing Group,ESSEX POLICE AUTHORITY (G),1776312,"9,426,856.00"
Home Office,Home Office,02/11/2010,Grant,CPG - Crime & Policing Group,WILTSHIRE CONSTABULARY (G),1776367,"3,371,577.00"
Home Office,Home Office,02/11/2010,Grant,CPG - Crime & Policing Group,WEST YORKSHIRE POLICE (G),1776366,"15,482,796.00"
Home Office,Home Office,02/11/2010,Grant,CPG - Crime & Policing Group,WILTSHIRE CONSTABULARY (G),1742783,"285,810.00"
Home Office,Home Office,02/11/2010,Grant,CPG - Crime & Policing Group,WEST YORKSHIRE POLICE (G),1742781,"1,267,495.00"
Home Office,Home Office,02/11/2010,Grant,CPG - Crime & Policing Group,WEST MIDLANDS POLICE AUTHORITY 1 (G),1742778,"1,771,139.00"
Home Office,Home Office,02/11/2010,Grant,CPG - Crime & Policing Group,NEW WEST MERCIA POLICE AUTHORITY (G),1742775,"513,407.00"
Home Office,Home Office,02/11/2010,Grant,CPG - Crime & Policing Group,WARWICKSHIRE POLICE AUTHORITY 1 (G),1742774,"358,994.00"
Home Office,Home Office,02/11/2010,Grant,CPG - Crime & Policing Group,THAMES VALLEY POLICE (G),1742771,"1,057,328.00"
Home Office,Home Office,02/11/2010,Grant,CPG - Crime & Policing Group,SUSSEX POLICE AUTHORITY 1 (G),1742767,"707,985.00"
Home Office,Home Office,02/11/2010,Grant,CPG - Crime & Policing Group,SURREY POLICE AUTHORITY 1 (G),1742766,"521,168.00"
Home Office,Home Office,02/11/2010,Grant,CPG - Crime & Policing Group,SUFFOLK POLICE AUTHORITY (G),1742764,"309,332.00"
Home Office,Home Office,02/11/2010,Grant,CPG - Crime & Policing Group,STAFFORDSHIRE POLICE AUTHORITY (G),1742760,"475,954.00"
Home Office,Home Office,02/11/2010,Grant,CPG - Crime & Policing Group,SOUTH YORKSHIRE POLICE AUTHORITY 1 (G),1742756,"744,427.00"
Home Office,Home Office,02/11/2010,Grant,CPG - Crime & Policing Group,SOUTH WALES POLICE AUTHORITY 1 (G),1742755,"678,392.00"
Home Office,Home Office,02/11/2010,Grant,CPG - Crime & Policing Group,NOTTINGHAMSHIRE POLICE AUTHORITY 2 (G),1742751,"539,803.00"
Home Office,Home Office,02/11/2010,Grant,CPG - Crime & Policing Group,NORTHUMBRIA POLICE (G),1742749,"929,233.00"
Home Office,Home Office,02/11/2010,Grant,CPG - Crime & Policing Group,NORTHAMPTONSHIRE POLICE 1 (G),1742745,"313,693.00"
Home Office,Home Office,02/11/2010,Grant,CPG - Crime & Policing Group,NORTH YORKSHIRE POLICE AUTHORITY (G),1742743,"333,518.00"
Home Office,Home Office,02/11/2010,Grant,CPG - Crime & Policing Group,NORTH WALES POLICE AUTHORITY (G),1742736,"339,204.00"
Home Office,Home Office,02/11/2010,Grant,CPG - Crime & Policing Group,NORFOLK POLICE AUTHORITY 1 (G),1742735,"383,844.00"
Home Office,Home Office,02/11/2010,Grant,CPG - Crime & Policing Group,GREATER LONDON AUTHORITY (G),1742732,"8,798,553.00"
Home Office,Home Office,02/11/2010,Grant,CPG - Crime & Policing Group,MERSEYSIDE POLICE AUTHORITY 1 (G),1742731,"947,183.00"
Home Office,Home Office,02/11/2010,Grant,CPG - Crime & Policing Group,LINCOLNSHIRE POLICE AUTHORITY 1 (G),1742729,"274,875.00"
Home Office,Home Office,02/11/2010,Grant,CPG - Crime & Policing Group,LEICESTERSHIRE POLICE AUTHORITY (G),1742728,"476,698.00"
Home Office,Home Office,02/11/2010,Grant,CPG - Crime & Policing Group,LANCASHIRE POLICE AUTHORITY 1 (G),1742727,"788,433.00"
Home Office,Home Office,02/11/2010,Grant,CPG - Crime & Policing Group,KENT POLICE AUTHORITY 1 (G),1742725,"800,229.00"
Home Office,Home Office,02/11/2010,Grant,CPG - Crime & Policing Group,HUMBERSIDE POLICE AUTHORITY 1 (G),1742722,"488,564.00"
Home Office,Home Office,02/11/2010,Grant,CPG - Crime & Policing Group,HERTFORDSHIRE POLICE AUTHORITY 1 (G),1742721,"514,821.00"
Home Office,Home Office,02/11/2010,Grant,CPG - Crime & Policing Group,HAMPSHIRE POLICE AUTHORITY 1 (G),1742720,"878,346.00"
Home Office,Home Office,02/11/2010,Grant,CPG - Crime & Policing Group,GWENT POLICE AUTHORITY 1 (G),1742719,"311,914.00"
Home Office,Home Office,02/11/2010,Grant,CPG - Crime & Policing Group,GREATER MANCHESTER POLICE AUTHORITY (G),1742718,"1,671,474.00"
Home Office,Home Office,02/11/2010,Grant,CPG - Crime & Policing Group,GLOUCESTERSHIRE POLICE AUTHORITY (G),1742716,"264,505.00"
Home Office,Home Office,02/11/2010,Grant,CPG - Crime & Policing Group,ESSEX POLICE AUTHORITY (G),1742715,"731,856.00"
Home Office,Home Office,02/11/2010,Grant,CPG - Crime & Policing Group,DYFED POWYS POLICE AUTHORITY 1 (G),1742714,"227,608.00"
Home Office,Home Office,02/11/2010,Grant,CPG - Crime & Policing Group,DURHAM POLICE AUTHORITY 1 (G),1742713,"351,097.00"
Home Office,Home Office,02/11/2010,Grant,CPG - Crime & Policing Group,DORSET POLICE AUTHORITY 1 (G),1742712,"290,735.00"
Home Office,Home Office,02/11/2010,Grant,CPG - Crime & Policing Group,DEVON & CORNWALL POLICE AUTHORITY 1 (G),1742710,"770,730.00"
Home Office,Home Office,02/11/2010,Grant,CPG - Crime & Policing Group,DERBYSHIRE POLICE AUTHORITY 1 (G),1742708,"458,212.00"
Home Office,Home Office,02/11/2010,Grant,CPG - Crime & Policing Group,CUMBRIA POLICE AUTHORITY 1 (G),1742707,"253,856.00"
Home Office,Home Office,02/11/2010,Grant,CPG - Crime & Policing Group,CLEVELAND POLICE AUTHORITY 1 (G),1742705,"360,644.00"
Home Office,Home Office,02/11/2010,Grant,CPG - Crime & Policing Group,CHAMBERLAIN OF LONDON (G),1742703,"252,418.00"
Home Office,Home Office,02/11/2010,Grant,CPG - Crime & Policing Group,CHESHIRE POLICE AUTHORITY 2 (G),1742702,"499,467.00"
Home Office,Home Office,02/11/2010,Grant,CPG - Crime & Policing Group,CAMBRIDGESHIRE POLICE AUTHORITY 1 (G),1742699,"362,113.00"
Home Office,Home Office,02/11/2010,Grant,CPG - Crime & Policing Group,BEDFORDSHIRE POLICE AUTHORITY 1 (G),1742698,"294,998.00"
Home Office,Home Office,02/11/2010,Grant,CPG - Crime & Policing Group,AVON & SOMERSET POLICE AUTHORITY 1 (G),1742695,"738,110.00"
Home Office,Home Office,02/11/2010,Grant,CPG - Crime & Policing Group,DYFED POWYS POLICE AUTHORITY 1 (G),1776310,"2,820,914.00"
Home Office,Home Office,02/11/2010,Grant,CPG - Crime & Policing Group,DURHAM POLICE AUTHORITY 1 (G),1776307,"3,796,422.00"
Home Office,Home Office,02/11/2010,Grant,CPG - Crime & Policing Group,DORSET POLICE AUTHORITY 1 (G),1776304,"3,492,024.00"
Home Office,Home Office,02/11/2010,Grant,CPG - Crime & Policing Group,DEVON & CORNWALL POLICE AUTHORITY 1 (G),1776300,"9,371,973.00"
Home Office,Home Office,02/11/2010,Grant,CPG - Crime & Policing Group,DERBYSHIRE POLICE AUTHORITY 1 (G),1776297,"5,573,861.00"
Home Office,Home Office,02/11/2010,Grant,CPG - Crime & Policing Group,CUMBRIA POLICE AUTHORITY 1 (G),1776295,"2,784,812.00"
Home Office,Home Office,02/11/2010,Grant,CPG - Crime & Policing Group,CLEVELAND POLICE AUTHORITY 1 (G),1776293,"4,107,078.00"
Home Office,Home Office,02/11/2010,Grant,CPG - Crime & Policing Group,CHAMBERLAIN OF LONDON (G),1776290,"1,807,384.00"
Home Office,Home Office,02/11/2010,Grant,CPG - Crime & Policing Group,CHESHIRE POLICE AUTHORITY 2 (G),1776286,"5,581,556.00"
Home Office,Home Office,02/11/2010,Grant,CPG - Crime & Policing Group,CAMBRIDGESHIRE POLICE AUTHORITY 1 (G),1776284,"4,240,189.00"
Home Office,Home Office,02/11/2010,Grant,CPG - Crime & Policing Group,BEDFORDSHIRE POLICE AUTHORITY 1 (G),1776281,"3,571,296.00"
Home Office,Home Office,02/11/2010,Grant,CPG - Crime & Policing Group,AVON & SOMERSET POLICE AUTHORITY 1 (G),1776277,"9,309,651.00"
Home Office,Home Office,02/11/2010,Grant,CPG - Crime & Policing Group,COMMUNITIES & LOCAL GOVERNMENT (G),1829056,"2,436,938.81"
Home Office,Home Office,02/11/2010,Grant,CPG - Crime & Policing Group,SOCA (G),1822331,"31,000,000.00"
Home Office,Home Office,03/11/2010,"Science, Technical & Research.Social Research",CPG - Crime & Policing Group,KM RESEARCH AND CONSULTANCY LTD,1842254,"52,493.13"
Home Office,Home Office,03/11/2010,Grant,CPG - Crime & Policing Group,INDEPENDENT POLICE COMPLAINTS COMISSION (G),1826943,"2,000,000.00"
Home Office,Home Office,04/11/2010,Professional & Admin Services.Business admin services - PROG,CPG - Crime & Policing Group,CATCH22,1842956,"48,129.66"
Home Office,Home Office,04/11/2010,Grant,CPG - Crime & Policing Group,NATIONAL OFFENDER MANAGEMENT SERVICE (G),1843449,"50,000.00"
Home Office,Home Office,04/11/2010,Grant,CPG - Crime & Policing Group,THE SURVIVORS TRUST (G),1843364,"37,500.00"
Home Office,Home Office,04/11/2010,Grant,CPG - Crime & Policing Group,REFUGE (G),1843353,"62,500.00"
Home Office,Home Office,04/11/2010,Grant,CPG - Crime & Policing Group,RESPECT (G),1843455,"60,000.00"
Home Office,Home Office,04/11/2010,Grant,CPG - Crime & Policing Group,LEICESTERSHIRE COUNTY COUNCIL 1 (G),1843060,"29,400.00"
Home Office,Home Office,04/11/2010,Grant,CPG - Crime & Policing Group,BLACKPOOL BOROUGH COUNCIL 1 (G),1843075,"26,000.00"
Home Office,Home Office,05/11/2010,Grant,CPG - Crime & Policing Group,ISA (G),1844177,"1,101,283.00"
Home Office,Home Office,05/11/2010,Grant,CPG - Crime & Policing Group,KIRKLEES PCT (G),1845325,"30,000.00"
Home Office,Home Office,05/11/2010,Grant,CPG - Crime & Policing Group,CUMBRIA PROBATION BOARD 1 (G),1844083,"48,000.00"
Home Office,Home Office,05/11/2010,Grant,CPG - Crime & Policing Group,NHS BEDFORDSHIRE (G),1845316,"75,000.00"
Home Office,Home Office,05/11/2010,Grant,CPG - Crime & Policing Group,BERKSHIRE EAST PCT (G),1845315,"44,009.00"
Home Office,Home Office,05/11/2010,Grant,CPG - Crime & Policing Group,IMPERIAL COLLEGE HEALTHCARE NHS TRUST (G),1845314,"45,350.00"
Home Office,Home Office,05/11/2010,Grant,CPG - Crime & Policing Group,DESIGN COUNCIL (G),1759490,"41,666.00"
Home Office,Home Office,05/11/2010,Grant,CPG - Crime & Policing Group,NPIA (G),1842250,"55,000.00"
Home Office,Home Office,05/11/2010,Grant,CPG - Crime & Policing Group,CRIMESTOPPERS TRUST (G),1842252,"225,000.00"
Home Office,Home Office,08/11/2010,Law Enforcement & safety Equip.Security & Control Equip- PROG,CPG - Crime & Policing Group,CT CENTRE (MOD) T/A DSTL,1735038,"705,000.00"
Home Office,Home Office,08/11/2010,Professional & Admin Services.Business admin services - PROG,CPG - Crime & Policing Group,CRIMINAL RECORDS BUREAU,1807489,"334,421.58"
Home Office,Home Office,08/11/2010,Grant,CPG - Crime & Policing Group,HAMPSHIRE POLICE AUTHORITY 1 (G),1846959,"47,500.00"
Home Office,Home Office,08/11/2010,Grant,CPG - Crime & Policing Group,DEVON & CORNWALL CONSTABULARY (G),1846958,"35,000.00"
Home Office,Home Office,09/11/2010,Storage & Mail Services.Messenger & Reception Services,CPG - Crime & Policing Group,CONCATENO UK LIMITED,1841312,"235,781.38"
Home Office,Home Office,11/11/2010,Grant,CPG - Crime & Policing Group,HAMPSHIRE POLICE AUTHORITY 1 (G),1849359,"149,930.00"
Home Office,Home Office,11/11/2010,Grant,CPG - Crime & Policing Group,HAMPSHIRE POLICE AUTHORITY 1 (G),1849356,"136,418.00"
Home Office,Home Office,12/11/2010,Defense & Law Enforcement.Police Liaison Officers,CPG - Crime & Policing Group,SOUTH YORKSHIRE POLICE,1848971,"25,058.46"
Home Office,Home Office,12/11/2010,Defense & Law Enforcement.Public Safety & Control,CPG - Crime & Policing Group,ACPO (ASSOCIATION OF CHIEF POLICE OFFICERS),1848865,"82,178.00"
Home Office,Home Office,12/11/2010,"IT, Broadcasting & Telecomms.IT Run Costs other -Prog",CPG - Crime & Policing Group,ALTIUS CONSULTING LTD,1849072,"34,735.46"
Home Office,Home Office,12/11/2010,Management & Admin Serv.Corp & Bus Org Structure- PROG,CPG - Crime & Policing Group,LIVERPOOL JOHN MOORES  UNIVERSITY,1848852,"47,501.37"
Home Office,Home Office,12/11/2010,Management & Admin Serv.Corp & Bus Org Structure- PROG,CPG - Crime & Policing Group,LIVERPOOL JOHN MOORES  UNIVERSITY,1848850,"33,764.50"
Home Office,Home Office,12/11/2010,Professional & Admin Services.Business admin services - PROG,CPG - Crime & Policing Group,GOVERNMENT EQUALITIES OFFICE,1849909,"48,040.69"
Home Office,Home Office,15/11/2010,Professional & Admin Services.Seconded in Staff costs - ADMN,CPG - Crime & Policing Group,LONDON BOROUGH OF TOWER HAMLETS.,1850163,"60,239.90"
Home Office,Home Office,15/11/2010,Grant,CPG - Crime & Policing Group,CLINKS (G),1851309,"59,500.00"
Home Office,Home Office,16/11/2010,Grant,CPG - Crime & Policing Group,WELSH ASSEMBLY GOVERNMENT (G),1851248,"210,155.14"
Home Office,Home Office,16/11/2010,Grant,CPG - Crime & Policing Group,CAMBRIDGESHIRE POLICE AUTHORITY 1 (G),1860366,"35,000.00"
Home Office,Home Office,16/11/2010,Grant,CPG - Crime & Policing Group,ESSEX POLICE AUTHORITY (G),1860364,"25,000.00"
Home Office,Home Office,16/11/2010,Grant,CPG - Crime & Policing Group,DURHAM POLICE AUTHORITY 1 (G),1860363,"35,000.00"
Home Office,Home Office,17/11/2010,Professional & Admin Services.Seconded in Staff costs - PROG,CPG - Crime & Policing Group,THAMES VALLEY POLICE AUTHORITY,1833150,"25,335.23"
Home Office,Home Office,17/11/2010,Grant,CPG - Crime & Policing Group,HELP THE AGED,1856532,"60,000.00"
Home Office,Home Office,18/11/2010,Professional & Admin Services.Business admin services - PROG,CPG - Crime & Policing Group,SOUTH YORKSHIRE POLICE,1849999,"60,879.22"
Home Office,Home Office,18/11/2010,Professional & Admin Services.Business admin services - PROG,CPG - Crime & Policing Group,SOUTH YORKSHIRE POLICE,1849995,"43,983.34"
Home Office,Home Office,19/11/2010,"IT, Broadcasting & Telecomms.IT Run Costs other � Prog ",CPG - Crime & Policing Group,ALTIUS CONSULTING LTD,1854889,"63,309.00"
Home Office,Home Office,19/11/2010,Grant,CPG - Crime & Policing Group,NATIONAL TREATMENT AGENCY (EASTERN)(G),1856192,"214,039.75"
Home Office,Home Office,22/11/2010,"IT, Broadcasting & Telecomms.Maintenance - PROG",CPG - Crime & Policing Group,LOGICA CMG UK LTD,1852972,"1,796,981.55"
Home Office,Home Office,22/11/2010,Grant,CPG - Crime & Policing Group,ENVIRONMENT AGENCY WALES (G),1854408,"37,504.82"
Home Office,Home Office,22/11/2010,Grant,CPG - Crime & Policing Group,WEST YORKSHIRE POLICE (G),1856238,"487,768.55"
Home Office,Home Office,22/11/2010,Grant,CPG - Crime & Policing Group,WEST MIDLANDS POLICE AUTHORITY 1 (G),1856235,"629,329.07"
Home Office,Home Office,22/11/2010,Grant,CPG - Crime & Policing Group,THAMES VALLEY POLICE (G),1856233,"185,296.06"
Home Office,Home Office,22/11/2010,Grant,CPG - Crime & Policing Group,SOUTH YORKSHIRE POLICE AUTHORITY 1 (G),1856230,"311,152.23"
Home Office,Home Office,22/11/2010,Grant,CPG - Crime & Policing Group,SOUTH WALES POLICE AUTHORITY 1 (G),1856228,"90,798.90"
Home Office,Home Office,22/11/2010,Grant,CPG - Crime & Policing Group,NORTHUMBRIA POLICE (G),1856225,"212,190.30"
Home Office,Home Office,22/11/2010,Grant,CPG - Crime & Policing Group,METROPOLITAN POLICE SERVICE (G),1856222,"1,553,967.58"
Home Office,Home Office,22/11/2010,Grant,CPG - Crime & Policing Group,MERSEYSIDE POLICE AUTHORITY 1 (G),1856221,"259,505.90"
Home Office,Home Office,22/11/2010,Grant,CPG - Crime & Policing Group,LANCASHIRE POLICE AUTHORITY 1 (G),1856219,"52,817.80"
Home Office,Home Office,22/11/2010,Grant,CPG - Crime & Policing Group,HUMBERSIDE POLICE AUTHORITY 1 (G),1856217,"179,916.18"
Home Office,Home Office,22/11/2010,Grant,CPG - Crime & Policing Group,GWENT POLICE AUTHORITY 1 (G),1856212,"51,230.16"
Home Office,Home Office,22/11/2010,Grant,CPG - Crime & Policing Group,GREATER MANCHESTER POLICE AUTHORITY (G),1856211,"608,558.24"
Home Office,Home Office,22/11/2010,Grant,CPG - Crime & Policing Group,BEDFORDSHIRE POLICE AUTHORITY 1 (G),1856210,"78,922.20"
Home Office,Home Office,22/11/2010,Grant,CPG - Crime & Policing Group,AVON & SOMERSET POLICE AUTHORITY 1 (G),1856209,"94,452.06"
Home Office,Home Office,23/11/2010,"Building, Construction Service.Building ConstructionServ-PROG",CPG - Crime & Policing Group,"KELLOGG, BROWN AND ROOT LTD",1857414,"37,183.42"
Home Office,Home Office,24/11/2010,Grant,CPG - Crime & Policing Group,NATIONAL TREATMENT AGENCY (EASTERN)(G),1742515,"510,722.25"
Home Office,Home Office,25/11/2010,Grant,CPG - Crime & Policing Group,THAMES VALLEY POLICE (G),1862143,"25,000.00"
Home Office,Home Office,25/11/2010,Grant,CPG - Crime & Policing Group,ESSEX POLICE AUTHORITY (G),1862141,"25,000.00"
Home Office,Home Office,25/11/2010,Grant,CPG - Crime & Policing Group,WESTMINSTER CITY COUNCIL (G),1857658,"30,138.19"
Home Office,Home Office,25/11/2010,Grant,CPG - Crime & Policing Group,NORTH EAST LINCOLNSHIRE CARE TRUST PLUS (G),1857663,"49,003.50"
Home Office,Home Office,25/11/2010,Grant,CPG - Crime & Policing Group,SUSSEX POLICE AUTHORITY 1 (G),1856285,"232,087.00"
Home Office,Home Office,25/11/2010,Grant,CPG - Crime & Policing Group,LEICESTERSHIRE POLICE AUTHORITY (G),1856280,"288,588.00"
Home Office,Home Office,25/11/2010,Grant,CPG - Crime & Policing Group,HERTFORDSHIRE POLICE AUTHORITY 1 (G),1856276,"256,816.00"
Home Office,Home Office,25/11/2010,Grant,CPG - Crime & Policing Group,DERBYSHIRE POLICE AUTHORITY 1 (G),1856268,"46,575.00"
Home Office,Home Office,25/11/2010,Grant,CPG - Crime & Policing Group,AVON & SOMERSET CONSTABULARY (G),1856263,"28,889.49"
Home Office,Home Office,25/11/2010,Grant,CPG - Crime & Policing Group,SALFORD CITY COUNCIL (G),1859884,"166,332.13"
Home Office,Home Office,25/11/2010,Grant,CPG - Crime & Policing Group,PETERBOROUGH DAT (G),1859867,"172,879.26"
Home Office,Home Office,25/11/2010,Grant,CPG - Crime & Policing Group,ROYAL BOROUGH OF KINGSTON-UPON-THAMES (G),1859833,"29,441.59"
Home Office,Home Office,25/11/2010,Grant,CPG - Crime & Policing Group,HAMPSHIRE CC (HAMPSHIRE DAT) (G),1859816,"152,846.06"
Home Office,Home Office,25/11/2010,Grant,CPG - Crime & Policing Group,LONDON BOROUGH OF HAMMERSMITH & FULHAM 1 (G),1859815,"253,962.46"
Home Office,Home Office,25/11/2010,Grant,CPG - Crime & Policing Group,LONDON BOROUGH OF HACKNEY 1,1859699,"367,772.04"
Home Office,Home Office,25/11/2010,Grant,CPG - Crime & Policing Group,EAST SUSSEX COUNTY COUNCIL 1 (G),1859693,"89,686.09"
Home Office,Home Office,25/11/2010,Grant,CPG - Crime & Policing Group,DORSET COUNTY COUNCIL 1 (G),1859687,"40,194.76"
Home Office,Home Office,25/11/2010,Grant,CPG - Crime & Policing Group,DERBY CITY COUNCIL COMMUNITY SAFETY PARTNERSHIP (G),1859683,"106,842.68"
Home Office,Home Office,25/11/2010,Grant,CPG - Crime & Policing Group,CUMBRIA COUNTY COUNCIL 1 (G),1859680,"86,263.58"
Home Office,Home Office,25/11/2010,Grant,CPG - Crime & Policing Group,STOCKTON ON TEES BOROUGH COUNCIL 1 (G),1859906,"174,808.63"
Home Office,Home Office,25/11/2010,Grant,CPG - Crime & Policing Group,STOCKPORT METRO BOROUGH COUNCIL (G),1859904,"159,398.62"
Home Office,Home Office,25/11/2010,Grant,CPG - Crime & Policing Group,NORTHAMPTONSHIRE COUNTY COUNCIL 2 (G),1859859,"240,570.54"
Home Office,Home Office,25/11/2010,Grant,CPG - Crime & Policing Group,LONDON BOROUGH OF NEWHAM (G),1859852,"331,822.47"
Home Office,Home Office,25/11/2010,Grant,CPG - Crime & Policing Group,MILTON KEYNES COUNCIL 1 (G),1859849,"41,584.55"
Home Office,Home Office,25/11/2010,Grant,CPG - Crime & Policing Group,MANCHESTER CITY COUNCIL 2 (G),1859844,"627,588.45"
Home Office,Home Office,25/11/2010,Grant,CPG - Crime & Policing Group,WEST SUSSEX COUNTY COUNCIL 1 (G),1859925,"86,858.45"
Home Office,Home Office,25/11/2010,Grant,CPG - Crime & Policing Group,SOUTHEND ON SEA BOROUGH COUNCI (G),1859898,"42,362.80"
Home Office,Home Office,25/11/2010,Grant,CPG - Crime & Policing Group,SOMERSET COUNTY COUNCIL 1 (G),1859892,"74,816.97"
Home Office,Home Office,25/11/2010,Grant,CPG - Crime & Policing Group,CAMBRIDGESHIRE COUNTY COUNCIL (G),1859657,"90,523.67"
Home Office,Home Office,25/11/2010,Grant,CPG - Crime & Policing Group,BRIGHTON & HOVE COUNCIL (G),1859640,"81,151.36"
Home Office,Home Office,25/11/2010,Grant,CPG - Crime & Policing Group,BOURNEMOUTH BOROUGH COUNCIL 1 (G),1859628,"49,778.90"
Home Office,Home Office,25/11/2010,Grant,CPG - Crime & Policing Group,BOLTON MBC 1 (G),1859625,"257,545.79"
Home Office,Home Office,25/11/2010,Grant,CPG - Crime & Policing Group,CORPORATION OF LONDON (G),1859667,"68,582.29"
Home Office,Home Office,25/11/2010,Grant,CPG - Crime & Policing Group,ROCHDALE BOROUGH COUNCIL (G),1859879,"174,685.88"
Home Office,Home Office,25/11/2010,Grant,CPG - Crime & Policing Group,LONDON BOROUGH OF REDBRIDGE 1 (G),1859876,"157,671.62"
Home Office,Home Office,25/11/2010,Grant,CPG - Crime & Policing Group,READING BOROUGH COUNCIL 1 (G),1859874,"249,400.85"
Home Office,Home Office,25/11/2010,Grant,CPG - Crime & Policing Group,PORTSMOUTH CITY COUNCIL 2 (G),1859873,"71,729.54"
Home Office,Home Office,25/11/2010,Grant,CPG - Crime & Policing Group,POSITIVE STEPS OLDHAM (G),1859864,"225,962.85"
Home Office,Home Office,25/11/2010,Grant,CPG - Crime & Policing Group,LEICESTER CITY COUNCIL 1 (G),1859837,"354,792.53"
Home Office,Home Office,25/11/2010,Grant,CPG - Crime & Policing Group,KNOWSLEY MBC (G),1859834,"56,279.97"
Home Office,Home Office,25/11/2010,Grant,CPG - Crime & Policing Group,KENT COUNTY COUNCIL 1 (G),1859829,"283,075.08"
Home Office,Home Office,25/11/2010,Grant,CPG - Crime & Policing Group,LONDON BOROUGH OF KENSINGTON & CHELSEA (G),1859828,"219,191.15"
Home Office,Home Office,25/11/2010,Grant,CPG - Crime & Policing Group,ISLE OF WIGHT COUNCIL 1 (G),1859826,"30,353.32"
Home Office,Home Office,25/11/2010,Grant,CPG - Crime & Policing Group,HERTFORDSHIRE COUNTY COUNCIL 1 (G),1859823,"195,097.21"
Home Office,Home Office,25/11/2010,Grant,CPG - Crime & Policing Group,HEREFORD CITY COUNCIL (G),1859822,"33,830.71"
Home Office,Home Office,25/11/2010,Grant,CPG - Crime & Policing Group,LONDON BOROUGH HAVERING (G),1859821,"43,839.62"
Home Office,Home Office,25/11/2010,Grant,CPG - Crime & Policing Group,HARTLEPOOL COUNCIL (G),1859820,"136,342.41"
Home Office,Home Office,25/11/2010,Grant,CPG - Crime & Policing Group,LONDON BOROUGH OF HARROW 1 (G),1859818,"47,575.40"
Home Office,Home Office,25/11/2010,Grant,CPG - Crime & Policing Group,LONDON BOROUGH OF HARINGEY 1 (G),1859817,"271,240.38"
Home Office,Home Office,25/11/2010,Grant,CPG - Crime & Policing Group,HALTON BOROUGH COUNCIL (G),1859814,"34,242.43"
Home Office,Home Office,25/11/2010,Grant,CPG - Crime & Policing Group,LONDON BOROUGH OF GREENWICH 1 (G),1859696,"203,276.06"
Home Office,Home Office,25/11/2010,Grant,CPG - Crime & Policing Group,LONDON BOROUGH OF ENFIELD 1 (G),1859694,"184,419.25"
Home Office,Home Office,25/11/2010,Grant,CPG - Crime & Policing Group,TRAFFORD METROPOLITAN BOROUGH COUNCIL (G),1859918,"161,244.05"
Home Office,Home Office,25/11/2010,Grant,CPG - Crime & Policing Group,LONDON BORO OF TOWER HAMLETS 1 (G),1859915,"359,223.34"
Home Office,Home Office,25/11/2010,Grant,CPG - Crime & Policing Group,TAMESIDE MBC (G),1859914,"208,869.23"
Home Office,Home Office,25/11/2010,Grant,CPG - Crime & Policing Group,SWINDON BOROUGH COUNCIL (G),1859912,"41,648.49"
Home Office,Home Office,25/11/2010,Grant,CPG - Crime & Policing Group,LONDON BOROUGH OF SUTTON 1 (G),1859911,"36,480.68"
Home Office,Home Office,25/11/2010,Grant,CPG - Crime & Policing Group,CITY OF STOKE ON TRENT (G),1859907,"82,515.13"
Home Office,Home Office,25/11/2010,Grant,CPG - Crime & Policing Group,STAFFORDSHIRE COUNTY COUNCIL 1 (G),1859902,"163,557.10"
Home Office,Home Office,25/11/2010,Grant,CPG - Crime & Policing Group,ST HELENS MBC (G),1859900,"58,562.96"
Home Office,Home Office,25/11/2010,Grant,CPG - Crime & Policing Group,NOTTINGHAM CITY COUNCIL 2 (G),1859862,"455,427.20"
Home Office,Home Office,25/11/2010,Grant,CPG - Crime & Policing Group,NORTHUMBERLAND COUNTY COUNCIL 1 (G),1859861,"69,327.77"
Home Office,Home Office,25/11/2010,Grant,CPG - Crime & Policing Group,NORTH TYNESIDE COUNCIL 1 (G),1859858,"52,194.60"
Home Office,Home Office,25/11/2010,Grant,CPG - Crime & Policing Group,NORTH SOMERSET DISTRICT COUNCIL 1 (G),1859856,"29,529.90"
Home Office,Home Office,25/11/2010,Grant,CPG - Crime & Policing Group,NORFOLK COUNTY COUNCIL 1 (G),1859853,"141,881.96"
Home Office,Home Office,25/11/2010,Grant,CPG - Crime & Policing Group,NEWCASTLE-UPON-TYNE MDC (G),1859851,"304,895.89"
Home Office,Home Office,25/11/2010,Grant,CPG - Crime & Policing Group,MIDDLESBROUGH BOROUGH COUNCIL 1 (G),1859848,"240,047.19"
Home Office,Home Office,25/11/2010,Grant,CPG - Crime & Policing Group,LONDON BOROUGH OF MERTON 2 (G),1859846,"43,532.08"
Home Office,Home Office,25/11/2010,Grant,CPG - Crime & Policing Group,LIVERPOOL CITY COUNCIL 1 (G),1859843,"506,592.94"
Home Office,Home Office,25/11/2010,Grant,CPG - Crime & Policing Group,LONDON BOROUGH OF LEWISHAM 1 (G),1859841,"288,487.83"
Home Office,Home Office,25/11/2010,Grant,CPG - Crime & Policing Group,LEICESTERSHIRE COUNTY COUNCIL 1 (G),1859839,"108,000.50"
Home Office,Home Office,25/11/2010,Grant,CPG - Crime & Policing Group,RL BOR OF WINDSOR & MAIDENHEAD (G),1859932,"26,185.73"
Home Office,Home Office,25/11/2010,Grant,CPG - Crime & Policing Group,WILTSHIRE COUNTY COUNCIL 1 (G),1859930,"54,949.31"
Home Office,Home Office,25/11/2010,Grant,CPG - Crime & Policing Group,WESTMINSTER CITY COUNCIL (G),1859929,"437,126.04"
Home Office,Home Office,25/11/2010,Grant,CPG - Crime & Policing Group,WARRINGTON BOROUGH COUNCIL (G),1859922,"36,191.85"
Home Office,Home Office,25/11/2010,Grant,CPG - Crime & Policing Group,WANDSWORTH BOROUGH COUNCIL (G),1859919,"223,180.43"
Home Office,Home Office,25/11/2010,Grant,CPG - Crime & Policing Group,SOUTHAMPTON CITY COUNCIL 1 (G),1859896,"77,301.26"
Home Office,Home Office,25/11/2010,Grant,CPG - Crime & Policing Group,SOUTH GLOUCESTERSHIRE COUNCIL 1 (G),1859895,"33,694.95"
Home Office,Home Office,25/11/2010,Grant,CPG - Crime & Policing Group,SLOUGH BOROUGH COUNCIL (G),1859887,"183,400.10"
Home Office,Home Office,25/11/2010,Grant,CPG - Crime & Policing Group,CHESHIRE CONSTABULARY (G),1859664,"86,342.17"
Home Office,Home Office,25/11/2010,Grant,CPG - Crime & Policing Group,CALDERDALE MBC (G),1859653,"139,711.01"
Home Office,Home Office,25/11/2010,Grant,CPG - Crime & Policing Group,BURY MBC (G),1859648,"119,663.22"
Home Office,Home Office,25/11/2010,Grant,CPG - Crime & Policing Group,LONDON BOROUGH OF BROMLEY 1 (G),1859645,"64,817.14"
Home Office,Home Office,25/11/2010,Grant,CPG - Crime & Policing Group,BRADFORD COUNCIL(G),1859633,"478,730.06"
Home Office,Home Office,25/11/2010,Grant,CPG - Crime & Policing Group,BLACKBURN WITH DARWEN BOROUGH COUNCIL (G),1859617,"70,447.34"
Home Office,Home Office,25/11/2010,Grant,CPG - Crime & Policing Group,BATH & NORTH EAST SOMERSET COUNCIL (G),1859604,"34,130.39"
Home Office,Home Office,25/11/2010,Grant,CPG - Crime & Policing Group,LONDON BOROUGH OF BARNET 1 (G),1859600,"76,183.61"
Home Office,Home Office,25/11/2010,Grant,CPG - Crime & Policing Group,LONDON BOROUGH OF BARKING & DAGENHAM (G),1859598,"69,377.02"
Home Office,Home Office,25/11/2010,Grant,CPG - Crime & Policing Group,LAMBETH PCT (G),1859836,"417,141.54"
Home Office,Home Office,25/11/2010,Grant,CPG - Crime & Policing Group,HULL PCT (G),1859831,"360,837.57"
Home Office,Home Office,25/11/2010,Grant,CPG - Crime & Policing Group,ISLINGTON PRIMARY CARE TRUST PCT (G),1859827,"320,560.81"
Home Office,Home Office,25/11/2010,Grant,CPG - Crime & Policing Group,HILLINGDON PRIMARY CARE TRUST (G),1859825,"54,511.08"
Home Office,Home Office,25/11/2010,Grant,CPG - Crime & Policing Group,EALING PRIMARY CARE TRUST PCT (G),1859691,"250,904.40"
Home Office,Home Office,25/11/2010,Grant,CPG - Crime & Policing Group,EASINGTON PCT (G),1859689,"123,163.14"
Home Office,Home Office,25/11/2010,Grant,CPG - Crime & Policing Group,CHESTERFIELD PCT (G),1859684,"152,910.00"
Home Office,Home Office,25/11/2010,Grant,CPG - Crime & Policing Group,CROYDON PCT (G),1859679,"227,817.22"
Home Office,Home Office,25/11/2010,Grant,CPG - Crime & Policing Group,COVENTRY PRIMARY CARE TRUST (G),1859674,"228,594.49"
Home Office,Home Office,25/11/2010,Grant,CPG - Crime & Policing Group,SURREY PCT (G),1859909,"140,614.80"
Home Office,Home Office,25/11/2010,Grant,CPG - Crime & Policing Group,NOTTINGHAMSHIRE COUNTY TEACHING PCT (G),1859863,"525,160.08"
Home Office,Home Office,25/11/2010,Grant,CPG - Crime & Policing Group,NORTH LINCOLNSHIRE PCT (G),1859855,"163,249.35"
Home Office,Home Office,25/11/2010,Grant,CPG - Crime & Policing Group,NORTH EAST LINCOLNSHIRE PCT(G),1859854,"227,149.85"
Home Office,Home Office,25/11/2010,Grant,CPG - Crime & Policing Group,BIRKENHEAD & WALLASEY PCT (G),1859933,"133,310.10"
Home Office,Home Office,25/11/2010,Grant,CPG - Crime & Policing Group,SOLIHULL PRIMARY CARE TRUST (G),1859890,"103,309.49"
Home Office,Home Office,25/11/2010,Grant,CPG - Crime & Policing Group,SOUTH SEFTON PCT (G),1859886,"167,424.25"
Home Office,Home Office,25/11/2010,Grant,CPG - Crime & Policing Group,CAMDEN PRIMARY CARE TRUST (G),1859661,"282,587.38"
Home Office,Home Office,25/11/2010,Grant,CPG - Crime & Policing Group,BRENT PRIMARY CARE TRUST (G),1859635,"266,962.16"
Home Office,Home Office,25/11/2010,Grant,CPG - Crime & Policing Group,BLACKPOOL PCT (G),1859623,"114,214.57"
Home Office,Home Office,25/11/2010,Grant,CPG - Crime & Policing Group,BEXLEY DAT (G),1859613,"49,449.78"
Home Office,Home Office,26/11/2010,"IT, Broadcasting & Telecomms.IT Running Cost - Maint - PROG",CPG - Crime & Policing Group,LOGICA CMG UK LTD,1841433,"49,811.78"
Home Office,Home Office,29/11/2010,Grant,CPG - Crime & Policing Group,NPIA (G),1853777,"20,000,000.00"
Home Office,Home Office,29/11/2010,Grant,CPG - Crime & Policing Group,RICHMONDSHIRE COUNTY COUNCIL (G),1862186,"26,196.00"
Home Office,Home Office,29/11/2010,Grant,CPG - Crime & Policing Group,CALDERDALE WOMENS CENTRE (G),1862184,"39,000.00"
Home Office,Home Office,30/11/2010,Grant,CPG - Crime & Policing Group,LANCASHIRE COUNTY COUNCIL 1 (G),1863608,"45,010.00"
Home Office,Home Office,30/11/2010,Grant,CPG - Crime & Policing Group,THAMES VALLEY POLICE (G),1863596,"30,000.00"
Home Office,Home Office,30/11/2010,Grant,CPG - Crime & Policing Group,NOTTINGHAM CITY COUNCIL (G),1863593,"30,000.00"
Home Office,Home Office,11/11/2010,Other Gov't Dept. -Request For Transfer,Group HR,FCO SERVICES,1851465,"52,663.50"
Home Office,Home Office,16/10/2010,Grant,OSCT - Office of Security and Counter-Terrorism,DEPARTMENT OF HEALTH (G),1861692,"165,000.00"
Home Office,Home Office,01/11/2010,Grant,OSCT - Office of Security and Counter-Terrorism,METROPOLITAN POLICE AUTHORITY  (G),1831387,"4,686,977.00"
Home Office,Home Office,02/11/2010,"Science, Technical & Research.Computer services - ADMN",OSCT - Office of Security and Counter-Terrorism,CABLE & WIRELESS,1824212,"42,963.58"
Home Office,Home Office,03/11/2010,Professional & Admin Services.Seconded in Staff costs - PROG,OSCT - Office of Security and Counter-Terrorism,MINISTRY OF DEFENCE,1833633,"34,905.63"
Home Office,Home Office,04/11/2010,Storage & Mail Services.Messenger & Reception Services,OSCT - Office of Security and Counter-Terrorism,CT CENTRE (MOD) T/A DSTL,1840824,"579,994.35"
Home Office,Home Office,05/11/2010,Professional & Admin Services.Seconded in Staff costs - PROG,OSCT - Office of Security and Counter-Terrorism,MINISTRY OF DEFENCE,1838481,"43,751.25"
Home Office,Home Office,05/11/2010,Professional & Admin Services.Seconded in Staff costs - PROG,OSCT - Office of Security and Counter-Terrorism,MINISTRY OF DEFENCE,1838483,"38,098.27"
Home Office,Home Office,09/11/2010,Grant,OSCT - Office of Security and Counter-Terrorism,NPIA (G),1842511,"9,671,517.00"
Home Office,Home Office,10/11/2010,Professional & Admin Services.Seconded in Staff costs - PROG,OSCT - Office of Security and Counter-Terrorism,MINISTRY OF DEFENCE,1843542,"192,706.42"
Home Office,Home Office,10/11/2010,Professional & Admin Services.Seconded in Staff costs - PROG,OSCT - Office of Security and Counter-Terrorism,MINISTRY OF DEFENCE,1846686,"92,074.76"
Home Office,Home Office,11/11/2010,"Clothes, shoes & Personal Care.Clothing - PROG",OSCT - Office of Security and Counter-Terrorism,REMPLOY LTD,1842541,"33,535.44"
Home Office,Home Office,11/11/2010,Professional & Admin Services.Consultant - Imp & Del - PROG,OSCT - Office of Security and Counter-Terrorism,KPMG,1848861,"47,535.80"
Home Office,Home Office,11/11/2010,Professional & Admin Services.Consultant - Imp & Del - PROG,OSCT - Office of Security and Counter-Terrorism,KPMG,1848862,"38,140.50"
Home Office,Home Office,11/11/2010,Other Gov't Dept. -Request For Transfer,OSCT - Office of Security and Counter-Terrorism,WELSH ASSEMBLY GOVERNMENT,1853796,"26,942.00"
Home Office,Home Office,12/11/2010,IT & Telecommunications.IT & Telecommunications,OSCT - Office of Security and Counter-Terrorism,HEWLETT PACKARD,1830831,"197,168.23"
Home Office,Home Office,12/11/2010,Professional & Admin Services.Seconded in Staff costs - PROG,OSCT - Office of Security and Counter-Terrorism,METROPOLITAN POLICE AUTHORITY,1848867,"91,099.68"
Home Office,Home Office,15/11/2010,Grant,OSCT - Office of Security and Counter-Terrorism,NATIONAL OFFENDER MANAGEMENT SERVICE (G),1849078,"2,124,142.00"
Home Office,Home Office,19/11/2010,Storage & Mail Services.Messenger & Reception Services,OSCT - Office of Security and Counter-Terrorism,CT CENTRE (MOD) T/A DSTL,1854874,"462,418.16"
Home Office,Home Office,23/11/2010,Professional & Admin Services.Business admin services - PROG,OSCT - Office of Security and Counter-Terrorism,LEICESTERSHIRE COUNTY COUNCIL,1856863,"26,699.64"
Home Office,Home Office,26/11/2010,Professional & Admin Services.Seconded in Staff costs - PROG,OSCT - Office of Security and Counter-Terrorism,METROPOLITAN POLICE AUTHORITY,1860230,"84,773.48"
Home Office,Home Office,02/11/2010,Management & Admin Serv.Temp IT N/w Specialists - ADMN,PFD*,ATOS ORIGIN IT SERVICES UK LIMITED- MEDICAL SERVICES,1815579,"108,863.75"
Home Office,Home Office,02/11/2010,"Science, Technical & Research.Computer services - PROG",PFD*,FINCORE LTD,1836821,"41,078.00"
Home Office,Home Office,02/11/2010,"Science, Technical & Research.Computer services - PROG",PFD*,FINCORE LTD,1836818,"61,481.88"
Home Office,Home Office,03/11/2010,"IT, Broadcasting & Telecomms.IT Running Cost - Maint - PROG",PFD*,ATOS ORIGIN IT SERVICES UK LIMITED- MEDICAL SERVICES,1836746,"1,797,763.69"
Home Office,Home Office,04/11/2010,"IT, Broadcasting & Telecomms.IT Running Cost - Maint - PROG",PFD*,ATOS ORIGIN IT SERVICES UK LIMITED- MEDICAL SERVICES,1813223,"175,032.70"
Home Office,Home Office,04/11/2010,"IT, Broadcasting & Telecomms.IT Running Cost - Maint - PROG",PFD*,ATOS ORIGIN IT SERVICES UK LIMITED- MEDICAL SERVICES,1822489,"175,032.70"
Home Office,Home Office,08/11/2010,"IT, Broadcasting & Telecomms.IT Running Cost - Maint - PROG",PFD*,ATOS ORIGIN IT SERVICES UK LIMITED- MEDICAL SERVICES,1844194,"54,067.82"
Home Office,Home Office,11/11/2010,"IT, Broadcasting & Telecomms.IT Running Cost - Maint - PROG",PFD*,ATOS ORIGIN IT SERVICES UK LIMITED- MEDICAL SERVICES,1844512,"175,032.70"
Home Office,Home Office,26/11/2010,Professional & Admin Services.Facilities management services,PFD*,ANNES GATE PROPERTY PLC,1857897,"48,237.20"
Home Office,Home Office,26/11/2010,Real Estate management Serv.Property Management,PFD*,ANNES GATE PROPERTY PLC,1857948,"3,636,837.89"
Home Office,Home Office,29/11/2010,"IT, Broadcasting & Telecomms.IT Running Cost - Maint - PROG",PFD*,ATOS ORIGIN IT SERVICES UK LIMITED- MEDICAL SERVICES,1857831,"27,292.75"
Home Office,Home Office,29/11/2010,"Science, Technical & Research.Computer services - PROG",PFD*,FINCORE LTD,1851453,"41,078.00"
Home Office,Home Office,29/11/2010,"Science, Technical & Research.Computer services - PROG",PFD*,FINCORE LTD,1851445,"61,481.88"
Home Office,Home Office,30/11/2010,Management & Admin Serv.Temporary managerial staff,PFD*,ADVANTAGE TECHNICAL RESOURCING,1862018,"25,030.32"
Home Office,Home Office,03/11/2010,"Science, Technical & Research.Social Research","Research, Dev & Statistics",UNIVERSITY COLLEGE LONDON,1841549,"34,601.00"
Home Office,Home Office,05/11/2010,"IT, Broadcasting & Telecomms.IT Running Cost - Maint - PROG","Research, Dev & Statistics",VIRGIN MEDIA LTD,1843216,"25,179.59"
Home Office,Home Office,05/11/2010,"Science, Technical & Research.Social Research","Research, Dev & Statistics",RICE UNIVERSITY,1843137,"40,225.50"
Home Office,Home Office,12/11/2010,"Science, Technical & Research.Social Research","Research, Dev & Statistics",CT CENTRE (MOD) T/A DSTL,1825909,"82,446.23"
Home Office,Home Office,16/11/2010,Lab & Scientific Equip (FA).Laboratory & scientific equip,"Research, Dev & Statistics",UNIVERSITY COLLEGE LONDON,1851564,"41,764.38"
Home Office,Home Office,23/11/2010,Professional & Admin Services.Consultant - Imp & Del - PROG,"Research, Dev & Statistics",DTZ DEBENHAM TIE LEUNG LTD,1856563,"39,903.81"
Home Office,Home Office,02/11/2010,"Building, Construction Service.Building ConstructionServ-PROG",SSD - Shared Service Directorate,INTERSERVE FACILITIES MANAGEMENT,1841417,"60,970.16"
Home Office,Home Office,02/11/2010,"Building, Construction Service.Building ConstructionServ-PROG",SSD - Shared Service Directorate,INTERSERVE FACILITIES MANAGEMENT,1840466,"91,125.23"
Home Office,Home Office,02/11/2010,"Building, Construction Service.Building ConstructionServ-PROG",SSD - Shared Service Directorate,INTERSERVE FACILITIES MANAGEMENT,1841464,"32,407.01"
Home Office,Home Office,02/11/2010,"Building, Construction Service.General building construction",SSD - Shared Service Directorate,MANSELL CONSTRUCTION SERVICES LTD,1839599,"156,069.05"
Home Office,Home Office,02/11/2010,Furniture (Not Fixed Asset).Furniture (Not FA) - ADMN,SSD - Shared Service Directorate,CARDIFF BAY OFFICE FURNITURE LTD,1839261,"38,523.39"
Home Office,Home Office,02/11/2010,IT & Telecommunications.IT & Telecommunications,SSD - Shared Service Directorate,BT,1834578,"51,980.73"
Home Office,Home Office,02/11/2010,Management & Admin Serv.Civil Liability Serv - PROG,SSD - Shared Service Directorate,BLAKE LAPTHORN TARLO LYONS,1827076,"29,394.50"
Home Office,Home Office,02/11/2010,Professional & Admin Services.Consultant - Imp & Del - PROG,SSD - Shared Service Directorate,DTZ DEBENHAM TIE LEUNG LTD,1841396,"41,631.13"
Home Office,Home Office,02/11/2010,"Building, Construction Service.Building ConstructionServ-PROG",SSD - Shared Service Directorate,AMEY COMMUNITY,1841458,"133,577.23"
Home Office,Home Office,03/11/2010,"Building, Construction Service.Building ConstructionServ-PROG",SSD - Shared Service Directorate,INTERSERVE FACILITIES MANAGEMENT,1840664,"39,936.33"
Home Office,Home Office,03/11/2010,"Building, Construction Service.General building construction",SSD - Shared Service Directorate,H WATERHOUSE & SONS (WAKEFIELD) LTD,1841705,"58,045.00"
Home Office,Home Office,03/11/2010,"IT, Broadcasting & Telecomms.IT Run Costs Other - ADMN",SSD - Shared Service Directorate,FUJITSU SERVICES LTD,1822010,"710,016.83"
Home Office,Home Office,03/11/2010,Professional & Admin Services.Facilities Man Serv - ADMN,SSD - Shared Service Directorate,AMEY COMMUNITY,1841658,"1,109,391.92"
Home Office,Home Office,03/11/2010,Professional & Admin Services.Facilities Man Serv - ADMN,SSD - Shared Service Directorate,AMEY COMMUNITY,1841649,"813,673.05"
Home Office,Home Office,03/11/2010,Professional & Admin Services.Facilities Man Serv - ADMN,SSD - Shared Service Directorate,INTERSERVE FACILITIES MANAGEMENT,1839583,"747,138.25"
Home Office,Home Office,03/11/2010,Professional & Admin Services.Facilities Man Serv - ADMN,SSD - Shared Service Directorate,INTERSERVE FACILITIES MANAGEMENT,1839567,"628,790.59"
Home Office,Home Office,03/11/2010,Professional & Admin Services.Facilities Man Serv - ADMN,SSD - Shared Service Directorate,INTERSERVE FACILITIES MANAGEMENT,1839576,"541,892.72"
Home Office,Home Office,03/11/2010,Professional & Admin Services.Facilities Man Serv - ADMN,SSD - Shared Service Directorate,AMEY COMMUNITY,1841656,"389,044.99"
Home Office,Home Office,03/11/2010,Professional & Admin Services.Facilities Man Serv - ADMN,SSD - Shared Service Directorate,AMEY COMMUNITY,1841654,"377,677.90"
Home Office,Home Office,03/11/2010,Professional & Admin Services.Facilities Man Serv - ADMN,SSD - Shared Service Directorate,INTERSERVE FACILITIES MANAGEMENT,1839689,"266,203.91"
Home Office,Home Office,03/11/2010,Professional & Admin Services.Facilities Man Serv - ADMN,SSD - Shared Service Directorate,INTERSERVE FACILITIES MANAGEMENT,1839683,"108,759.69"
Home Office,Home Office,03/11/2010,Professional & Admin Services.Facilities Man Serv - ADMN,SSD - Shared Service Directorate,INTERSERVE FACILITIES MANAGEMENT,1839556,"96,519.07"
Home Office,Home Office,03/11/2010,Professional & Admin Services.Facilities Man Serv - ADMN,SSD - Shared Service Directorate,INTERSERVE FACILITIES MANAGEMENT,1841445,"51,063.14"
Home Office,Home Office,03/11/2010,Professional & Admin Services.Facilities Man Serv - ADMN,SSD - Shared Service Directorate,INTERSERVE FACILITIES MANAGEMENT,1841595,"28,858.81"
Home Office,Home Office,04/11/2010,"Building, Construction Service.Building ConstructionServ-ADMN",SSD - Shared Service Directorate,AMEY COMMUNITY,1842393,"82,084.08"
Home Office,Home Office,04/11/2010,"Building, Construction Service.Building ConstructionServ-PROG",SSD - Shared Service Directorate,AMEY COMMUNITY,1842454,"362,042.67"
Home Office,Home Office,04/11/2010,"Building, Construction Service.Building ConstructionServ-PROG",SSD - Shared Service Directorate,INTERSERVE FACILITIES MANAGEMENT,1840487,"67,721.27"
Home Office,Home Office,04/11/2010,"Building, Construction Service.Building ConstructionServ-PROG",SSD - Shared Service Directorate,AMEY COMMUNITY,1842413,"58,666.22"
Home Office,Home Office,04/11/2010,"Building, Construction Service.Building ConstructionServ-PROG",SSD - Shared Service Directorate,AMEY COMMUNITY,1842391,"32,488.95"
Home Office,Home Office,04/11/2010,"Building, Construction Service.Building ConstructionServ-PROG",SSD - Shared Service Directorate,AMEY COMMUNITY,1842431,"40,901.07"
Home Office,Home Office,05/11/2010,"IT, Broadcasting & Telecomms.IT Run Cost � Info Support",SSD - Shared Service Directorate,SAVVIS UK LTD,1825876,"142,458.49"
Home Office,Home Office,05/11/2010,"IT, Broadcasting & Telecomms.IT Run Cost � Info Support",SSD - Shared Service Directorate,SAVVIS UK LTD,1825896,"59,224.29"
Home Office,Home Office,05/11/2010,"IT, Broadcasting & Telecomms.IT Run Cost � Info Support",SSD - Shared Service Directorate,SAVVIS UK LTD,1825824,"36,169.86"
Home Office,Home Office,05/11/2010,Utilities.Electric utilities - ADMN,SSD - Shared Service Directorate,EDF ENERGY,1843219,"82,025.48"
Home Office,Home Office,05/11/2010,Engineering,SSD - Shared Service Directorate,JACOBS ENGINEERING UK,1762778,"27,542.29"
Home Office,Home Office,08/11/2010,"Building, Construction Service.General building construction",SSD - Shared Service Directorate,WATES INTERIORS LTD,1800612,"170,036.55"
Home Office,Home Office,08/11/2010,"Building, Construction Service.General building construction",SSD - Shared Service Directorate,WATES INTERIORS LTD,1826768,"32,292.56"
Home Office,Home Office,08/11/2010,"Building, Construction Service.Maintenance & Repair services",SSD - Shared Service Directorate,INTERSERVE FACILITIES MANAGEMENT,1840459,"37,391.18"
Home Office,Home Office,08/11/2010,Professional & Admin Services.Consultant - Imp & Del - PROG,SSD - Shared Service Directorate,JACOBS ENGINEERING UK,1839235,"61,367.99"
Home Office,Home Office,08/11/2010,Professional & Admin Services.Consultant - Imp & Del - PROG,SSD - Shared Service Directorate,DTZ DEBENHAM TIE LEUNG LTD,1844426,"342,602.60"
Home Office,Home Office,08/11/2010,Professional & Admin Services.Consultant - Imp & Del - PROG,SSD - Shared Service Directorate,DTZ DEBENHAM TIE LEUNG LTD,1845351,"35,232.06"
Home Office,Home Office,09/11/2010,"Building, Construction Service.Building ConstructionServ-PROG",SSD - Shared Service Directorate,INTERSERVE FACILITIES MANAGEMENT,1840834,"85,714.97"
Home Office,Home Office,09/11/2010,"IT, Broadcasting & Telecomms.IT Run Costs Other - ADMN",SSD - Shared Service Directorate,VODAFONE LTD,1826575,"29,375.00"
Home Office,Home Office,10/11/2010,"Building, Construction Service.Building ConstructionServ-PROG",SSD - Shared Service Directorate,AMEY COMMUNITY,1846976,"55,616.75"
Home Office,Home Office,10/11/2010,Professional & Admin Services.Facilities Man Serv - ADMN,SSD - Shared Service Directorate,INTERSERVE FACILITIES MANAGEMENT,1846980,"36,873.43"
Home Office,Home Office,11/11/2010,"IT, Broadcasting & Telecomms.Personal Comms Devices - PROG",SSD - Shared Service Directorate,GLOBAL CROSSING,1829586,"68,001.01"
Home Office,Home Office,11/11/2010,Professional & Admin Services.Consultant - Imp & Del - PROG,SSD - Shared Service Directorate,JACOBS ENGINEERING UK,1839242,"93,363.35"
Home Office,Home Office,11/11/2010,Professional & Admin Services.Consultant - Imp & Del - PROG,SSD - Shared Service Directorate,JACOBS ENGINEERING UK,1839370,"32,118.62"
Home Office,Home Office,11/11/2010,Utilities.Telephone Comms - PROG,SSD - Shared Service Directorate,GLOBAL CROSSING,1828818,"40,211.44"
Home Office,Home Office,12/11/2010,Generators & Equip (FA).Plant & machinery (FA),SSD - Shared Service Directorate,BRITISH GAS,1831346,"265,388.65"
Home Office,Home Office,12/11/2010,Professional & Admin Services.Land Blding & Prop Serv - ADMN,SSD - Shared Service Directorate,JACOBS ENGINEERING UK,1843535,"27,542.29"
Home Office,Home Office,15/11/2010,"Building, Construction Service.Interior finishing - PROG",SSD - Shared Service Directorate,INTERSERVE FACILITIES MANAGEMENT,1840516,"28,972.46"
Home Office,Home Office,15/11/2010,"Transport, Storage & Mail Serv.Mailing, Mail Delivery Service",SSD - Shared Service Directorate,CENTRAL DESPATCH,1850377,"26,906.89"
Home Office,Home Office,15/11/2010,Professional & Admin Services.Consultant - Imp & Del - PROG,SSD - Shared Service Directorate,DTZ DEBENHAM TIE LEUNG LTD,1850525,"94,281.48"
Home Office,Home Office,15/11/2010,Professional & Admin Services.Consultant - Imp & Del - PROG,SSD - Shared Service Directorate,DTZ DEBENHAM TIE LEUNG LTD,1850492,"71,278.02"
Home Office,Home Office,16/11/2010,Public Utilities.Service Charges - ADMN,SSD - Shared Service Directorate,IDENTITY & PASSPORTS SERVICE,1833280,"97,230.99"
Home Office,Home Office,16/11/2010,Public Utilities.Service Charges - ADMN,SSD - Shared Service Directorate,IDENTITY & PASSPORTS SERVICE,1833282,"31,827.85"
Home Office,Home Office,16/11/2010,"Building, Construction Service.Building ConstructionServ-PROG",SSD - Shared Service Directorate,AMEY COMMUNITY,1852368,"43,562.34"
Home Office,Home Office,17/11/2010,"Building, Construction Service.Building ConstructionServ-PROG",SSD - Shared Service Directorate,AMEY COMMUNITY,1852676,"38,699.33"
Home Office,Home Office,18/11/2010,Storage & Mail Services.Messenger & Reception Services,SSD - Shared Service Directorate,EDF TRADING LTD,1838857,"56,663.20"
Home Office,Home Office,19/11/2010,Professional & Admin Services.Consultant - Imp & Del - PROG,SSD - Shared Service Directorate,WARWICKSHIRE POLICE AUTHORITY,1855314,"261,329.40"
Home Office,Home Office,19/11/2010,"Transport, Storage & Mail Serv.Mailing, Mail Delivery Service",SSD - Shared Service Directorate,CENTRAL DESPATCH,1855317,"33,238.96"
Home Office,Home Office,22/11/2010,"Building, Construction Service.Building ConstructionServ-PROG",SSD - Shared Service Directorate,INTERSERVE FACILITIES MANAGEMENT,1855489,"69,923.22"
Home Office,Home Office,22/11/2010,"Building, Construction Service.Building ConstructionServ-PROG",SSD - Shared Service Directorate,INTERSERVE FACILITIES MANAGEMENT,1855493,"34,766.31"
Home Office,Home Office,22/11/2010,"Building, Construction Service.General building construction",SSD - Shared Service Directorate,NEW HALL PLACE UNIT TRUST,1849192,"1,125,721.71"
Home Office,Home Office,22/11/2010,"IT, Broadcasting & Telecomms.IT Maintenance - ADMN",SSD - Shared Service Directorate,HEWLETT PACKARD,1838492,"196,744.07"
Home Office,Home Office,22/11/2010,Management & Admin Serv.Temp IT N/w Specialists - ADMN,SSD - Shared Service Directorate,LA INTERNATIONAL,1852603,"33,484.15"
Home Office,Home Office,22/11/2010,Professional & Admin Services.Consultant - Imp & Del - PROG,SSD - Shared Service Directorate,JACOBS ENGINEERING UK,1849108,"62,912.77"
Home Office,Home Office,22/11/2010,Professional & Admin Services.Consultant - Imp & Del - PROG,SSD - Shared Service Directorate,DTZ DEBENHAM TIE LEUNG LTD,1855620,"1,975,285.42"
Home Office,Home Office,22/11/2010,Professional & Admin Services.Facilities Man Serv - ADMN,SSD - Shared Service Directorate,INTERSERVE FACILITIES MANAGEMENT,1855626,"36,448.20"
Home Office,Home Office,23/11/2010,IT & Telecommunications.IT & Telecommunications,SSD - Shared Service Directorate,FUJITSU SERVICES (ALCEDO) LTD,1839259,"237,620.96"
Home Office,Home Office,23/11/2010,IT & Telecommunications.IT & Telecommunications,SSD - Shared Service Directorate,FUJITSU SERVICES (ALCEDO) LTD,1839266,"26,619.06"
Home Office,Home Office,23/11/2010,IT & Telecommunications.IT & Telecommunications - ADMN,SSD - Shared Service Directorate,FUJITSU SERVICES (ALCEDO) LTD,1839268,"43,840.42"
Home Office,Home Office,23/11/2010,"IT, Broadcasting & Telecomms.IT Maintenance - ADMN",SSD - Shared Service Directorate,HEWLETT PACKARD,1839246,"213,948.55"
Home Office,Home Office,23/11/2010,"IT, Broadcasting & Telecomms.IT Maintenance - ADMN",SSD - Shared Service Directorate,HEWLETT PACKARD,1830827,"136,295.30"
Home Office,Home Office,23/11/2010,"IT, Broadcasting & Telecomms.IT Maintenance - ADMN",SSD - Shared Service Directorate,HEWLETT PACKARD,1839196,"135,466.97"
Home Office,Home Office,23/11/2010,"IT, Broadcasting & Telecomms.IT Running Cost - Maint - PROG",SSD - Shared Service Directorate,SERCO  LTD,1839669,"615,067.85"
Home Office,Home Office,23/11/2010,"IT, Broadcasting & Telecomms.Sirius - Applications",SSD - Shared Service Directorate,FUJITSU SERVICES (ALCEDO) LTD,1839270,"154,595.92"
Home Office,Home Office,23/11/2010,"IT, Broadcasting & Telecomms.Software - ADMN",SSD - Shared Service Directorate,FUJITSU SERVICES (ALCEDO) LTD,1839341,"240,311.00"
Home Office,Home Office,23/11/2010,"IT, Broadcasting & Telecomms.Software - ADMN",SSD - Shared Service Directorate,FUJITSU SERVICES (ALCEDO) LTD,1839256,"77,575.62"
Home Office,Home Office,23/11/2010,"Professional & Admin Services.Corporate, Business IT Service",SSD - Shared Service Directorate,DETICA LTD,1856922,"74,730.00"
Home Office,Home Office,23/11/2010,Professional & Admin Services.Consultant - Imp & Del - PROG,SSD - Shared Service Directorate,DTZ DEBENHAM TIE LEUNG LTD,1856939,"1,506,548.06"
Home Office,Home Office,23/11/2010,Professional & Admin Services.Consultant - Imp & Del - PROG,SSD - Shared Service Directorate,DTZ DEBENHAM TIE LEUNG LTD,1856790,"2,009,890.13"
Home Office,Home Office,23/11/2010,Professional & Admin Services.Consultant - Imp & Del - PROG,SSD - Shared Service Directorate,DTZ DEBENHAM TIE LEUNG LTD,1856936,"120,437.50"
Home Office,Home Office,23/11/2010,Professional & Admin Services.Consultant - Imp & Del - PROG,SSD - Shared Service Directorate,DTZ DEBENHAM TIE LEUNG LTD,1856942,"27,891.45"
Home Office,Home Office,24/11/2010,"Building, Construction Service.General building construction",SSD - Shared Service Directorate,HERMAN MILLER LTD,1858668,"67,974.69"
Home Office,Home Office,24/11/2010,"IT, Broadcasting & Telecomms.IT Maintenance - ADMN",SSD - Shared Service Directorate,HEWLETT PACKARD,1839204,"212,908.60"
Home Office,Home Office,24/11/2010,"Transport, Storage & Mail Serv.File (Archive) Storage - ADMN",SSD - Shared Service Directorate,TNT UK LIMITED,1857757,"34,956.60"
Home Office,Home Office,24/11/2010,Professional & Admin Services.Facilities Man Serv - ADMN,SSD - Shared Service Directorate,INTERSERVE FACILITIES MANAGEMENT,1857499,"71,237.91"
Home Office,Home Office,25/11/2010,Professional & Admin Services.Consultant - Imp & Del - PROG,SSD - Shared Service Directorate,DRIVERS JONAS DELOITTE,1786825,"26,029.36"
Home Office,Home Office,25/11/2010,"Building, Construction Service.Building ConstructionServ-PROG",SSD - Shared Service Directorate,AMEY COMMUNITY,1859592,"36,812.68"
Home Office,Home Office,26/11/2010,"Building, Construction Service.General building construction",SSD - Shared Service Directorate,GALLIFORD TRY CONSTRUCTION LIMITED SOUTH,1857426,"253,591.84"
Home Office,Home Office,26/11/2010,"Building, Construction Service.General building construction",SSD - Shared Service Directorate,HERMAN MILLER LTD,1859041,"129,588.68"
Home Office,Home Office,26/11/2010,IT & Telecommunications.IT & Telecommunications,SSD - Shared Service Directorate,FUJITSU SERVICES (ALCEDO) LTD,1841756,"440,979.85"
Home Office,Home Office,26/11/2010,"IT, Broadcasting & Telecomms.IT Run Costs Other - ADMN",SSD - Shared Service Directorate,FUJITSU SERVICES LTD,1841765,"674,273.17"
Home Office,Home Office,26/11/2010,"IT, Broadcasting & Telecomms.Sirius - Other Services - ADMN",SSD - Shared Service Directorate,FUJITSU SERVICES (ALCEDO) LTD,1841763,"32,900.00"
Home Office,Home Office,26/11/2010,"IT, Broadcasting & Telecomms.Software - ADMN",SSD - Shared Service Directorate,FUJITSU SERVICES (ALCEDO) LTD,1841757,"41,280.73"
Home Office,Home Office,26/11/2010,Professional & Admin Services.Consultant - Imp & Del - PROG,SSD - Shared Service Directorate,DRIVERS JONAS DELOITTE,1762267,"27,355.92"
Home Office,Home Office,26/11/2010,Professional & Admin Services.Facilities Man Serv - ADMN,SSD - Shared Service Directorate,INTERSERVE FACILITIES MANAGEMENT,1857406,"757,478.25"
Home Office,Home Office,26/11/2010,Professional & Admin Services.Facilities Man Serv - ADMN,SSD - Shared Service Directorate,INTERSERVE FACILITIES MANAGEMENT,1857409,"635,693.72"
Home Office,Home Office,26/11/2010,Professional & Admin Services.Facilities Man Serv - ADMN,SSD - Shared Service Directorate,INTERSERVE FACILITIES MANAGEMENT,1857407,"549,530.22"
Home Office,Home Office,26/11/2010,Professional & Admin Services.Facilities Man Serv - ADMN,SSD - Shared Service Directorate,INTERSERVE FACILITIES MANAGEMENT,1857413,"266,203.91"
Home Office,Home Office,26/11/2010,Professional & Admin Services.Facilities Man Serv - ADMN,SSD - Shared Service Directorate,INTERSERVE FACILITIES MANAGEMENT,1857412,"108,759.69"
Home Office,Home Office,26/11/2010,Professional & Admin Services.Facilities Man Serv - ADMN,SSD - Shared Service Directorate,INTERSERVE FACILITIES MANAGEMENT,1857410,"96,519.07"
Home Office,Home Office,26/11/2010,"Building, Construction Service.Building ConstructionServ-PROG",SSD - Shared Service Directorate,AMEY COMMUNITY,1860107,"137,549.37"
Home Office,Home Office,29/11/2010,Professional & Admin Services.Facilities Man Serv - ADMN,SSD - Shared Service Directorate,ATKINS LTD,1857428,"191,303.92"
Home Office,Home Office,29/11/2010,Professional & Admin Services.Facilities Man Serv - ADMN,SSD - Shared Service Directorate,INTERSERVE FACILITIES MANAGEMENT,1861068,"28,723.02"
Home Office,Home Office,30/11/2010,"Building, Construction Service.Building ConstructionServ-PROG",SSD - Shared Service Directorate,GALLIFORD TRY,1861870,"72,870.94"
Home Office,Home Office,30/11/2010,"Building, Construction Service.Building ConstructionServ-PROG",SSD - Shared Service Directorate,INTERSERVE FACILITIES MANAGEMENT,1861932,"112,071.11"
Home Office,Home Office,30/11/2010,"Building, Construction Service.Building ConstructionServ-PROG",SSD - Shared Service Directorate,INTERSERVE FACILITIES MANAGEMENT,1841386,"66,001.68"
Home Office,Home Office,25/10/2010,Other Gov't Dept. -Request For Transfer,UKBA - UK Border Agency,MINISTRY OF JUSTICE,1838458,"94,706.32"
Home Office,Home Office,10/11/2010,Other Gov't Dept. -Request For Transfer,UKBA - UK Border Agency,HOMES & COMMUNITIES AGENCY,1851573,"152,089.65"
Home Office,IPCC - Independent Police Complaints Commission,01/11/2010,IT,IPCC - Independent Police Complaints Commission,STERIA,RCT0034250,"31,137.50"
Home Office,IPCC - Independent Police Complaints Commission,01/11/2010,IT,IPCC - Independent Police Complaints Commission,STERIA,RCT0034250,"25,947.02"
Home Office,IPCC - Independent Police Complaints Commission,01/11/2010,Facilities,IPCC - Independent Police Complaints Commission,Acropolis Properties Ltd,RCT0034258,"26,961.84"
Home Office,IPCC - Independent Police Complaints Commission,01/11/2010,IT,IPCC - Independent Police Complaints Commission,STERIA,RCT0034244,"32,581.58"
Home Office,IPCC - Independent Police Complaints Commission,01/11/2010,IT,IPCC - Independent Police Complaints Commission,STERIA,RCT0034250,"331,878.00"
Home Office,IPCC - Independent Police Complaints Commission,16/11/2010,Facilities,IPCC - Independent Police Complaints Commission,WM MORRISON SUPERMARKETS PLC,RCT0034412,"30,843.75"
Home Office,IPS - Identity & Passport Service,02/11/2010,Contracted Staff,IPS - Identity & Passport Service,Capita Resourcing Ltd,136068,"47,831.31"
Home Office,IPS - Identity & Passport Service,05/11/2010,Software & Licenses,IPS - Identity & Passport Service,CSC COMPUTER SCIENCES LTD,136098,"232,493.03"
Home Office,IPS - Identity & Passport Service,05/11/2010,Passport Printing,IPS - Identity & Passport Service,Security Printing Systems Ltd,136109,"868,528.31"
Home Office,IPS - Identity & Passport Service,05/11/2010,Other Government Departments,IPS - Identity & Passport Service,Home Office,136110,"80,032.25"
Home Office,IPS - Identity & Passport Service,05/11/2010,Contact Centre,IPS - Identity & Passport Service,MM TELEPERFORMANCE,136113,"481,149.40"
Home Office,IPS - Identity & Passport Service,09/11/2010,Software & Licenses,IPS - Identity & Passport Service,CSC COMPUTER SCIENCES LTD,136137,"361,870.41"
Home Office,IPS - Identity & Passport Service,09/11/2010,Legal Fees,IPS - Identity & Passport Service,Field Fisher Waterhouse LLP,136142,"37,916.82"
Home Office,IPS - Identity & Passport Service,09/11/2010,Other Government Departments,IPS - Identity & Passport Service,Home Office,136145,"44,867.54"
Home Office,IPS - Identity & Passport Service,09/11/2010,Passport Processing,IPS - Identity & Passport Service,Siemens Business Services Ltd,136156,"69,685.31"
Home Office,IPS - Identity & Passport Service,09/11/2010,Passports - Secure Mail,IPS - Identity & Passport Service,SECURE MAIL SERVICES LIMITED,136157,"635,673.84"
Home Office,IPS - Identity & Passport Service,09/11/2010,IT Development,IPS - Identity & Passport Service,Thales,136159,"2,872,444.95"
Home Office,IPS - Identity & Passport Service,12/11/2010,Software & Licenses,IPS - Identity & Passport Service,CSC COMPUTER SCIENCES LTD,136174,"519,997.44"
Home Office,IPS - Identity & Passport Service,12/11/2010,Passport Printing,IPS - Identity & Passport Service,Security Printing Systems Ltd,136179,"671,978.77"
Home Office,IPS - Identity & Passport Service,12/11/2010,Translation Services and Inter,IPS - Identity & Passport Service,PRESTIGE NETWORK LTD,136190,"28,181.17"
Home Office,IPS - Identity & Passport Service,12/11/2010,Brochures,IPS - Identity & Passport Service,RUFUS LEONARD LTD,136194,"48,516.11"
Home Office,IPS - Identity & Passport Service,16/11/2010,Passport Stationery,IPS - Identity & Passport Service,ADARE LTD,136201,"27,366.49"
Home Office,IPS - Identity & Passport Service,16/11/2010,Software & Licenses,IPS - Identity & Passport Service,CSC COMPUTER SCIENCES LTD,136209,"2,080,786.35"
Home Office,IPS - Identity & Passport Service,16/11/2010,Passport Printing,IPS - Identity & Passport Service,Security Printing Systems Ltd,136218,"32,873.54"
Home Office,IPS - Identity & Passport Service,16/11/2010,Other Government Departments,IPS - Identity & Passport Service,Home Office,136219,"3,860,055.90"
Home Office,IPS - Identity & Passport Service,16/11/2010,Contact Centre,IPS - Identity & Passport Service,MM TELEPERFORMANCE,136223,"116,049.18"
Home Office,IPS - Identity & Passport Service,16/11/2010,Passports - Secure Mail,IPS - Identity & Passport Service,SECURE MAIL SERVICES LIMITED,136233,"487,663.74"
Home Office,IPS - Identity & Passport Service,16/11/2010,Consultancy & Professional Ser,IPS - Identity & Passport Service,Steria Limited,136234,"78,829.58"
Home Office,IPS - Identity & Passport Service,19/11/2010,Passport Stationery,IPS - Identity & Passport Service,ADARE LTD,136240,"89,687.39"
Home Office,IPS - Identity & Passport Service,19/11/2010,Other Government Departments,IPS - Identity & Passport Service,Benefits Agency,136245,"112,793.28"
Home Office,IPS - Identity & Passport Service,19/11/2010,Office Stationery,IPS - Identity & Passport Service,Canon (UK) Ltd,136247,"36,634.60"
Home Office,IPS - Identity & Passport Service,19/11/2010,Contracted Staff,IPS - Identity & Passport Service,Capita Resourcing Ltd,136248,"30,749.13"
Home Office,IPS - Identity & Passport Service,19/11/2010,Software & Licenses,IPS - Identity & Passport Service,CSC COMPUTER SCIENCES LTD,136253,"66,926.85"
Home Office,IPS - Identity & Passport Service,19/11/2010,Passport Printing,IPS - Identity & Passport Service,Security Printing Systems Ltd,136261,"785,027.66"
Home Office,IPS - Identity & Passport Service,19/11/2010,Consultancy & Professional Ser,IPS - Identity & Passport Service,PA Consulting Group,136268,"233,019.33"
Home Office,IPS - Identity & Passport Service,23/11/2010,Contracted Staff,IPS - Identity & Passport Service,Capita Resourcing Ltd,136279,"44,793.83"
Home Office,IPS - Identity & Passport Service,23/11/2010,Passport Printing,IPS - Identity & Passport Service,Security Printing Systems Ltd,136289,"33,354.07"
Home Office,IPS - Identity & Passport Service,23/11/2010,Accommodation,IPS - Identity & Passport Service,Mapeley ABI Provider Limited,136291,"118,949.50"
Home Office,IPS - Identity & Passport Service,23/11/2010,Passports - Secure Mail,IPS - Identity & Passport Service,SECURE MAIL SERVICES LIMITED,136296,"75,938.79"
Home Office,IPS - Identity & Passport Service,23/11/2010,IT Development,IPS - Identity & Passport Service,Thales,136299,"58,750.00"
Home Office,IPS - Identity & Passport Service,26/11/2010,Contracted Staff,IPS - Identity & Passport Service,Capita Resourcing Ltd,136308,"81,705.52"
Home Office,IPS - Identity & Passport Service,26/11/2010,Software & Licenses,IPS - Identity & Passport Service,CSC COMPUTER SCIENCES LTD,136315,"75,965.22"
Home Office,IPS - Identity & Passport Service,26/11/2010,Passport Printing,IPS - Identity & Passport Service,De La Rue International Ltd,136316,"1,089,013.50"
Home Office,IPS - Identity & Passport Service,26/11/2010,Passport Printing,IPS - Identity & Passport Service,Security Printing Systems Ltd,136322,"624,713.13"
Home Office,IPS - Identity & Passport Service,26/11/2010,Other Government Departments,IPS - Identity & Passport Service,Home Office,136324,"63,467.93"
Home Office,IPS - Identity & Passport Service,26/11/2010,Facilities Management,IPS - Identity & Passport Service,Interserve,136326,"65,772.03"
Home Office,IPS - Identity & Passport Service,26/11/2010,Accommodation,IPS - Identity & Passport Service,Mapeley ABI Provider Limited,136330,"141,648.13"
Home Office,IPS - Identity & Passport Service,30/11/2010,Software & Licenses,IPS - Identity & Passport Service,CSC COMPUTER SCIENCES LTD,136355,"494,158.54"
Home Office,IPS - Identity & Passport Service,30/11/2010,Training Facilities,IPS - Identity & Passport Service,Duncan Macquarrie Associates L,136356,"29,375.00"
Home Office,IPS - Identity & Passport Service,30/11/2010,Contact Centre,IPS - Identity & Passport Service,MM TELEPERFORMANCE,136366,"533,708.68"
Home Office,IPS - Identity & Passport Service,30/11/2010,Facilities Management,IPS - Identity & Passport Service,Siemens Real Estate Ltd,136373,"344,126.22"
Home Office,ISA - Independent Safeguarding Authority,03/11/2010,IT Support Costs,ISA - Independent Safeguarding Authority,Home Office,2902,"56,657.39"
Home Office,ISA - Independent Safeguarding Authority,03/11/2010,Training Costs Ops Accreditation,ISA - Independent Safeguarding Authority,University of Teesside,2909,"28,575.00"
Home Office,ISA - Independent Safeguarding Authority,04/11/2010,IT Support Costs,ISA - Independent Safeguarding Authority,Home Office,2914,"47,491.38"
Home Office,NPIA - National Policing Improvement Agency,01/11/2010,Conference costs,CEO Directorate,Calder Conferences,5100047710,"99,594.06"
Home Office,NPIA - National Policing Improvement Agency,01/11/2010,Conference costs,CEO Directorate,Calder Conferences,5100047710,"1,742.90"
Home Office,NPIA - National Policing Improvement Agency,01/11/2010,IT Managed Services,ICTS Directorate,Cogent Inc,5100044223,"347,554.00"
Home Office,NPIA - National Policing Improvement Agency,01/11/2010,IT software,ICTS Directorate,Northgate Information Solutions UK,5100047639,"97,232.85"
Home Office,NPIA - National Policing Improvement Agency,01/11/2010,IT software,ICTS Directorate,Northgate Information Solutions UK,5100047639,0.15
Home Office,NPIA - National Policing Improvement Agency,03/11/2010,IT Managed Services,ICTS Directorate,Northgate Information Solutions UK,5100047722,"38,745.00"
Home Office,NPIA - National Policing Improvement Agency,03/11/2010,IT software,ICTS Directorate,Northgate Information Solutions UK,5100047744,"503,555.51"
Home Office,NPIA - National Policing Improvement Agency,03/11/2010,IT software,ICTS Directorate,Northgate Information Solutions UK,5100047744,-291.51
Home Office,NPIA - National Policing Improvement Agency,03/11/2010,IT Managed Services,ICTS Directorate,UNISYS Ltd,5100047808,"72,539.00"
Home Office,NPIA - National Policing Improvement Agency,08/11/2010,IT Hardware,ICTS Directorate,Logica CMG UK Ltd,5100047819,"389,862.00"
Home Office,NPIA - National Policing Improvement Agency,12/11/2010,IT Hardware,ICTS Directorate,Specialist Computer Centres PLC,5100047825,"32,819.46"
Home Office,NPIA - National Policing Improvement Agency,12/11/2010,IT Hardware,ICTS Directorate,Specialist Computer Centres PLC,5100047825,"4,553.31"
Home Office,NPIA - National Policing Improvement Agency,12/11/2010,IT Hardware,ICTS Directorate,Specialist Computer Centres PLC,5100047825,"4,932.84"
Home Office,NPIA - National Policing Improvement Agency,12/11/2010,IT Hardware,ICTS Directorate,Specialist Computer Centres PLC,5100047825,"18,754.56"
Home Office,NPIA - National Policing Improvement Agency,12/11/2010,IT Hardware,ICTS Directorate,Specialist Computer Centres PLC,5100047825,"2,601.75"
Home Office,NPIA - National Policing Improvement Agency,12/11/2010,IT Hardware,ICTS Directorate,Specialist Computer Centres PLC,5100047825,"1,518.11"
Home Office,NPIA - National Policing Improvement Agency,12/11/2010,IT Hardware,ICTS Directorate,Specialist Computer Centres PLC,5100047825,"5,341.88"
Home Office,NPIA - National Policing Improvement Agency,15/11/2010,Rent of telephone exchange,ICTS Directorate,BT Global Services,1900058295,"50,742.57"
Home Office,NPIA - National Policing Improvement Agency,15/11/2010,Telephone charges,ICTS Directorate,BT Plc,1900058494,"43,779.12"
Home Office,NPIA - National Policing Improvement Agency,15/11/2010,Telephone charges,ICTS Directorate,BT Plc,1900058494,54.86
Home Office,NPIA - National Policing Improvement Agency,15/11/2010,Rent of telephone exchange,ICTS Directorate,Cable & Wireless Communications,1900058584,"23,529.69"
Home Office,NPIA - National Policing Improvement Agency,17/11/2010,IT software,ICTS Directorate,Specialist Computer Centres PLC,5100047609,"8,420.94"
Home Office,NPIA - National Policing Improvement Agency,17/11/2010,IT software,ICTS Directorate,Specialist Computer Centres PLC,5100047609,778.11
Home Office,NPIA - National Policing Improvement Agency,17/11/2010,IT software,ICTS Directorate,Specialist Computer Centres PLC,5100047609,"10,896.82"
Home Office,NPIA - National Policing Improvement Agency,17/11/2010,IT software,ICTS Directorate,Specialist Computer Centres PLC,5100047609,"1,964.88"
Home Office,NPIA - National Policing Improvement Agency,17/11/2010,IT software,ICTS Directorate,Specialist Computer Centres PLC,5100047609,"2,593.49"
Home Office,NPIA - National Policing Improvement Agency,17/11/2010,IT software,ICTS Directorate,Specialist Computer Centres PLC,5100047609,518.75
Home Office,NPIA - National Policing Improvement Agency,17/11/2010,IT Managed Services,ICTS Directorate,Northgate Information Solutions UK,5100047746,"30,081.00"
Home Office,NPIA - National Policing Improvement Agency,17/11/2010,IT Hardware,ICTS Directorate,Logica CMG UK Ltd,5100048407,"223,438.00"
Home Office,NPIA - National Policing Improvement Agency,18/11/2010,IT maintenance,ICTS Directorate,Siemens Enterprise Comm Ltd,5100047806,"30,324.00"
Home Office,NPIA - National Policing Improvement Agency,18/11/2010,IT maintenance,ICTS Directorate,Siemens Enterprise Comm Ltd,5100047806,"145,467.96"
Home Office,NPIA - National Policing Improvement Agency,22/11/2010,IT Managed Services,ICTS Directorate,Cable & Wireless Communications,5100046830,"9,517.50"
Home Office,NPIA - National Policing Improvement Agency,22/11/2010,IT Managed Services,ICTS Directorate,Cable & Wireless Communications,5100046830,148.75
Home Office,NPIA - National Policing Improvement Agency,22/11/2010,IT Managed Services,ICTS Directorate,Cable & Wireless Communications,5100046830,"8,550.00"
Home Office,NPIA - National Policing Improvement Agency,22/11/2010,IT Managed Services,ICTS Directorate,Cable & Wireless Communications,5100046830,149.62
Home Office,NPIA - National Policing Improvement Agency,22/11/2010,IT Managed Services,ICTS Directorate,Cable & Wireless Communications,5100046830,"2,995.00"
Home Office,NPIA - National Policing Improvement Agency,22/11/2010,IT Managed Services,ICTS Directorate,Cable & Wireless Communications,5100046830,52.41
Home Office,NPIA - National Policing Improvement Agency,22/11/2010,IT Managed Services,ICTS Directorate,Cable & Wireless Communications,5100046830,"2,600.00"
Home Office,NPIA - National Policing Improvement Agency,22/11/2010,IT Managed Services,ICTS Directorate,Cable & Wireless Communications,5100046830,45.5
Home Office,NPIA - National Policing Improvement Agency,22/11/2010,IT Managed Services,ICTS Directorate,Cable & Wireless Communications,5100046830,809
Home Office,NPIA - National Policing Improvement Agency,22/11/2010,IT Managed Services,ICTS Directorate,Cable & Wireless Communications,5100046830,14.16
Home Office,NPIA - National Policing Improvement Agency,22/11/2010,IT Managed Services,ICTS Directorate,Cable & Wireless Communications,5100046830,"18,000.00"
Home Office,NPIA - National Policing Improvement Agency,22/11/2010,IT Managed Services,ICTS Directorate,Cable & Wireless Communications,5100046830,315
Home Office,NPIA - National Policing Improvement Agency,22/11/2010,IT Managed Services,ICTS Directorate,Cable & Wireless Communications,5100046830,"16,000.00"
Home Office,NPIA - National Policing Improvement Agency,22/11/2010,IT Managed Services,ICTS Directorate,Cable & Wireless Communications,5100046830,280
Home Office,NPIA - National Policing Improvement Agency,22/11/2010,IT Managed Services,ICTS Directorate,Cable & Wireless Communications,5100046830,"16,195.00"
Home Office,NPIA - National Policing Improvement Agency,22/11/2010,IT Managed Services,ICTS Directorate,Cable & Wireless Communications,5100046830,283.41
Home Office,NPIA - National Policing Improvement Agency,22/11/2010,IT Managed Services,ICTS Directorate,Cable & Wireless Communications,5100046830,"38,250.00"
Home Office,NPIA - National Policing Improvement Agency,22/11/2010,IT Managed Services,ICTS Directorate,Cable & Wireless Communications,5100046830,669.38
Home Office,NPIA - National Policing Improvement Agency,22/11/2010,IT Managed Services,ICTS Directorate,Cable & Wireless Communications,5100047833,809
Home Office,NPIA - National Policing Improvement Agency,22/11/2010,IT Managed Services,ICTS Directorate,Cable & Wireless Communications,5100047833,14.16
Home Office,NPIA - National Policing Improvement Agency,22/11/2010,IT Managed Services,ICTS Directorate,Cable & Wireless Communications,5100047833,"6,450.00"
Home Office,NPIA - National Policing Improvement Agency,22/11/2010,IT Managed Services,ICTS Directorate,Cable & Wireless Communications,5100047833,112.87
Home Office,NPIA - National Policing Improvement Agency,22/11/2010,IT Managed Services,ICTS Directorate,Cable & Wireless Communications,5100047833,"12,750.00"
Home Office,NPIA - National Policing Improvement Agency,22/11/2010,IT Managed Services,ICTS Directorate,Cable & Wireless Communications,5100047833,223.12
Home Office,NPIA - National Policing Improvement Agency,22/11/2010,IT Managed Services,ICTS Directorate,Cable & Wireless Communications,5100047833,"10,000.00"
Home Office,NPIA - National Policing Improvement Agency,22/11/2010,IT Managed Services,ICTS Directorate,Cable & Wireless Communications,5100047833,175
Home Office,NPIA - National Policing Improvement Agency,22/11/2010,IT Managed Services,ICTS Directorate,Cable & Wireless Communications,5100047833,"16,195.00"
Home Office,NPIA - National Policing Improvement Agency,22/11/2010,IT Managed Services,ICTS Directorate,Cable & Wireless Communications,5100047833,283.41
Home Office,NPIA - National Policing Improvement Agency,22/11/2010,IT Managed Services,ICTS Directorate,Cable & Wireless Communications,5100047833,"2,995.00"
Home Office,NPIA - National Policing Improvement Agency,22/11/2010,IT Managed Services,ICTS Directorate,Cable & Wireless Communications,5100047833,52.42
Home Office,NPIA - National Policing Improvement Agency,25/11/2010,Telephone charges,ICTS Directorate,OGC Buying Solutions,1900058304,"192,693.36"
Home Office,NPIA - National Policing Improvement Agency,25/11/2010,IT Managed Services,ICTS Directorate,Logica CMG UK Ltd,5100048505,"277,000.00"
Home Office,NPIA - National Policing Improvement Agency,25/11/2010,IT Managed Services,ICTS Directorate,Logica CMG UK Ltd,5100048505,"277,000.00"
Home Office,NPIA - National Policing Improvement Agency,25/11/2010,IT Managed Services,ICTS Directorate,Logica CMG UK Ltd,5100048505,"277,000.00"
Home Office,NPIA - National Policing Improvement Agency,25/11/2010,IT Managed Services,ICTS Directorate,Logica CMG UK Ltd,5100048505,"277,000.00"
Home Office,NPIA - National Policing Improvement Agency,25/11/2010,IT Managed Services,ICTS Directorate,Logica CMG UK Ltd,5100048505,"277,000.00"
Home Office,NPIA - National Policing Improvement Agency,25/11/2010,IT Managed Services,ICTS Directorate,Logica CMG UK Ltd,5100048506,"277,000.00"
Home Office,NPIA - National Policing Improvement Agency,25/11/2010,IT Managed Services,ICTS Directorate,Logica CMG UK Ltd,5100048507,"-65,372.00"
Home Office,NPIA - National Policing Improvement Agency,25/11/2010,IT Managed Services,ICTS Directorate,Logica CMG UK Ltd,5100048507,67.2
Home Office,NPIA - National Policing Improvement Agency,25/11/2010,IT Managed Services,ICTS Directorate,Logica CMG UK Ltd,5100048507,"-65,372.00"
Home Office,NPIA - National Policing Improvement Agency,25/11/2010,IT Managed Services,ICTS Directorate,Logica CMG UK Ltd,5100048507,67.2
Home Office,NPIA - National Policing Improvement Agency,25/11/2010,IT Managed Services,ICTS Directorate,Logica CMG UK Ltd,5100048507,"-65,372.00"
Home Office,NPIA - National Policing Improvement Agency,25/11/2010,IT Managed Services,ICTS Directorate,Logica CMG UK Ltd,5100048507,67.2
Home Office,NPIA - National Policing Improvement Agency,25/11/2010,IT Managed Services,ICTS Directorate,Logica CMG UK Ltd,5100048507,"-65,372.00"
Home Office,NPIA - National Policing Improvement Agency,25/11/2010,IT Managed Services,ICTS Directorate,Logica CMG UK Ltd,5100048507,67.2
Home Office,NPIA - National Policing Improvement Agency,25/11/2010,IT Managed Services,ICTS Directorate,Logica CMG UK Ltd,5100048507,"-65,372.00"
Home Office,NPIA - National Policing Improvement Agency,25/11/2010,IT Managed Services,ICTS Directorate,Logica CMG UK Ltd,5100048507,67.2
Home Office,NPIA - National Policing Improvement Agency,26/11/2010,Rent of telephone exchange,ICTS Directorate,BT Global Services,1900058738,"50,142.57"
Home Office,NPIA - National Policing Improvement Agency,26/11/2010,IT Hardware,ICTS Directorate,Logica CMG UK Ltd,5100048796,"711,991.00"
Home Office,NPIA - National Policing Improvement Agency,01/11/2010,Airwave Channel Tunnel Service Charge,Operations Directorate,Airwave Solutions Ltd,5100047283,"24,335.91"
Home Office,NPIA - National Policing Improvement Agency,01/11/2010,Airwave in London Underground Service Charge,Operations Directorate,Airwave Solutions Ltd,5100047285,"366,626.25"
Home Office,NPIA - National Policing Improvement Agency,01/11/2010,Airwave Cluster Hot Standby Service Charge,Operations Directorate,Airwave Solutions Ltd,5100047286,"636,906.75"
Home Office,NPIA - National Policing Improvement Agency,01/11/2010,Airwave Ground Based Network Resilience Serv. Chg,Operations Directorate,Airwave Solutions Ltd,5100047287,"585,739.14"
Home Office,NPIA - National Policing Improvement Agency,01/11/2010,Stamford Service Charge,Operations Directorate,Airwave Solutions Ltd,5100047288,"110,668.96"
Home Office,NPIA - National Policing Improvement Agency,01/11/2010,Airwave in London Underground Service Charge,Operations Directorate,Airwave Solutions Ltd,5100047288,"68,641.15"
Home Office,NPIA - National Policing Improvement Agency,01/11/2010,Airwave in London Underground Service Charge,Operations Directorate,Airwave Solutions Ltd,5100047288,"21,098.56"
Home Office,NPIA - National Policing Improvement Agency,01/11/2010,Schengen Service Charge,Operations Directorate,Airwave Solutions Ltd,5100047288,"8,255.81"
Home Office,NPIA - National Policing Improvement Agency,01/11/2010,Firewall Service Charge,Operations Directorate,Airwave Solutions Ltd,5100047288,"25,065.75"
Home Office,NPIA - National Policing Improvement Agency,01/11/2010,Airwave Cluster Hot Standby Service Charge,Operations Directorate,Airwave Solutions Ltd,5100047289,"88,333.33"
Home Office,NPIA - National Policing Improvement Agency,01/11/2010,Airwave Cluster Hot Standby Service Charge,Operations Directorate,Airwave Solutions Ltd,5100047666,"-88,333.33"
Home Office,NPIA - National Policing Improvement Agency,01/11/2010,Airwave Cluster Hot Standby Service Charge,Operations Directorate,Airwave Solutions Ltd,5100047667,"88,333.33"
Home Office,NPIA - National Policing Improvement Agency,02/11/2010,Airwave Core Service Charge,Operations Directorate,Airwave Solutions Ltd,5100047281,"14,764,483.34"
Home Office,NPIA - National Policing Improvement Agency,02/11/2010,Airwave Core Service Charge,Operations Directorate,Airwave Solutions Ltd,5100047282,"224,932.61"
Home Office,NPIA - National Policing Improvement Agency,03/11/2010,IT software,Operations Directorate,Cable & Wireless Communications,5100046826,"3,738.00"
Home Office,NPIA - National Policing Improvement Agency,03/11/2010,IT maintenance,Operations Directorate,Cable & Wireless Communications,5100046826,"6,102.00"
Home Office,NPIA - National Policing Improvement Agency,03/11/2010,IT Information Support,Operations Directorate,Cable & Wireless Communications,5100046826,"87,935.00"
Home Office,NPIA - National Policing Improvement Agency,03/11/2010,IT Information Support,Operations Directorate,Cable & Wireless Communications,5100046971,187.5
Home Office,NPIA - National Policing Improvement Agency,03/11/2010,IT Information Support,Operations Directorate,Cable & Wireless Communications,5100046971,"1,900.00"
Home Office,NPIA - National Policing Improvement Agency,03/11/2010,IT Information Support,Operations Directorate,Cable & Wireless Communications,5100046971,"6,989.00"
Home Office,NPIA - National Policing Improvement Agency,03/11/2010,IT Information Support,Operations Directorate,Cable & Wireless Communications,5100046971,"2,250.00"
Home Office,NPIA - National Policing Improvement Agency,03/11/2010,IT Information Support,Operations Directorate,Cable & Wireless Communications,5100046971,"4,000.00"
Home Office,NPIA - National Policing Improvement Agency,03/11/2010,IT Information Support,Operations Directorate,Cable & Wireless Communications,5100046971,"3,515.00"
Home Office,NPIA - National Policing Improvement Agency,03/11/2010,IT Information Support,Operations Directorate,Cable & Wireless Communications,5100046971,"3,840.00"
Home Office,NPIA - National Policing Improvement Agency,03/11/2010,IT Information Support,Operations Directorate,Cable & Wireless Communications,5100046971,"3,600.00"
Home Office,NPIA - National Policing Improvement Agency,03/11/2010,IT Information Support,Operations Directorate,Cable & Wireless Communications,5100046971,"2,000.00"
Home Office,NPIA - National Policing Improvement Agency,03/11/2010,IT Information Support,Operations Directorate,Cable & Wireless Communications,5100046971,"1,733.00"
Home Office,NPIA - National Policing Improvement Agency,03/11/2010,IT Information Support,Operations Directorate,Cable & Wireless Communications,5100046971,"2,072.00"
Home Office,NPIA - National Policing Improvement Agency,03/11/2010,IT Information Support,Operations Directorate,Cable & Wireless Communications,5100046971,400
Home Office,NPIA - National Policing Improvement Agency,03/11/2010,IT Information Support,Operations Directorate,Cable & Wireless Communications,5100046971,-40.09
Home Office,NPIA - National Policing Improvement Agency,03/11/2010,IT software,Operations Directorate,Cable & Wireless Communications,5100047736,"3,738.00"
Home Office,NPIA - National Policing Improvement Agency,03/11/2010,IT maintenance,Operations Directorate,Cable & Wireless Communications,5100047736,"6,102.00"
Home Office,NPIA - National Policing Improvement Agency,03/11/2010,IT Information Support,Operations Directorate,Cable & Wireless Communications,5100047736,"87,935.00"
Home Office,NPIA - National Policing Improvement Agency,03/11/2010,IT Information Support,Operations Directorate,Cable & Wireless Communications,5100047834,"52,725.00"
Home Office,NPIA - National Policing Improvement Agency,03/11/2010,IT Information Support,Operations Directorate,Cable & Wireless Communications,5100047835,187.5
Home Office,NPIA - National Policing Improvement Agency,03/11/2010,IT Information Support,Operations Directorate,Cable & Wireless Communications,5100047835,"1,900.00"
Home Office,NPIA - National Policing Improvement Agency,03/11/2010,IT Information Support,Operations Directorate,Cable & Wireless Communications,5100047835,"6,989.00"
Home Office,NPIA - National Policing Improvement Agency,03/11/2010,IT Information Support,Operations Directorate,Cable & Wireless Communications,5100047835,"2,250.00"
Home Office,NPIA - National Policing Improvement Agency,03/11/2010,IT Information Support,Operations Directorate,Cable & Wireless Communications,5100047835,"4,000.00"
Home Office,NPIA - National Policing Improvement Agency,03/11/2010,IT Information Support,Operations Directorate,Cable & Wireless Communications,5100047835,"3,515.00"
Home Office,NPIA - National Policing Improvement Agency,03/11/2010,IT Information Support,Operations Directorate,Cable & Wireless Communications,5100047835,"3,840.00"
Home Office,NPIA - National Policing Improvement Agency,03/11/2010,IT Information Support,Operations Directorate,Cable & Wireless Communications,5100047835,"3,600.00"
Home Office,NPIA - National Policing Improvement Agency,03/11/2010,IT Information Support,Operations Directorate,Cable & Wireless Communications,5100047835,"2,000.00"
Home Office,NPIA - National Policing Improvement Agency,03/11/2010,IT Information Support,Operations Directorate,Cable & Wireless Communications,5100047835,"1,733.00"
Home Office,NPIA - National Policing Improvement Agency,03/11/2010,IT Information Support,Operations Directorate,Cable & Wireless Communications,5100047835,-0.09
Home Office,NPIA - National Policing Improvement Agency,08/11/2010,IT software,Operations Directorate,SunGard Public Sector Ltd,5100048038,"94,860.00"
Home Office,NPIA - National Policing Improvement Agency,12/11/2010,IT software,Operations Directorate,SunGard Public Sector Ltd,5100047556,"24,556.00"
Home Office,NPIA - National Policing Improvement Agency,12/11/2010,IT software,Operations Directorate,SunGard Public Sector Ltd,5100047556,55.46
Home Office,NPIA - National Policing Improvement Agency,12/11/2010,IT software,Operations Directorate,SunGard Public Sector Ltd,5100047556,-15.46
Home Office,NPIA - National Policing Improvement Agency,12/11/2010,IT software,Operations Directorate,SunGard Public Sector Ltd,5100047556,"22,269.00"
Home Office,NPIA - National Policing Improvement Agency,12/11/2010,IT software,Operations Directorate,SunGard Public Sector Ltd,5100047557,"18,432.54"
Home Office,NPIA - National Policing Improvement Agency,12/11/2010,IT software,Operations Directorate,SunGard Public Sector Ltd,5100047557,"17,208.00"
Home Office,NPIA - National Policing Improvement Agency,12/11/2010,IT software,Operations Directorate,SunGard Public Sector Ltd,5100047557,15.46
Home Office,NPIA - National Policing Improvement Agency,12/11/2010,IT software,Operations Directorate,SunGard Public Sector Ltd,5100047557,"39,584.00"
Home Office,NPIA - National Policing Improvement Agency,12/11/2010,IT software,Operations Directorate,SunGard Public Sector Ltd,5100047557,"19,760.00"
Home Office,NPIA - National Policing Improvement Agency,17/11/2010,Other consultancy,Operations Directorate,Red-M Wireless Ltd,5100047859,"29,740.80"
Home Office,NPIA - National Policing Improvement Agency,18/11/2010,Management consultancy,Operations Directorate,NCC Group Secure Test Ltd,5100046757,"21,560.88"
Home Office,NPIA - National Policing Improvement Agency,18/11/2010,Management consultancy,Operations Directorate,NCC Group Secure Test Ltd,5100046757,-0.88
Home Office,NPIA - National Policing Improvement Agency,18/11/2010,IT consultancy,Operations Directorate,NCC Group Secure Test Ltd,5100046757,"2,200.00"
Home Office,NPIA - National Policing Improvement Agency,18/11/2010,IT consultancy,Operations Directorate,NCC Group Secure Test Ltd,5100046757,385
Home Office,NPIA - National Policing Improvement Agency,18/11/2010,Airwave Channel Tunnel Service Charge,Operations Directorate,Airwave Solutions Ltd,5100048266,"24,335.91"
Home Office,NPIA - National Policing Improvement Agency,18/11/2010,Airwave in London Underground Service Charge,Operations Directorate,Airwave Solutions Ltd,5100048267,"366,626.25"
Home Office,NPIA - National Policing Improvement Agency,18/11/2010,Airwave Cluster Hot Standby Service Charge,Operations Directorate,Airwave Solutions Ltd,5100048268,"636,906.75"
Home Office,NPIA - National Policing Improvement Agency,18/11/2010,Airwave Ground Based Network Resilience Serv. Chg,Operations Directorate,Airwave Solutions Ltd,5100048269,"585,739.14"
Home Office,NPIA - National Policing Improvement Agency,18/11/2010,Airwave Cluster Hot Standby Service Charge,Operations Directorate,Airwave Solutions Ltd,5100048270,"88,333.33"
Home Office,NPIA - National Policing Improvement Agency,18/11/2010,Stamford Service Charge,Operations Directorate,Airwave Solutions Ltd,5100048271,"110,668.96"
Home Office,NPIA - National Policing Improvement Agency,18/11/2010,Airwave in London Underground Service Charge,Operations Directorate,Airwave Solutions Ltd,5100048271,"68,641.15"
Home Office,NPIA - National Policing Improvement Agency,18/11/2010,Airwave in London Underground Service Charge,Operations Directorate,Airwave Solutions Ltd,5100048271,"21,098.56"
Home Office,NPIA - National Policing Improvement Agency,18/11/2010,Schengen Service Charge,Operations Directorate,Airwave Solutions Ltd,5100048271,"8,255.81"
Home Office,NPIA - National Policing Improvement Agency,18/11/2010,Firewall Service Charge,Operations Directorate,Airwave Solutions Ltd,5100048271,"25,065.75"
Home Office,NPIA - National Policing Improvement Agency,25/11/2010,IT software,Operations Directorate,Specialist Computer Centres PLC,5100048599,"62,921.25"
Home Office,NPIA - National Policing Improvement Agency,25/11/2010,IT software,Operations Directorate,Specialist Computer Centres PLC,5100048599,"50,389.88"
Home Office,NPIA - National Policing Improvement Agency,25/11/2010,IT software,Operations Directorate,Specialist Computer Centres PLC,5100048599,"16,232.62"
Home Office,NPIA - National Policing Improvement Agency,25/11/2010,IT software,Operations Directorate,Oracle UK,5100048720,"12,669.54"
Home Office,NPIA - National Policing Improvement Agency,25/11/2010,IT software,Operations Directorate,Oracle UK,5100048720,"59,124.19"
Home Office,NPIA - National Policing Improvement Agency,25/11/2010,IT software,Operations Directorate,Oracle UK,5100048720,"104,746.01"
Home Office,NPIA - National Policing Improvement Agency,08/11/2010,IT Managed Services,People & Development Directorate,Cable & Wireless Communications,5100047837,"23,058.00"
Home Office,NPIA - National Policing Improvement Agency,08/11/2010,IT Managed Services,People & Development Directorate,Cable & Wireless Communications,5100047837,"3,648.62"
Home Office,NPIA - National Policing Improvement Agency,08/11/2010,IT Managed Services,People & Development Directorate,Cable & Wireless Communications,5100047837,"3,658.40"
Home Office,NPIA - National Policing Improvement Agency,10/11/2010,IT Managed Services,People & Development Directorate,Airwave Solutions Ltd,5100047554,"50,134.23"
Home Office,NPIA - National Policing Improvement Agency,10/11/2010,IT Managed Services,People & Development Directorate,Specialist Computer Centres PLC,5100048137,"53,872.12"
Home Office,NPIA - National Policing Improvement Agency,10/11/2010,IT Managed Services,People & Development Directorate,Specialist Computer Centres PLC,5100048137,"9,427.62"
Home Office,NPIA - National Policing Improvement Agency,01/11/2010,Other govt departments secondees - Basic salaries,Policing Policy and Practice Directorate ,Department for Education,5100047716,"14,401.49"
Home Office,NPIA - National Policing Improvement Agency,01/11/2010,Other govt departments secondees - Basic salaries,Policing Policy and Practice Directorate ,Department for Education,5100047716,"2,616.96"
Home Office,NPIA - National Policing Improvement Agency,01/11/2010,Other govt departments secondees - Basic salaries,Policing Policy and Practice Directorate ,Department for Education,5100047716,"5,929.62"
Home Office,NPIA - National Policing Improvement Agency,25/11/2010,IT consultancy,Policing Policy and Practice Directorate ,Steria Ltd,5100048646,"38,363.01"
Home Office,NPIA - National Policing Improvement Agency,25/11/2010,IT consultancy,Policing Policy and Practice Directorate ,Steria Ltd,5100048647,"59,632.85"
Home Office,NPIA - National Policing Improvement Agency,25/11/2010,IT Information Support,Policing Policy and Practice Directorate ,Steria Ltd,5100048648,"27,231.75"
Home Office,NPIA - National Policing Improvement Agency,25/11/2010,Other secondees - Basic salaries,Policing Policy and Practice Directorate ,IDeA Publications London,5100048743,"26,325.00"
Home Office,NPIA - National Policing Improvement Agency,25/11/2010,Other secondees - Basic salaries,Policing Policy and Practice Directorate ,IDeA Publications London,5100048743,"2,368.50"
Home Office,NPIA - National Policing Improvement Agency,25/11/2010,Other secondees - Basic salaries,Policing Policy and Practice Directorate ,IDeA Publications London,5100048743,"3,687.78"
Home Office,NPIA - National Policing Improvement Agency,01/11/2010,Land and Buildings maintenance,Resources Directorate,Mansell Construction Servs Limited,1700003390,"-105,197.94"
Home Office,NPIA - National Policing Improvement Agency,01/11/2010,Land and Buildings maintenance,Resources Directorate,Mansell Construction Servs Limited,1900055291,"100,497.94"
Home Office,NPIA - National Policing Improvement Agency,01/11/2010,Land and Buildings maintenance,Resources Directorate,Building Management Systems,1900057919,"36,613.00"
Home Office,NPIA - National Policing Improvement Agency,01/11/2010,FM Costs,Resources Directorate,Home Office,5100045656,"427,758.82"
Home Office,NPIA - National Policing Improvement Agency,01/11/2010,FM Costs,Resources Directorate,Home Office,5100045656,"7,485.35"
Home Office,NPIA - National Policing Improvement Agency,01/11/2010,FM Costs,Resources Directorate,Home Office,5100045656,"25,354.20"
Home Office,NPIA - National Policing Improvement Agency,01/11/2010,FM Costs,Resources Directorate,Home Office,5100045656,443.7
Home Office,NPIA - National Policing Improvement Agency,01/11/2010,FM Costs,Resources Directorate,Home Office,5100045656,"150,804.70"
Home Office,NPIA - National Policing Improvement Agency,01/11/2010,FM Costs,Resources Directorate,Home Office,5100045656,"2,639.08"
Home Office,NPIA - National Policing Improvement Agency,01/11/2010,FM Costs,Resources Directorate,Home Office,5100045656,"13,483.00"
Home Office,NPIA - National Policing Improvement Agency,01/11/2010,FM Costs,Resources Directorate,Home Office,5100045656,235.95
Home Office,NPIA - National Policing Improvement Agency,01/11/2010,FM Costs,Resources Directorate,Home Office,5100045656,"169,233.92"
Home Office,NPIA - National Policing Improvement Agency,01/11/2010,FM Costs,Resources Directorate,Home Office,5100045656,"2,961.06"
Home Office,NPIA - National Policing Improvement Agency,01/11/2010,FM Costs,Resources Directorate,Home Office,5100045656,"8,160.00"
Home Office,NPIA - National Policing Improvement Agency,01/11/2010,FM Costs,Resources Directorate,Home Office,5100045656,142.8
Home Office,NPIA - National Policing Improvement Agency,01/11/2010,FM Costs,Resources Directorate,Home Office,5100045656,"29,087.00"
Home Office,NPIA - National Policing Improvement Agency,01/11/2010,FM Costs,Resources Directorate,Home Office,5100045656,509.02
Home Office,NPIA - National Policing Improvement Agency,01/11/2010,FM Costs,Resources Directorate,Home Office,5100045656,"14,704.00"
Home Office,NPIA - National Policing Improvement Agency,01/11/2010,FM Costs,Resources Directorate,Home Office,5100045656,257.32
Home Office,NPIA - National Policing Improvement Agency,01/11/2010,FM Costs,Resources Directorate,Home Office,5100045656,"6,210.00"
Home Office,NPIA - National Policing Improvement Agency,01/11/2010,FM Costs,Resources Directorate,Home Office,5100045656,108.67
Home Office,NPIA - National Policing Improvement Agency,01/11/2010,FM Costs,Resources Directorate,Home Office,5100045656,"7,729.00"
Home Office,NPIA - National Policing Improvement Agency,01/11/2010,FM Costs,Resources Directorate,Home Office,5100045656,135.27
Home Office,NPIA - National Policing Improvement Agency,03/11/2010,FM Costs,Resources Directorate,Home Office,5100047916,"306,701.00"
Home Office,NPIA - National Policing Improvement Agency,03/11/2010,FM Costs,Resources Directorate,Home Office,5100047916,"5,367.27"
Home Office,NPIA - National Policing Improvement Agency,03/11/2010,FM Costs,Resources Directorate,Home Office,5100047916,"12,730.00"
Home Office,NPIA - National Policing Improvement Agency,03/11/2010,FM Costs,Resources Directorate,Home Office,5100047916,222.78
Home Office,NPIA - National Policing Improvement Agency,03/11/2010,FM Costs,Resources Directorate,Home Office,5100047916,"1,997.00"
Home Office,NPIA - National Policing Improvement Agency,03/11/2010,FM Costs,Resources Directorate,Home Office,5100047916,34.94
Home Office,NPIA - National Policing Improvement Agency,03/11/2010,FM Costs,Resources Directorate,Home Office,5100047917,"306,701.00"
Home Office,NPIA - National Policing Improvement Agency,03/11/2010,FM Costs,Resources Directorate,Home Office,5100047917,"5,367.27"
Home Office,NPIA - National Policing Improvement Agency,03/11/2010,FM Costs,Resources Directorate,Home Office,5100047917,"12,730.00"
Home Office,NPIA - National Policing Improvement Agency,03/11/2010,FM Costs,Resources Directorate,Home Office,5100047917,222.78
Home Office,NPIA - National Policing Improvement Agency,03/11/2010,FM Costs,Resources Directorate,Home Office,5100047917,"1,997.00"
Home Office,NPIA - National Policing Improvement Agency,03/11/2010,FM Costs,Resources Directorate,Home Office,5100047917,34.94
Home Office,NPIA - National Policing Improvement Agency,03/11/2010,FM Costs,Resources Directorate,Home Office,5100047918,"306,701.00"
Home Office,NPIA - National Policing Improvement Agency,03/11/2010,FM Costs,Resources Directorate,Home Office,5100047918,"5,367.27"
Home Office,NPIA - National Policing Improvement Agency,03/11/2010,FM Costs,Resources Directorate,Home Office,5100047918,"12,730.00"
Home Office,NPIA - National Policing Improvement Agency,03/11/2010,FM Costs,Resources Directorate,Home Office,5100047918,222.78
Home Office,NPIA - National Policing Improvement Agency,03/11/2010,FM Costs,Resources Directorate,Home Office,5100047918,"1,997.00"
Home Office,NPIA - National Policing Improvement Agency,03/11/2010,FM Costs,Resources Directorate,Home Office,5100047918,34.94
Home Office,NPIA - National Policing Improvement Agency,03/11/2010,FM Costs,Resources Directorate,Home Office,5100047919,"306,701.00"
Home Office,NPIA - National Policing Improvement Agency,03/11/2010,FM Costs,Resources Directorate,Home Office,5100047919,"5,367.27"
Home Office,NPIA - National Policing Improvement Agency,03/11/2010,FM Costs,Resources Directorate,Home Office,5100047919,"12,730.00"
Home Office,NPIA - National Policing Improvement Agency,03/11/2010,FM Costs,Resources Directorate,Home Office,5100047919,222.78
Home Office,NPIA - National Policing Improvement Agency,03/11/2010,FM Costs,Resources Directorate,Home Office,5100047919,"1,997.00"
Home Office,NPIA - National Policing Improvement Agency,03/11/2010,FM Costs,Resources Directorate,Home Office,5100047919,34.94
Home Office,NPIA - National Policing Improvement Agency,05/11/2010,FM Costs,Resources Directorate,Home Office,5100047582,"80,308.30"
Home Office,NPIA - National Policing Improvement Agency,05/11/2010,FM Costs,Resources Directorate,Home Office,5100047582,"1,409.67"
Home Office,NPIA - National Policing Improvement Agency,05/11/2010,FM Costs,Resources Directorate,Home Office,5100047582,"2,598.00"
Home Office,NPIA - National Policing Improvement Agency,05/11/2010,FM Costs,Resources Directorate,Home Office,5100047582,45.46
Home Office,NPIA - National Policing Improvement Agency,05/11/2010,FM Costs,Resources Directorate,Home Office,5100047582,728.86
Home Office,NPIA - National Policing Improvement Agency,05/11/2010,FM Costs,Resources Directorate,Home Office,5100047582,12.76
Home Office,NPIA - National Policing Improvement Agency,05/11/2010,FM Costs,Resources Directorate,Home Office,5100047582,"22,780.00"
Home Office,NPIA - National Policing Improvement Agency,05/11/2010,FM Costs,Resources Directorate,Home Office,5100047582,398.65
Home Office,NPIA - National Policing Improvement Agency,05/11/2010,FM Costs,Resources Directorate,Home Office,5100047582,802
Home Office,NPIA - National Policing Improvement Agency,05/11/2010,FM Costs,Resources Directorate,Home Office,5100047582,14.03
Home Office,NPIA - National Policing Improvement Agency,05/11/2010,FM Costs,Resources Directorate,Home Office,5100047582,224.94
Home Office,NPIA - National Policing Improvement Agency,05/11/2010,FM Costs,Resources Directorate,Home Office,5100047582,3.94
Home Office,NPIA - National Policing Improvement Agency,05/11/2010,FM Costs,Resources Directorate,Home Office,5100047582,"11,345.68"
Home Office,NPIA - National Policing Improvement Agency,05/11/2010,FM Costs,Resources Directorate,Home Office,5100047582,198.55
Home Office,NPIA - National Policing Improvement Agency,05/11/2010,FM Costs,Resources Directorate,Home Office,5100047582,385
Home Office,NPIA - National Policing Improvement Agency,05/11/2010,FM Costs,Resources Directorate,Home Office,5100047582,6.74
Home Office,NPIA - National Policing Improvement Agency,05/11/2010,FM Costs,Resources Directorate,Home Office,5100047582,108.06
Home Office,NPIA - National Policing Improvement Agency,05/11/2010,FM Costs,Resources Directorate,Home Office,5100047582,1.89
Home Office,NPIA - National Policing Improvement Agency,05/11/2010,FM Costs,Resources Directorate,Home Office,5100047582,"1,589.00"
Home Office,NPIA - National Policing Improvement Agency,05/11/2010,FM Costs,Resources Directorate,Home Office,5100047582,27.81
Home Office,NPIA - National Policing Improvement Agency,05/11/2010,FM Costs,Resources Directorate,Home Office,5100047582,40.7
Home Office,NPIA - National Policing Improvement Agency,05/11/2010,FM Costs,Resources Directorate,Home Office,5100047582,55.53
Home Office,NPIA - National Policing Improvement Agency,05/11/2010,FM Costs,Resources Directorate,Home Office,5100047582,0.97
Home Office,NPIA - National Policing Improvement Agency,05/11/2010,FM Costs,Resources Directorate,Home Office,5100047582,861.52
Home Office,NPIA - National Policing Improvement Agency,05/11/2010,FM Costs,Resources Directorate,Home Office,5100047582,15.08
Home Office,NPIA - National Policing Improvement Agency,05/11/2010,FM Costs,Resources Directorate,Home Office,5100047582,"3,333.39"
Home Office,NPIA - National Policing Improvement Agency,05/11/2010,FM Costs,Resources Directorate,Home Office,5100047582,58.33
Home Office,NPIA - National Policing Improvement Agency,05/11/2010,FM Costs,Resources Directorate,Home Office,5100047582,"3,902.77"
Home Office,NPIA - National Policing Improvement Agency,05/11/2010,FM Costs,Resources Directorate,Home Office,5100047582,68.3
Home Office,NPIA - National Policing Improvement Agency,05/11/2010,FM Costs,Resources Directorate,Home Office,5100047582,"1,199.07"
Home Office,NPIA - National Policing Improvement Agency,05/11/2010,FM Costs,Resources Directorate,Home Office,5100047582,20.98
Home Office,NPIA - National Policing Improvement Agency,05/11/2010,FM Costs,Resources Directorate,Home Office,5100048105,"213,879.41"
Home Office,NPIA - National Policing Improvement Agency,05/11/2010,FM Costs,Resources Directorate,Home Office,5100048105,"3,742.89"
Home Office,NPIA - National Policing Improvement Agency,05/11/2010,FM Costs,Resources Directorate,Home Office,5100048105,"12,677.00"
Home Office,NPIA - National Policing Improvement Agency,05/11/2010,FM Costs,Resources Directorate,Home Office,5100048105,221.85
Home Office,NPIA - National Policing Improvement Agency,05/11/2010,FM Costs,Resources Directorate,Home Office,5100048105,"75,402.35"
Home Office,NPIA - National Policing Improvement Agency,05/11/2010,FM Costs,Resources Directorate,Home Office,5100048105,"1,319.54"
Home Office,NPIA - National Policing Improvement Agency,05/11/2010,FM Costs,Resources Directorate,Home Office,5100048105,"6,741.37"
Home Office,NPIA - National Policing Improvement Agency,05/11/2010,FM Costs,Resources Directorate,Home Office,5100048105,117.97
Home Office,NPIA - National Policing Improvement Agency,05/11/2010,FM Costs,Resources Directorate,Home Office,5100048105,"84,616.96"
Home Office,NPIA - National Policing Improvement Agency,05/11/2010,FM Costs,Resources Directorate,Home Office,5100048105,"1,480.80"
Home Office,NPIA - National Policing Improvement Agency,05/11/2010,FM Costs,Resources Directorate,Home Office,5100048105,"4,800.00"
Home Office,NPIA - National Policing Improvement Agency,05/11/2010,FM Costs,Resources Directorate,Home Office,5100048105,-648.6
Home Office,NPIA - National Policing Improvement Agency,05/11/2010,FM Costs,Resources Directorate,Home Office,5100048105,"3,864.50"
Home Office,NPIA - National Policing Improvement Agency,05/11/2010,FM Costs,Resources Directorate,Home Office,5100048105,67.89
Home Office,NPIA - National Policing Improvement Agency,05/11/2010,FM Costs,Resources Directorate,Home Office,5100048111,"-213,879.41"
Home Office,NPIA - National Policing Improvement Agency,05/11/2010,FM Costs,Resources Directorate,Home Office,5100048111,"-3,742.89"
Home Office,NPIA - National Policing Improvement Agency,05/11/2010,FM Costs,Resources Directorate,Home Office,5100048111,"-12,677.00"
Home Office,NPIA - National Policing Improvement Agency,05/11/2010,FM Costs,Resources Directorate,Home Office,5100048111,-221.85
Home Office,NPIA - National Policing Improvement Agency,05/11/2010,FM Costs,Resources Directorate,Home Office,5100048111,"-75,402.35"
Home Office,NPIA - National Policing Improvement Agency,05/11/2010,FM Costs,Resources Directorate,Home Office,5100048111,"-1,319.54"
Home Office,NPIA - National Policing Improvement Agency,05/11/2010,FM Costs,Resources Directorate,Home Office,5100048111,"-6,741.37"
Home Office,NPIA - National Policing Improvement Agency,05/11/2010,FM Costs,Resources Directorate,Home Office,5100048111,-117.97
Home Office,NPIA - National Policing Improvement Agency,05/11/2010,FM Costs,Resources Directorate,Home Office,5100048111,"-84,616.96"
Home Office,NPIA - National Policing Improvement Agency,05/11/2010,FM Costs,Resources Directorate,Home Office,5100048111,"-1,480.80"
Home Office,NPIA - National Policing Improvement Agency,05/11/2010,FM Costs,Resources Directorate,Home Office,5100048111,"-4,800.00"
Home Office,NPIA - National Policing Improvement Agency,05/11/2010,FM Costs,Resources Directorate,Home Office,5100048111,648.6
Home Office,NPIA - National Policing Improvement Agency,05/11/2010,FM Costs,Resources Directorate,Home Office,5100048111,"-3,864.50"
Home Office,NPIA - National Policing Improvement Agency,05/11/2010,FM Costs,Resources Directorate,Home Office,5100048111,-67.89
Home Office,NPIA - National Policing Improvement Agency,05/11/2010,FM Costs,Resources Directorate,Home Office,5100048114,"-80,308.30"
Home Office,NPIA - National Policing Improvement Agency,05/11/2010,FM Costs,Resources Directorate,Home Office,5100048114,"-1,409.67"
Home Office,NPIA - National Policing Improvement Agency,05/11/2010,FM Costs,Resources Directorate,Home Office,5100048114,"-2,598.00"
Home Office,NPIA - National Policing Improvement Agency,05/11/2010,FM Costs,Resources Directorate,Home Office,5100048114,-45.46
Home Office,NPIA - National Policing Improvement Agency,05/11/2010,FM Costs,Resources Directorate,Home Office,5100048114,-728.86
Home Office,NPIA - National Policing Improvement Agency,05/11/2010,FM Costs,Resources Directorate,Home Office,5100048114,-12.76
Home Office,NPIA - National Policing Improvement Agency,05/11/2010,FM Costs,Resources Directorate,Home Office,5100048114,"-22,780.00"
Home Office,NPIA - National Policing Improvement Agency,05/11/2010,FM Costs,Resources Directorate,Home Office,5100048114,-398.65
Home Office,NPIA - National Policing Improvement Agency,05/11/2010,FM Costs,Resources Directorate,Home Office,5100048114,-802
Home Office,NPIA - National Policing Improvement Agency,05/11/2010,FM Costs,Resources Directorate,Home Office,5100048114,-14.03
Home Office,NPIA - National Policing Improvement Agency,05/11/2010,FM Costs,Resources Directorate,Home Office,5100048114,-224.94
Home Office,NPIA - National Policing Improvement Agency,05/11/2010,FM Costs,Resources Directorate,Home Office,5100048114,-3.94
Home Office,NPIA - National Policing Improvement Agency,05/11/2010,FM Costs,Resources Directorate,Home Office,5100048114,"-11,345.68"
Home Office,NPIA - National Policing Improvement Agency,05/11/2010,FM Costs,Resources Directorate,Home Office,5100048114,-198.55
Home Office,NPIA - National Policing Improvement Agency,05/11/2010,FM Costs,Resources Directorate,Home Office,5100048114,-385
Home Office,NPIA - National Policing Improvement Agency,05/11/2010,FM Costs,Resources Directorate,Home Office,5100048114,-6.74
Home Office,NPIA - National Policing Improvement Agency,05/11/2010,FM Costs,Resources Directorate,Home Office,5100048114,-108.06
Home Office,NPIA - National Policing Improvement Agency,05/11/2010,FM Costs,Resources Directorate,Home Office,5100048114,-1.89
Home Office,NPIA - National Policing Improvement Agency,05/11/2010,FM Costs,Resources Directorate,Home Office,5100048114,"-1,589.00"
Home Office,NPIA - National Policing Improvement Agency,05/11/2010,FM Costs,Resources Directorate,Home Office,5100048114,-27.81
Home Office,NPIA - National Policing Improvement Agency,05/11/2010,FM Costs,Resources Directorate,Home Office,5100048114,-40.7
Home Office,NPIA - National Policing Improvement Agency,05/11/2010,FM Costs,Resources Directorate,Home Office,5100048114,-55.53
Home Office,NPIA - National Policing Improvement Agency,05/11/2010,FM Costs,Resources Directorate,Home Office,5100048114,-0.97
Home Office,NPIA - National Policing Improvement Agency,05/11/2010,FM Costs,Resources Directorate,Home Office,5100048114,-861.52
Home Office,NPIA - National Policing Improvement Agency,05/11/2010,FM Costs,Resources Directorate,Home Office,5100048114,-15.08
Home Office,NPIA - National Policing Improvement Agency,05/11/2010,FM Costs,Resources Directorate,Home Office,5100048114,"-3,333.39"
Home Office,NPIA - National Policing Improvement Agency,05/11/2010,FM Costs,Resources Directorate,Home Office,5100048114,-58.33
Home Office,NPIA - National Policing Improvement Agency,05/11/2010,FM Costs,Resources Directorate,Home Office,5100048114,"-3,902.77"
Home Office,NPIA - National Policing Improvement Agency,05/11/2010,FM Costs,Resources Directorate,Home Office,5100048114,-68.3
Home Office,NPIA - National Policing Improvement Agency,05/11/2010,FM Costs,Resources Directorate,Home Office,5100048114,"-1,199.07"
Home Office,NPIA - National Policing Improvement Agency,05/11/2010,FM Costs,Resources Directorate,Home Office,5100048114,-20.98
Home Office,NPIA - National Policing Improvement Agency,08/11/2010,FM Costs,Resources Directorate,Home Office,5100048108,"213,879.41"
Home Office,NPIA - National Policing Improvement Agency,08/11/2010,FM Costs,Resources Directorate,Home Office,5100048108,"3,742.89"
Home Office,NPIA - National Policing Improvement Agency,08/11/2010,FM Costs,Resources Directorate,Home Office,5100048108,"12,677.00"
Home Office,NPIA - National Policing Improvement Agency,08/11/2010,FM Costs,Resources Directorate,Home Office,5100048108,221.85
Home Office,NPIA - National Policing Improvement Agency,08/11/2010,FM Costs,Resources Directorate,Home Office,5100048108,"75,402.35"
Home Office,NPIA - National Policing Improvement Agency,08/11/2010,FM Costs,Resources Directorate,Home Office,5100048108,"1,319.54"
Home Office,NPIA - National Policing Improvement Agency,08/11/2010,FM Costs,Resources Directorate,Home Office,5100048108,"6,741.53"
Home Office,NPIA - National Policing Improvement Agency,08/11/2010,FM Costs,Resources Directorate,Home Office,5100048108,117.98
Home Office,NPIA - National Policing Improvement Agency,08/11/2010,FM Costs,Resources Directorate,Home Office,5100048108,"84,616.96"
Home Office,NPIA - National Policing Improvement Agency,08/11/2010,FM Costs,Resources Directorate,Home Office,5100048108,"1,480.80"
Home Office,NPIA - National Policing Improvement Agency,08/11/2010,FM Costs,Resources Directorate,Home Office,5100048108,"4,080.00"
Home Office,NPIA - National Policing Improvement Agency,08/11/2010,FM Costs,Resources Directorate,Home Office,5100048108,71.4
Home Office,NPIA - National Policing Improvement Agency,08/11/2010,FM Costs,Resources Directorate,Home Office,5100048108,"3,864.50"
Home Office,NPIA - National Policing Improvement Agency,08/11/2010,FM Costs,Resources Directorate,Home Office,5100048108,67.72
Home Office,NPIA - National Policing Improvement Agency,08/11/2010,FM Costs,Resources Directorate,Home Office,5100048109,"80,308.30"
Home Office,NPIA - National Policing Improvement Agency,08/11/2010,FM Costs,Resources Directorate,Home Office,5100048109,"1,449.82"
Home Office,NPIA - National Policing Improvement Agency,08/11/2010,FM Costs,Resources Directorate,Home Office,5100048109,"2,598.00"
Home Office,NPIA - National Policing Improvement Agency,08/11/2010,FM Costs,Resources Directorate,Home Office,5100048109,45.46
Home Office,NPIA - National Policing Improvement Agency,08/11/2010,FM Costs,Resources Directorate,Home Office,5100048109,728.86
Home Office,NPIA - National Policing Improvement Agency,08/11/2010,FM Costs,Resources Directorate,Home Office,5100048109,12.76
Home Office,NPIA - National Policing Improvement Agency,08/11/2010,FM Costs,Resources Directorate,Home Office,5100048109,"22,780.00"
Home Office,NPIA - National Policing Improvement Agency,08/11/2010,FM Costs,Resources Directorate,Home Office,5100048109,398.65
Home Office,NPIA - National Policing Improvement Agency,08/11/2010,FM Costs,Resources Directorate,Home Office,5100048109,802
Home Office,NPIA - National Policing Improvement Agency,08/11/2010,FM Costs,Resources Directorate,Home Office,5100048109,14.03
Home Office,NPIA - National Policing Improvement Agency,08/11/2010,FM Costs,Resources Directorate,Home Office,5100048109,224.94
Home Office,NPIA - National Policing Improvement Agency,08/11/2010,FM Costs,Resources Directorate,Home Office,5100048109,3.94
Home Office,NPIA - National Policing Improvement Agency,08/11/2010,FM Costs,Resources Directorate,Home Office,5100048109,"11,345.68"
Home Office,NPIA - National Policing Improvement Agency,08/11/2010,FM Costs,Resources Directorate,Home Office,5100048109,198.55
Home Office,NPIA - National Policing Improvement Agency,08/11/2010,FM Costs,Resources Directorate,Home Office,5100048109,385
Home Office,NPIA - National Policing Improvement Agency,08/11/2010,FM Costs,Resources Directorate,Home Office,5100048109,6.74
Home Office,NPIA - National Policing Improvement Agency,08/11/2010,FM Costs,Resources Directorate,Home Office,5100048109,107.52
Home Office,NPIA - National Policing Improvement Agency,08/11/2010,FM Costs,Resources Directorate,Home Office,5100048109,2.43
Home Office,NPIA - National Policing Improvement Agency,08/11/2010,FM Costs,Resources Directorate,Home Office,5100048109,"1,589.00"
Home Office,NPIA - National Policing Improvement Agency,08/11/2010,FM Costs,Resources Directorate,Home Office,5100048109,27.81
Home Office,NPIA - National Policing Improvement Agency,08/11/2010,FM Costs,Resources Directorate,Home Office,5100048109,56.07
Home Office,NPIA - National Policing Improvement Agency,08/11/2010,FM Costs,Resources Directorate,Home Office,5100048109,0.98
Home Office,NPIA - National Policing Improvement Agency,08/11/2010,FM Costs,Resources Directorate,Home Office,5100048109,861.52
Home Office,NPIA - National Policing Improvement Agency,08/11/2010,FM Costs,Resources Directorate,Home Office,5100048109,15.08
Home Office,NPIA - National Policing Improvement Agency,08/11/2010,FM Costs,Resources Directorate,Home Office,5100048109,"3,333.39"
Home Office,NPIA - National Policing Improvement Agency,08/11/2010,FM Costs,Resources Directorate,Home Office,5100048109,58.33
Home Office,NPIA - National Policing Improvement Agency,08/11/2010,FM Costs,Resources Directorate,Home Office,5100048109,"3,902.77"
Home Office,NPIA - National Policing Improvement Agency,08/11/2010,FM Costs,Resources Directorate,Home Office,5100048109,68.3
Home Office,NPIA - National Policing Improvement Agency,08/11/2010,FM Costs,Resources Directorate,Home Office,5100048109,"1,199.07"
Home Office,NPIA - National Policing Improvement Agency,08/11/2010,FM Costs,Resources Directorate,Home Office,5100048109,20.98
Home Office,NPIA - National Policing Improvement Agency,08/11/2010,FM Costs,Resources Directorate,Home Office,5100048110,"306,701.00"
Home Office,NPIA - National Policing Improvement Agency,08/11/2010,FM Costs,Resources Directorate,Home Office,5100048110,"5,367.27"
Home Office,NPIA - National Policing Improvement Agency,08/11/2010,FM Costs,Resources Directorate,Home Office,5100048110,"12,730.00"
Home Office,NPIA - National Policing Improvement Agency,08/11/2010,FM Costs,Resources Directorate,Home Office,5100048110,222.78
Home Office,NPIA - National Policing Improvement Agency,08/11/2010,FM Costs,Resources Directorate,Home Office,5100048110,"1,997.00"
Home Office,NPIA - National Policing Improvement Agency,08/11/2010,FM Costs,Resources Directorate,Home Office,5100048110,34.94
Home Office,NPIA - National Policing Improvement Agency,08/11/2010,FM Costs,Resources Directorate,Home Office,5100048112,"213,879.41"
Home Office,NPIA - National Policing Improvement Agency,08/11/2010,FM Costs,Resources Directorate,Home Office,5100048112,"3,743.15"
Home Office,NPIA - National Policing Improvement Agency,08/11/2010,FM Costs,Resources Directorate,Home Office,5100048112,"12,677.00"
Home Office,NPIA - National Policing Improvement Agency,08/11/2010,FM Costs,Resources Directorate,Home Office,5100048112,221.85
Home Office,NPIA - National Policing Improvement Agency,08/11/2010,FM Costs,Resources Directorate,Home Office,5100048112,"75,402.35"
Home Office,NPIA - National Policing Improvement Agency,08/11/2010,FM Costs,Resources Directorate,Home Office,5100048112,"1,319.54"
Home Office,NPIA - National Policing Improvement Agency,08/11/2010,FM Costs,Resources Directorate,Home Office,5100048112,"6,741.37"
Home Office,NPIA - National Policing Improvement Agency,08/11/2010,FM Costs,Resources Directorate,Home Office,5100048112,117.97
Home Office,NPIA - National Policing Improvement Agency,08/11/2010,FM Costs,Resources Directorate,Home Office,5100048112,"84,616.96"
Home Office,NPIA - National Policing Improvement Agency,08/11/2010,FM Costs,Resources Directorate,Home Office,5100048112,"1,480.80"
Home Office,NPIA - National Policing Improvement Agency,08/11/2010,FM Costs,Resources Directorate,Home Office,5100048112,"4,080.00"
Home Office,NPIA - National Policing Improvement Agency,08/11/2010,FM Costs,Resources Directorate,Home Office,5100048112,71.4
Home Office,NPIA - National Policing Improvement Agency,08/11/2010,FM Costs,Resources Directorate,Home Office,5100048112,"3,864.50"
Home Office,NPIA - National Policing Improvement Agency,08/11/2010,FM Costs,Resources Directorate,Home Office,5100048112,67.63
Home Office,NPIA - National Policing Improvement Agency,08/11/2010,FM Costs,Resources Directorate,Home Office,5100048113,"213,879.41"
Home Office,NPIA - National Policing Improvement Agency,08/11/2010,FM Costs,Resources Directorate,Home Office,5100048113,"3,743.15"
Home Office,NPIA - National Policing Improvement Agency,08/11/2010,FM Costs,Resources Directorate,Home Office,5100048113,"12,677.00"
Home Office,NPIA - National Policing Improvement Agency,08/11/2010,FM Costs,Resources Directorate,Home Office,5100048113,221.85
Home Office,NPIA - National Policing Improvement Agency,08/11/2010,FM Costs,Resources Directorate,Home Office,5100048113,"75,402.35"
Home Office,NPIA - National Policing Improvement Agency,08/11/2010,FM Costs,Resources Directorate,Home Office,5100048113,"1,319.54"
Home Office,NPIA - National Policing Improvement Agency,08/11/2010,FM Costs,Resources Directorate,Home Office,5100048113,"6,741.37"
Home Office,NPIA - National Policing Improvement Agency,08/11/2010,FM Costs,Resources Directorate,Home Office,5100048113,117.97
Home Office,NPIA - National Policing Improvement Agency,08/11/2010,FM Costs,Resources Directorate,Home Office,5100048113,"84,616.96"
Home Office,NPIA - National Policing Improvement Agency,08/11/2010,FM Costs,Resources Directorate,Home Office,5100048113,"1,480.80"
Home Office,NPIA - National Policing Improvement Agency,08/11/2010,FM Costs,Resources Directorate,Home Office,5100048113,"4,080.00"
Home Office,NPIA - National Policing Improvement Agency,08/11/2010,FM Costs,Resources Directorate,Home Office,5100048113,71.4
Home Office,NPIA - National Policing Improvement Agency,08/11/2010,FM Costs,Resources Directorate,Home Office,5100048113,"3,864.50"
Home Office,NPIA - National Policing Improvement Agency,08/11/2010,FM Costs,Resources Directorate,Home Office,5100048113,67.63
Home Office,NPIA - National Policing Improvement Agency,08/11/2010,FM Costs,Resources Directorate,Home Office,5100048115,"80,308.30"
Home Office,NPIA - National Policing Improvement Agency,08/11/2010,FM Costs,Resources Directorate,Home Office,5100048115,"1,450.37"
Home Office,NPIA - National Policing Improvement Agency,08/11/2010,FM Costs,Resources Directorate,Home Office,5100048115,"2,598.00"
Home Office,NPIA - National Policing Improvement Agency,08/11/2010,FM Costs,Resources Directorate,Home Office,5100048115,45.46
Home Office,NPIA - National Policing Improvement Agency,08/11/2010,FM Costs,Resources Directorate,Home Office,5100048115,728.86
Home Office,NPIA - National Policing Improvement Agency,08/11/2010,FM Costs,Resources Directorate,Home Office,5100048115,12.76
Home Office,NPIA - National Policing Improvement Agency,08/11/2010,FM Costs,Resources Directorate,Home Office,5100048115,"22,780.00"
Home Office,NPIA - National Policing Improvement Agency,08/11/2010,FM Costs,Resources Directorate,Home Office,5100048115,398.65
Home Office,NPIA - National Policing Improvement Agency,08/11/2010,FM Costs,Resources Directorate,Home Office,5100048115,802
Home Office,NPIA - National Policing Improvement Agency,08/11/2010,FM Costs,Resources Directorate,Home Office,5100048115,14.03
Home Office,NPIA - National Policing Improvement Agency,08/11/2010,FM Costs,Resources Directorate,Home Office,5100048115,224.94
Home Office,NPIA - National Policing Improvement Agency,08/11/2010,FM Costs,Resources Directorate,Home Office,5100048115,3.94
Home Office,NPIA - National Policing Improvement Agency,08/11/2010,FM Costs,Resources Directorate,Home Office,5100048115,"11,345.68"
Home Office,NPIA - National Policing Improvement Agency,08/11/2010,FM Costs,Resources Directorate,Home Office,5100048115,198.55
Home Office,NPIA - National Policing Improvement Agency,08/11/2010,FM Costs,Resources Directorate,Home Office,5100048115,385
Home Office,NPIA - National Policing Improvement Agency,08/11/2010,FM Costs,Resources Directorate,Home Office,5100048115,6.74
Home Office,NPIA - National Policing Improvement Agency,08/11/2010,FM Costs,Resources Directorate,Home Office,5100048115,108.06
Home Office,NPIA - National Policing Improvement Agency,08/11/2010,FM Costs,Resources Directorate,Home Office,5100048115,1.89
Home Office,NPIA - National Policing Improvement Agency,08/11/2010,FM Costs,Resources Directorate,Home Office,5100048115,"1,589.00"
Home Office,NPIA - National Policing Improvement Agency,08/11/2010,FM Costs,Resources Directorate,Home Office,5100048115,27.81
Home Office,NPIA - National Policing Improvement Agency,08/11/2010,FM Costs,Resources Directorate,Home Office,5100048115,55.53
Home Office,NPIA - National Policing Improvement Agency,08/11/2010,FM Costs,Resources Directorate,Home Office,5100048115,0.97
Home Office,NPIA - National Policing Improvement Agency,08/11/2010,FM Costs,Resources Directorate,Home Office,5100048115,861.52
Home Office,NPIA - National Policing Improvement Agency,08/11/2010,FM Costs,Resources Directorate,Home Office,5100048115,15.08
Home Office,NPIA - National Policing Improvement Agency,08/11/2010,FM Costs,Resources Directorate,Home Office,5100048115,"3,333.39"
Home Office,NPIA - National Policing Improvement Agency,08/11/2010,FM Costs,Resources Directorate,Home Office,5100048115,58.33
Home Office,NPIA - National Policing Improvement Agency,08/11/2010,FM Costs,Resources Directorate,Home Office,5100048115,"3,902.77"
Home Office,NPIA - National Policing Improvement Agency,08/11/2010,FM Costs,Resources Directorate,Home Office,5100048115,68.3
Home Office,NPIA - National Policing Improvement Agency,08/11/2010,FM Costs,Resources Directorate,Home Office,5100048115,"1,199.07"
Home Office,NPIA - National Policing Improvement Agency,08/11/2010,FM Costs,Resources Directorate,Home Office,5100048115,20.98
Home Office,NPIA - National Policing Improvement Agency,10/11/2010,Electricity,Resources Directorate,EDF Energy,1900057888,"24,002.35"
Home Office,NPIA - National Policing Improvement Agency,10/11/2010,Land and Buildings maintenance,Resources Directorate,GallifordTry Construction Ltd,1900058234,"271,432.86"
Home Office,NPIA - National Policing Improvement Agency,10/11/2010,Electricity,Resources Directorate,EDF Energy,1900058465,"34,460.07"
Home Office,NPIA - National Policing Improvement Agency,10/11/2010,FM Costs,Resources Directorate,Wyboston Lakes Ltd,5100047729,"93,758.25"
Home Office,NPIA - National Policing Improvement Agency,10/11/2010,FM Costs,Resources Directorate,Wyboston Lakes Ltd,5100047729,64.14
Home Office,NPIA - National Policing Improvement Agency,10/11/2010,FM Costs,Resources Directorate,Wyboston Lakes Ltd,5100047870,"54,423.41"
Home Office,NPIA - National Policing Improvement Agency,12/11/2010,Audit fees - internal,Resources Directorate,Home Office,5100045215,"20,000.00"
Home Office,NPIA - National Policing Improvement Agency,12/11/2010,Audit fees - internal,Resources Directorate,Home Office,5100045215,350
Home Office,NPIA - National Policing Improvement Agency,12/11/2010,Audit fees - internal,Resources Directorate,Home Office,5100045215,"20,000.00"
Home Office,NPIA - National Policing Improvement Agency,12/11/2010,Audit fees - internal,Resources Directorate,Home Office,5100045215,350
Home Office,NPIA - National Policing Improvement Agency,12/11/2010,Audit fees - internal,Resources Directorate,Home Office,5100045215,"13,200.00"
Home Office,NPIA - National Policing Improvement Agency,12/11/2010,Audit fees - internal,Resources Directorate,Home Office,5100045215,248.5
Home Office,NPIA - National Policing Improvement Agency,17/11/2010,Land and Buildings maintenance,Resources Directorate,Drivers Jonas,1900057899,"170,375.00"
Home Office,NPIA - National Policing Improvement Agency,22/11/2010,FM Costs,Resources Directorate,Home Office,1700004332,"-741,104.87"
Home Office,NPIA - National Policing Improvement Agency,22/11/2010,FM Costs,Resources Directorate,Home Office,1900058700,"741,104.87"
Home Office,NPIA - National Policing Improvement Agency,25/11/2010,Electricity,Resources Directorate,EDF Energy Exeter,1900057545,"41,043.64"
Home Office,NPIA - National Policing Improvement Agency,25/11/2010,Electricity,Resources Directorate,EDF Energy Exeter,1900057545,"15,521.73"
Home Office,NPIA - National Policing Improvement Agency,25/11/2010,Electricity,Resources Directorate,EDF Energy Exeter,1900057545,"4,725.85"
Home Office,NPIA - National Policing Improvement Agency,25/11/2010,Electricity,Resources Directorate,EDF Energy Exeter,1900057545,490.54
Home Office,NPIA - National Policing Improvement Agency,25/11/2010,Electricity,Resources Directorate,EDF Energy Exeter,1900057545,"3,637.10"
Home Office,NPIA - National Policing Improvement Agency,25/11/2010,Electricity,Resources Directorate,EDF Energy Exeter,1900057545,"3,774.16"
Home Office,NPIA - National Policing Improvement Agency,25/11/2010,Electricity,Resources Directorate,EDF Energy Exeter,1900058050,"39,488.56"
Home Office,NPIA - National Policing Improvement Agency,25/11/2010,Electricity,Resources Directorate,EDF Energy Exeter,1900058050,"15,047.83"
Home Office,NPIA - National Policing Improvement Agency,25/11/2010,Electricity,Resources Directorate,EDF Energy Exeter,1900058050,654.08
Home Office,NPIA - National Policing Improvement Agency,25/11/2010,Electricity,Resources Directorate,EDF Energy Exeter,1900058050,"3,656.78"
Home Office,NPIA - National Policing Improvement Agency,25/11/2010,Electricity,Resources Directorate,EDF Energy Exeter,1900058050,"6,464.62"
Home Office,NPIA - National Policing Improvement Agency,25/11/2010,Electricity,Resources Directorate,EDF Energy Exeter,1900058050,734.19
Home Office,NPIA - National Policing Improvement Agency,25/11/2010,Electricity,Resources Directorate,EDF Energy Exeter,1900058050,"4,082.65"
Home Office,NPIA - National Policing Improvement Agency,25/11/2010,Electricity,Resources Directorate,EDF Energy Exeter,1900058050,-114.66
Home Office,NPIA - National Policing Improvement Agency,25/11/2010,Land and Buildings maintenance,Resources Directorate,GallifordTry Construction Ltd,1900058745,"32,312.50"
Home Office,NPIA - National Policing Improvement Agency,25/11/2010,FM Costs,Resources Directorate,Home Office,5100048584,"213,879.41"
Home Office,NPIA - National Policing Improvement Agency,25/11/2010,FM Costs,Resources Directorate,Home Office,5100048584,"3,743.02"
Home Office,NPIA - National Policing Improvement Agency,25/11/2010,FM Costs,Resources Directorate,Home Office,5100048584,"12,677.00"
Home Office,NPIA - National Policing Improvement Agency,25/11/2010,FM Costs,Resources Directorate,Home Office,5100048584,221.85
Home Office,NPIA - National Policing Improvement Agency,25/11/2010,FM Costs,Resources Directorate,Home Office,5100048584,"75,402.35"
Home Office,NPIA - National Policing Improvement Agency,25/11/2010,FM Costs,Resources Directorate,Home Office,5100048584,"1,319.54"
Home Office,NPIA - National Policing Improvement Agency,25/11/2010,FM Costs,Resources Directorate,Home Office,5100048584,"6,741.50"
Home Office,NPIA - National Policing Improvement Agency,25/11/2010,FM Costs,Resources Directorate,Home Office,5100048584,117.98
Home Office,NPIA - National Policing Improvement Agency,25/11/2010,FM Costs,Resources Directorate,Home Office,5100048584,"306,701.00"
Home Office,NPIA - National Policing Improvement Agency,25/11/2010,FM Costs,Resources Directorate,Home Office,5100048584,"5,367.27"
Home Office,NPIA - National Policing Improvement Agency,25/11/2010,FM Costs,Resources Directorate,Home Office,5100048584,"12,730.00"
Home Office,NPIA - National Policing Improvement Agency,25/11/2010,FM Costs,Resources Directorate,Home Office,5100048584,222.77
Home Office,NPIA - National Policing Improvement Agency,25/11/2010,FM Costs,Resources Directorate,Home Office,5100048584,"84,616.96"
Home Office,NPIA - National Policing Improvement Agency,25/11/2010,FM Costs,Resources Directorate,Home Office,5100048584,"1,480.80"
Home Office,NPIA - National Policing Improvement Agency,25/11/2010,FM Costs,Resources Directorate,Home Office,5100048584,"4,080.00"
Home Office,NPIA - National Policing Improvement Agency,25/11/2010,FM Costs,Resources Directorate,Home Office,5100048584,71.4
Home Office,NPIA - National Policing Improvement Agency,25/11/2010,FM Costs,Resources Directorate,Home Office,5100048584,"3,864.50"
Home Office,NPIA - National Policing Improvement Agency,25/11/2010,FM Costs,Resources Directorate,Home Office,5100048584,67.63
Home Office,NPIA - National Policing Improvement Agency,25/11/2010,FM Costs,Resources Directorate,Home Office,5100048584,"1,997.00"
Home Office,NPIA - National Policing Improvement Agency,25/11/2010,FM Costs,Resources Directorate,Home Office,5100048584,34.94
Home Office,NPIA - National Policing Improvement Agency,25/11/2010,Audit fees - internal,Resources Directorate,Home Office,5100048733,"20,000.00"
Home Office,NPIA - National Policing Improvement Agency,25/11/2010,Audit fees - internal,Resources Directorate,Home Office,5100048733,350
Home Office,NPIA - National Policing Improvement Agency,25/11/2010,Audit fees - internal,Resources Directorate,Home Office,5100048733,"5,040.00"
Home Office,NPIA - National Policing Improvement Agency,25/11/2010,Audit fees - internal,Resources Directorate,Home Office,5100048733,82.6
Home Office,SIA - Security Industry Authority,03/11/2010,Legal Costs,Licensing,Kingsley Napley,CKIN02,"53,779.75"
Home Office,SIA - Security Industry Authority,03/11/2010,Legal Costs,Licensing,Kingsley Napley,CKIN02,"54,948.88"
Home Office,SIA - Security Industry Authority,10/11/2010,CRB Disclosures,Licensing,CRB,CCRB01,"176,233.00"
Home Office,SIA - Security Industry Authority,10/11/2010,Syntegra,Licensing,BT Syntegra,CSYN01,"1,049,223.88"
Home Office,SIA - Security Industry Authority,17/11/2010,CRB Disclosures,Licensing,Disclosure Scotland,CDIS01,"39,255.00"
Home Office,SIA - Security Industry Authority,24/11/2010,Legal Costs,Licensing,Kingsley Napley,CKIN02,"38,317.69"
Home Office,SOCA - Serious Organised Crime Agency,23/11/2010,"Accommodation, Subsistence & General Expenses",Central & Hosted Services,BARCLAYCARD,57968,139.39
Home Office,SOCA - Serious Organised Crime Agency,16/11/2010,"Accommodation, Subsistence & General Expenses",CEOP,SURREY POLICE AUTHORITY,57091,"1,942.16"
Home Office,SOCA - Serious Organised Crime Agency,16/11/2010,Salaries and Allowances -Seconded Officers,CEOP,SURREY POLICE AUTHORITY,57091,"41,220.98"
Home Office,SOCA - Serious Organised Crime Agency,16/11/2010,Salaries and Allowances -permanently employed,CEOP,SURREY POLICE AUTHORITY,57091,"1,297.59"
Home Office,SOCA - Serious Organised Crime Agency,22/11/2010,PFI Contract Charges,CEOP,SERCO ,57952,"30,768.95"
Home Office,SOCA - Serious Organised Crime Agency,23/11/2010,"Accommodation, Subsistence & General Expenses",CEOP,BARCLAYCARD,57968,"16,992.83"
Home Office,SOCA - Serious Organised Crime Agency,22/10/2010,Professional Services and Fees,Corporate Services,VEGA GROUP PLC,55185,"170,731.61"
Home Office,SOCA - Serious Organised Crime Agency,03/11/2010,Office and General Expenses,Corporate Services,OFFICE DEPOT UK LTD,56275,"40,023.03"
Home Office,SOCA - Serious Organised Crime Agency,03/11/2010,IT Expenses,Corporate Services,OGC BUYING SOLUTIONS,56379,"273,558.20"
Home Office,SOCA - Serious Organised Crime Agency,05/11/2010,IT Expenses,Corporate Services,L-3 COMMUNICATIONS ASA LTD,56458,"28,252.88"
Home Office,SOCA - Serious Organised Crime Agency,05/11/2010,IT Expenses,Corporate Services,L-3 COMMUNICATIONS ASA LTD,56459,"220,312.50"
Home Office,SOCA - Serious Organised Crime Agency,09/11/2010,IT Expenses,Corporate Services,BT ,56612,"31,420.80"
Home Office,SOCA - Serious Organised Crime Agency,09/11/2010,IT Expenses,Corporate Services,BT ,56677,"114,587.78"
Home Office,SOCA - Serious Organised Crime Agency,09/11/2010,Operational and Communications Costs,Corporate Services,BT ,56677,"2,900.72"
Home Office,SOCA - Serious Organised Crime Agency,09/11/2010,IT Expenses,Corporate Services,BT ,56678,"50,467.31"
Home Office,SOCA - Serious Organised Crime Agency,09/11/2010,Operational and Communications Costs,Corporate Services,BT ,56678,"7,662.66"
Home Office,SOCA - Serious Organised Crime Agency,09/11/2010,Premises,Corporate Services,OCS GROUP UK LTD ,56686,"177,046.90"
Home Office,SOCA - Serious Organised Crime Agency,09/11/2010,IT Expenses,Corporate Services,SERCO,56694,"396,165.87"
Home Office,SOCA - Serious Organised Crime Agency,11/11/2010,Premises,Corporate Services,KIER BUILDING SERVICES,56937,"73,394.71"
Home Office,SOCA - Serious Organised Crime Agency,11/11/2010,IT Expenses,Corporate Services,CAPITA BUSINESS SERVICES LTD,56944,"454,921.27"
Home Office,SOCA - Serious Organised Crime Agency,15/11/2010,Professional Services and Fees,Corporate Services,NATIONAL AUDIT OFFICE,57047,"138,000.00"
Home Office,SOCA - Serious Organised Crime Agency,17/11/2010,IT Expenses,Corporate Services,CAPITA BUSINESS SERVICES LTD,57292,"66,345.20"
Home Office,SOCA - Serious Organised Crime Agency,17/11/2010,Premises,Corporate Services,DEFENCE BILLS AGENCY,57549,"38,995.31"
Home Office,SOCA - Serious Organised Crime Agency,18/11/2010,Premises,Corporate Services,VALUATION OFFICE AGENCY,57628,"159,144.04"
Home Office,SOCA - Serious Organised Crime Agency,18/11/2010,Premises,Corporate Services,VALUATION OFFICE AGENCY,57629,"352,344.70"
Home Office,SOCA - Serious Organised Crime Agency,19/11/2010,Premises,Corporate Services,KIER BUILDING SERVICES,57652,"31,856.92"
Home Office,SOCA - Serious Organised Crime Agency,22/11/2010,PFI Contract Charges,Corporate Services,SERCO ,57759,"151,975.02"
Home Office,SOCA - Serious Organised Crime Agency,22/11/2010,Indirect Employee Costs,Corporate Services,DERBYSHIRE CONSTABULARY,57871,"26,140.00"
Home Office,SOCA - Serious Organised Crime Agency,22/11/2010,IT Expenses,Corporate Services,NPIA,57902,"28,367.11"
Home Office,SOCA - Serious Organised Crime Agency,22/11/2010,IT Expenses,Corporate Services,SERCO ,57952,"8,124.18"
Home Office,SOCA - Serious Organised Crime Agency,22/11/2010,PFI Contract Charges,Corporate Services,SERCO ,57952,"1,685,750.90"
Home Office,SOCA - Serious Organised Crime Agency,23/11/2010,"Accommodation, Subsistence & General Expenses",Corporate Services,BARCLAYCARD,57968,"6,394.43"
Home Office,SOCA - Serious Organised Crime Agency,22/11/2010,PFI Contract Charges,Enforcement,SERCO ,57952,"4,154.22"
Home Office,SOCA - Serious Organised Crime Agency,23/11/2010,"Accommodation, Subsistence & General Expenses",Enforcement,BARCLAYCARD,57968,"50,252.33"
Home Office,SOCA - Serious Organised Crime Agency,26/10/2010,Operational and Communications Costs,Intelligence,REVENUE FINANCE BANKING SERVIC,55343,"35,121.98"
Home Office,SOCA - Serious Organised Crime Agency,09/11/2010,IT Expenses,Intelligence,BT ,56680,"59,423.51"
Home Office,SOCA - Serious Organised Crime Agency,09/11/2010,IT Expenses,Intelligence,BT ,56682,"233,579.72"
Home Office,SOCA - Serious Organised Crime Agency,09/11/2010,IT Expenses,Intelligence,BT ,56683,"249,612.59"
Home Office,SOCA - Serious Organised Crime Agency,09/11/2010,IT Expenses,Intelligence,BT ,56684,"55,819.08"
Home Office,SOCA - Serious Organised Crime Agency,22/11/2010,Forensic Fees,Intelligence,FORENSIC SCIENCE SERVICE,57812,"34,920.11"
Home Office,SOCA - Serious Organised Crime Agency,22/11/2010,Operational and Communications Costs,Intelligence,HOME OFFICE PAY & SUPER'N SERV,57878,"102,055.62"
Home Office,SOCA - Serious Organised Crime Agency,23/11/2010,"Accommodation, Subsistence & General Expenses",Intelligence,BARCLAYCARD,57968,"21,940.55"
Home Office,SOCA - Serious Organised Crime Agency,23/11/2010,"Accommodation, Subsistence & General Expenses",Intervention,BARCLAYCARD,57968,"63,214.51"
Home Office,SOCA - Serious Organised Crime Agency,22/10/2010,Property Plant & Equipment,Investment Board,MERCEDES BENZ ,55187,"29,856.75"
Home Office,SOCA - Serious Organised Crime Agency,27/10/2010,Property Plant & Equipment,Investment Board,FORD MOTOR COMPANY LTD,55624,"25,588.26"
Home Office,SOCA - Serious Organised Crime Agency,27/10/2010,Property Plant & Equipment,Investment Board,FORD MOTOR COMPANY LTD,55626,"25,588.26"
Home Office,SOCA - Serious Organised Crime Agency,08/11/2010,IT Expenses,Investment Board,CAPITA BUSINESS SERVICES LTD,56545,"94,886.60"
Home Office,SOCA - Serious Organised Crime Agency,17/11/2010,Property Plant & Equipment,Investment Board,DRIVERS JONAS DELOITTE,57539,"76,053.64"
Home Office,SOCA - Serious Organised Crime Agency,17/11/2010,Property Plant & Equipment,Investment Board,SERCO,57541,"94,240.44"
Home Office,SOCA - Serious Organised Crime Agency,17/11/2010,Property Plant & Equipment,Investment Board,WATES INTERIORS LTD,57547,"525,225.00"
Home Office,SOCA - Serious Organised Crime Agency,22/11/2010,IT Expenses,Investment Board,SERCO ,57952,"9,584.03"
Home Office,SOCA - Serious Organised Crime Agency,22/11/2010,Intangibles non-current assets,Investment Board,SERCO ,57952,722.3
Home Office,SOCA - Serious Organised Crime Agency,22/11/2010,PFI Contract Charges,Investment Board,SERCO ,57952,"129,863.06"
Home Office,SOCA - Serious Organised Crime Agency,22/11/2010,Property Plant & Equipment,Investment Board,SERCO ,57952,"2,481.34"
Home Office,SOCA - Serious Organised Crime Agency,22/10/2010,Property Plant & Equipment,Projects,BT ,55186,"114,445.00"
Home Office,SOCA - Serious Organised Crime Agency,01/11/2010,Salaries and Allowances -Seconded Officers,Projects,Strathclyde Police,55963,"38,159.26"
Home Office,SOCA - Serious Organised Crime Agency,01/11/2010,Salaries and Allowances -permanently employed,Projects,Strathclyde Police,55963,"4,003.38"
Home Office,SOCA - Serious Organised Crime Agency,23/11/2010,"Accommodation, Subsistence & General Expenses",Projects,BARCLAYCARD,57968,"11,027.31"
Home Office,UKBA - UK Border Agency,26/08/2010,Grant,UKBA - UK Border Agency,TAMESIDE & GLOSSOP PCT (G),1793247,"30,488.97"
Home Office,UKBA - UK Border Agency,01/10/2010,Other Gov't Dept. -Request For Transfer,UKBA - UK Border Agency,HM REVENUE & CUSTOMS,1854274,"250,000.00"
Home Office,UKBA - UK Border Agency,05/10/2010,Grant,UKBA - UK Border Agency,DEPARTMENT OF WORK & PENSIONS (G),1825723,"43,220.00"
Home Office,UKBA - UK Border Agency,05/10/2010,Grant,UKBA - UK Border Agency,DEPARTMENT OF WORK & PENSIONS (G),1825721,"167,880.00"
Home Office,UKBA - UK Border Agency,27/10/2010,Grant,UKBA - UK Border Agency,KINGSTON UPON HULL CITY COUNCIL 2 (G),1834711,"77,035.74"
Home Office,UKBA - UK Border Agency,01/11/2010,Professional & Admin Services.Visa Processing Services,UKBA - UK Border Agency,VF WORLDWIDE HOLDINGS LTD,1819126,"3,821,654.94"
Home Office,UKBA - UK Border Agency,01/11/2010,Professional & Admin Services.Visa Processing Services,UKBA - UK Border Agency,USCIS (DEPT OF HOMELAND SECURITY),1838583,"720,000.00"
Home Office,UKBA - UK Border Agency,01/11/2010,Grant,UKBA - UK Border Agency,HOUSING ASSOC CHARITABLE TRUST (G),1840821,"73,278.80"
Home Office,UKBA - UK Border Agency,01/11/2010,Grant,UKBA - UK Border Agency,BLACKBURNE HOUSE (WOMENS' TECHNOLOGY & ED CENTRE),1840819,"27,673.13"
Home Office,UKBA - UK Border Agency,02/11/2010,Asylum Provision.Asylum Cont Out Serv,UKBA - UK Border Agency,LEEDS CITY COUNCIL,1841414,"55,085.00"
Home Office,UKBA - UK Border Agency,02/11/2010,Asylum Services.Public Expense Removals,UKBA - UK Border Agency,CARLSON WAGONLIT TRAVEL,1840835,"165,505.50"
Home Office,UKBA - UK Border Agency,02/11/2010,Asylum Services.Public Expense Removals,UKBA - UK Border Agency,CARLSON WAGONLIT TRAVEL,1840290,"90,350.00"
Home Office,UKBA - UK Border Agency,02/11/2010,Asylum Services.Public Expense Removals,UKBA - UK Border Agency,CARLSON WAGONLIT TRAVEL,1840838,"82,542.02"
Home Office,UKBA - UK Border Agency,02/11/2010,Asylum Services.Public Expense Removals,UKBA - UK Border Agency,CARLSON WAGONLIT TRAVEL,1839680,"75,887.35"
Home Office,UKBA - UK Border Agency,02/11/2010,Asylum Services.Public Expense Removals,UKBA - UK Border Agency,CARLSON WAGONLIT TRAVEL,1840213,"75,657.92"
Home Office,UKBA - UK Border Agency,02/11/2010,Asylum Services.Public Expense Removals,UKBA - UK Border Agency,CARLSON WAGONLIT TRAVEL,1840837,"71,313.01"
Home Office,UKBA - UK Border Agency,02/11/2010,Defense & Law Enforcement.Police Liaison Officers,UKBA - UK Border Agency,STRATHCLYDE JOINT POLICE BOARD,1839652,"30,821.50"
Home Office,UKBA - UK Border Agency,02/11/2010,Defense & Law Enforcement.Police Liaison Officers,UKBA - UK Border Agency,LEICESTERSHIRE CONSTABULARY,1840393,"29,279.51"
Home Office,UKBA - UK Border Agency,02/11/2010,IT & Telecoms Components.Computer Equip (FA),UKBA - UK Border Agency,IBM DIRECT UNITED KINGDOM LTD,1839183,"1,507,532.05"
Home Office,UKBA - UK Border Agency,02/11/2010,IT & Telecoms Components.Computer Equip (FA),UKBA - UK Border Agency,KRONOS SYSTEMS LTD,1840259,"29,745.13"
Home Office,UKBA - UK Border Agency,02/11/2010,Politics & Civic Affairs.Human aid & relief Sect 4,UKBA - UK Border Agency,NORTHERN IRELAND HOUSING EXEC,1840222,"144,268.64"
Home Office,UKBA - UK Border Agency,02/11/2010,Professional & Admin Services.Business admin services - PROG,UKBA - UK Border Agency,TRIBAL CONSULTING LTD,1819218,"49,115.00"
Home Office,UKBA - UK Border Agency,02/11/2010,Professional & Admin Services.Business admin services - PROG,UKBA - UK Border Agency,ADVANTAGE TECHNICAL RESOURCING,1840817,"26,361.36"
Home Office,UKBA - UK Border Agency,02/11/2010,Public Order.Jail or prison services,UKBA - UK Border Agency,METROPOLITAN POLICE,1840457,"49,993.00"
Home Office,UKBA - UK Border Agency,03/11/2010,"Clothes, shoes & Personal Care.Clothing - PROG",UKBA - UK Border Agency,ALEXANDRA PLC,1841463,"28,298.28"
Home Office,UKBA - UK Border Agency,03/11/2010,Politics & Civic Affairs.Human aid & relief Sect 4,UKBA - UK Border Agency,GLASGOW CITY COUNCIL,1841601,"710,319.18"
Home Office,UKBA - UK Border Agency,03/11/2010,Politics & Civic Affairs.Human aid & relief Sect 4,UKBA - UK Border Agency,CARDIFF COUNTY COUNCIL,1841725,"334,418.78"
Home Office,UKBA - UK Border Agency,03/11/2010,Politics & Civic Affairs.Human aid & relief Sect 4,UKBA - UK Border Agency,PRIORITY PROPERTIES NORTH WEST,1842244,"143,573.46"
Home Office,UKBA - UK Border Agency,03/11/2010,Politics & Civic Affairs.Human aid & relief Sect 4,UKBA - UK Border Agency,PRIORITY PROPERTIES NORTH WEST,1842258,"104,510.01"
Home Office,UKBA - UK Border Agency,03/11/2010,Politics & Civic Affairs.Human aid & relief Sect 4,UKBA - UK Border Agency,PRIORITY PROPERTIES NORTH WEST,1842256,"96,959.86"
Home Office,UKBA - UK Border Agency,03/11/2010,Politics & Civic Affairs.Human aid & relief Sect 4,UKBA - UK Border Agency,PRIORITY PROPERTIES NORTH WEST,1842255,"41,182.21"
Home Office,UKBA - UK Border Agency,03/11/2010,Politics & Civic Affairs.REFUGEE PROG. SECT 95,UKBA - UK Border Agency,CITY AND COUNTY OF SWANSEA,1841557,"66,983.25"
Home Office,UKBA - UK Border Agency,03/11/2010,Storage & Mail Services.Messenger & Reception Services,UKBA - UK Border Agency,NPIA (National Policing Improvement Agency),1841784,"381,875.00"
Home Office,UKBA - UK Border Agency,03/11/2010,"Transport, Storage & Mail Serv.Fuel & Vehicle Supp Serv- PROG",UKBA - UK Border Agency,ARVAL UK LTD,1838559,"33,771.99"
Home Office,UKBA - UK Border Agency,03/11/2010,Other Gov't Dept. -Request For Transfer,UKBA - UK Border Agency,DRIVER AND VEHICLE LICENSING AGENCY (DVLA),1854899,"90,553.84"
Home Office,UKBA - UK Border Agency,03/11/2010,Other Gov't Dept. -Request For Transfer,UKBA - UK Border Agency,DRIVER AND VEHICLE LICENSING AGENCY (DVLA),1854896,"432,375.63"
Home Office,UKBA - UK Border Agency,03/11/2010,Grant,UKBA - UK Border Agency,LIVERPOOL CITY COUNCIL 1 (G),1840814,"62,448.30"
Home Office,UKBA - UK Border Agency,03/11/2010,Grant,UKBA - UK Border Agency,LONDON BOROUGH OF GREENWICH 1 (G),1840810,"216,947.44"
Home Office,UKBA - UK Border Agency,03/11/2010,Grant,UKBA - UK Border Agency,DERBY CITY COUNCIL  (G),1840807,"145,137.21"
Home Office,UKBA - UK Border Agency,03/11/2010,Grant,UKBA - UK Border Agency,WEST SUSSEX COUNTY COUNCIL 1 (G),1837973,"62,580.00"
Home Office,UKBA - UK Border Agency,04/11/2010,Asylum Provision.Asylum serv Sect4Vouchers,UKBA - UK Border Agency,SODEXHO PASS LTD,1842384,"211,624.37"
Home Office,UKBA - UK Border Agency,04/11/2010,Politics & Civic Affairs.Displaced pers.assistance,UKBA - UK Border Agency,SODEXHO PASS LTD,1842386,"991,007.32"
Home Office,UKBA - UK Border Agency,04/11/2010,Politics & Civic Affairs.Human aid & relief Sect 4,UKBA - UK Border Agency,YMCA GLASGOW,1836806,"450,317.09"
Home Office,UKBA - UK Border Agency,04/11/2010,"Public Order, Security, Safety.PORT AUTHORITY DETENTION",UKBA - UK Border Agency,HARWICH INTL PORT LTD,1843014,"35,099.84"
Home Office,UKBA - UK Border Agency,04/11/2010,"Transport, Storage & Mail Serv.Visa stock",UKBA - UK Border Agency,3M SECURITY PRINTING & SYSTEMS LTD,1822472,"31,471.20"
Home Office,UKBA - UK Border Agency,04/11/2010,"Transport, Storage & Mail Serv.Visa stock",UKBA - UK Border Agency,3M SECURITY PRINTING & SYSTEMS LTD,1822469,"25,824.15"
Home Office,UKBA - UK Border Agency,04/11/2010,Other Gov't Dept. -Request For Transfer,UKBA - UK Border Agency,FOREIGN AND COMMONWEALTH OFFICE,1855392,"125,007.00"
Home Office,UKBA - UK Border Agency,04/11/2010,Other Gov't Dept. -Request For Transfer,UKBA - UK Border Agency,TREASURY SOLICITOR CLIENT MONIES,1845658,"368,488.33"
Home Office,UKBA - UK Border Agency,05/11/2010,"Building, Construction Service.Build a new structure (FA)",UKBA - UK Border Agency,THE GEO GROUP UK LTD,1842388,"509,189.60"
Home Office,UKBA - UK Border Agency,05/11/2010,IT & Telecoms Components.Computer Equip (FA),UKBA - UK Border Agency,COGENT SYSTEMS INC.,1828623,"26,120.25"
Home Office,UKBA - UK Border Agency,05/11/2010,IT & Telecoms Components.Computer Equip (FA),UKBA - UK Border Agency,KRONOS SYSTEMS LTD,1842979,"522,845.63"
Home Office,UKBA - UK Border Agency,05/11/2010,IT & Telecoms Components.Computer Equip (FA),UKBA - UK Border Agency,KRONOS SYSTEMS LTD,1842962,"30,605.25"
Home Office,UKBA - UK Border Agency,05/11/2010,Law Enforcement & safety Equip.Security & Control Equip- PROG,UKBA - UK Border Agency,MORPHO DETECTION UK LTD,1843404,"62,930.23"
Home Office,UKBA - UK Border Agency,05/11/2010,Management & Admin Serv.Temp IT N/w Specialists - PROG,UKBA - UK Border Agency,ADVANTAGE TECHNICAL RESOURCING,1842253,"40,757.81"
Home Office,UKBA - UK Border Agency,05/11/2010,Professional & Admin Services.Visa Processing Services,UKBA - UK Border Agency,VF WORLDWIDE HOLDINGS LTD,1843533,"3,666,277.53"
Home Office,UKBA - UK Border Agency,05/11/2010,Professional & Admin Services.Visa Processing Services,UKBA - UK Border Agency,VF WORLDWIDE HOLDINGS LTD,1843347,"506,715.00"
Home Office,UKBA - UK Border Agency,05/11/2010,Professional & Admin Services.Visa Processing Services,UKBA - UK Border Agency,VF WORLDWIDE HOLDINGS LTD,1843343,"482,524.00"
Home Office,UKBA - UK Border Agency,05/11/2010,Professional & Admin Services.Visa Processing Services,UKBA - UK Border Agency,VF WORLDWIDE HOLDINGS LTD,1843348,"350,847.00"
Home Office,UKBA - UK Border Agency,05/11/2010,Professional & Admin Services.Visa Processing Services,UKBA - UK Border Agency,VF WORLDWIDE HOLDINGS LTD,1843335,"228,147.00"
Home Office,UKBA - UK Border Agency,05/11/2010,Professional & Admin Services.Visa Processing Services,UKBA - UK Border Agency,VF WORLDWIDE HOLDINGS LTD,1843349,"172,107.00"
Home Office,UKBA - UK Border Agency,05/11/2010,Professional & Admin Services.Visa Processing Services,UKBA - UK Border Agency,VF WORLDWIDE HOLDINGS LTD,1843338,"151,015.00"
Home Office,UKBA - UK Border Agency,05/11/2010,Professional & Admin Services.Visa Processing Services,UKBA - UK Border Agency,VF WORLDWIDE HOLDINGS LTD,1843333,"56,277.00"
Home Office,UKBA - UK Border Agency,05/11/2010,Professional & Admin Services.Visa Processing Services,UKBA - UK Border Agency,VF WORLDWIDE HOLDINGS LTD,1843340,"38,154.40"
Home Office,UKBA - UK Border Agency,05/11/2010,"Public Order, Security Service.Detention Services Contracts",UKBA - UK Border Agency,THE GEO GROUP UK LTD,1842379,"1,184,718.43"
Home Office,UKBA - UK Border Agency,05/11/2010,"Public Order, Security Service.Detention Services Contracts",UKBA - UK Border Agency,THE GEO GROUP UK LTD,1842404,"583,044.74"
Home Office,UKBA - UK Border Agency,05/11/2010,"Public Order, Security Service.Detention Services Contracts",UKBA - UK Border Agency,THE GEO GROUP UK LTD,1842408,"144,628.68"
Home Office,UKBA - UK Border Agency,05/11/2010,"Public Order, Security Service.Detention Services Contracts",UKBA - UK Border Agency,THE GEO GROUP UK LTD,1842374,"25,123.06"
Home Office,UKBA - UK Border Agency,05/11/2010,"Public Order, Security, Safety.Escorting services",UKBA - UK Border Agency,G4S CARE & JUSTICE SERVICES (UK) LTD,1825596,"456,305.87"
Home Office,UKBA - UK Border Agency,05/11/2010,"Public Order, Security, Safety.Escorting services",UKBA - UK Border Agency,G4S CARE & JUSTICE SERVICES (UK) LTD,1826582,"105,375.60"
Home Office,UKBA - UK Border Agency,05/11/2010,"Public Order, Security, Safety.Escorting services",UKBA - UK Border Agency,G4S CARE & JUSTICE SERVICES (UK) LTD,1825613,"78,722.55"
Home Office,UKBA - UK Border Agency,05/11/2010,"Public Order, Security, Safety.Security Guard Services - PROG",UKBA - UK Border Agency,OCS GROUP UK LTD,1842993,"146,240.66"
Home Office,UKBA - UK Border Agency,05/11/2010,"Science, Technical & Research.Computer services - PROG",UKBA - UK Border Agency,KRONOS SYSTEMS LTD,1842978,"104,569.13"
Home Office,UKBA - UK Border Agency,05/11/2010,Storage & Mail Services.Messenger & Reception Services,UKBA - UK Border Agency,SIEMENS BUSINESS SERVICES LTD,1826717,"75,312.37"
Home Office,UKBA - UK Border Agency,05/11/2010,Other Gov't Dept. -Request For Transfer,UKBA - UK Border Agency,FCO SERVICES,1848095,"54,000.81"
Home Office,UKBA - UK Border Agency,05/11/2010,Other Gov't Dept. -Request For Transfer,UKBA - UK Border Agency,TREASURY SOLICITOR CLIENT MONIES,1848065,"200,156.90"
Home Office,UKBA - UK Border Agency,05/11/2010,Other Gov't Dept. -Request For Transfer,UKBA - UK Border Agency,TREASURY SOLICITORS OFFICE,1853494,"44,114.68"
Home Office,UKBA - UK Border Agency,05/11/2010,Other Gov't Dept. -Request For Transfer,UKBA - UK Border Agency,TREASURY SOLICITORS OFFICE,1853491,"28,784.14"
Home Office,UKBA - UK Border Agency,05/11/2010,Other Gov't Dept. -Request For Transfer,UKBA - UK Border Agency,TREASURY SOLICITORS OFFICE,1853488,"1,964,237.69"
Home Office,UKBA - UK Border Agency,08/11/2010,Asylum Services.Public Expense Removals,UKBA - UK Border Agency,CARLSON WAGONLIT TRAVEL,1843134,"214,616.78"
Home Office,UKBA - UK Border Agency,08/11/2010,Asylum Services.Public Expense Removals,UKBA - UK Border Agency,CARLSON WAGONLIT TRAVEL,1843136,"74,135.71"
Home Office,UKBA - UK Border Agency,08/11/2010,Asylum Services.Public Expense Removals,UKBA - UK Border Agency,CARLSON WAGONLIT TRAVEL,1842280,"34,360.00"
Home Office,UKBA - UK Border Agency,08/11/2010,"IT, Broadcasting & Telecomms.IT Running Cost - Maint - PROG",UKBA - UK Border Agency,NPIA (National Policing Improvement Agency),1844313,"68,350.23"
Home Office,UKBA - UK Border Agency,08/11/2010,Law Enforcement & safety Equip.Security & Control Equip- PROG,UKBA - UK Border Agency,HAMPSHIRE CONSTABULARY,1818453,"26,460.00"
Home Office,UKBA - UK Border Agency,08/11/2010,Management & Admin Serv.Corp & Bus Org Structure- PROG,UKBA - UK Border Agency,ALPINE RESOURCING LIMITED,1844211,"32,488.75"
Home Office,UKBA - UK Border Agency,08/11/2010,Professional & Admin Services.Corp Business IT Serv - PROG,UKBA - UK Border Agency,SERCO  LTD,1827789,"301,824.60"
Home Office,UKBA - UK Border Agency,08/11/2010,"Public Order, Security, Safety.Domestic Escort Services",UKBA - UK Border Agency,G4S CARE & JUSTICE SERVICES (UK) LTD,1827711,"35,587.75"
Home Office,UKBA - UK Border Agency,08/11/2010,"Transport, Storage & Mail Serv.Document Storage Serv - ADMN",UKBA - UK Border Agency,IRON MOUNTAIN (UK) LTD,1828691,"494,608.17"
Home Office,UKBA - UK Border Agency,08/11/2010,"Transport, Storage & Mail Serv.Parking fees - PROG",UKBA - UK Border Agency,GATWICK AIRPORT LTD,1844476,"27,389.39"
Home Office,UKBA - UK Border Agency,08/11/2010,"Transport, Storage & Mail Serv.Parking fees - PROG",UKBA - UK Border Agency,GATWICK AIRPORT LTD,1844479,"26,903.76"
Home Office,UKBA - UK Border Agency,08/11/2010,Travel & Food & Lodging.Juxtaposed Oversea Trav�PROG,UKBA - UK Border Agency,KENT COUNTY COUNCIL PASSENGER SERVICES,1842293,"38,320.18"
Home Office,UKBA - UK Border Agency,08/11/2010,Repatriation Services - Escort Services,UKBA - UK Border Agency,IOM INTERNATIONAL ORGANIZATION FOR MIGRATION,1844454,"81,069.00"
Home Office,UKBA - UK Border Agency,08/11/2010,Repatriation Services - Escort Services,UKBA - UK Border Agency,IOM INTERNATIONAL ORGANIZATION FOR MIGRATION,1844441,"2,409,950.45"
Home Office,UKBA - UK Border Agency,08/11/2010,Grant,UKBA - UK Border Agency,DEPARTMENT OF WORK & PENSIONS (G),1847055,"67,152.00"
Home Office,UKBA - UK Border Agency,08/11/2010,Grant,UKBA - UK Border Agency,DEPARTMENT OF WORK & PENSIONS (G),1847053,"92,334.00"
Home Office,UKBA - UK Border Agency,09/11/2010,Asylum Provision.Asylum serv Sect4Vouchers,UKBA - UK Border Agency,SODEXHO PASS LTD,1845925,"192,058.32"
Home Office,UKBA - UK Border Agency,09/11/2010,Asylum Provision.Asylum serv Sect4Vouchers,UKBA - UK Border Agency,SODEXHO PASS LTD,1845922,"46,889.32"
Home Office,UKBA - UK Border Agency,09/11/2010,Asylum Services.Public Expense Removals,UKBA - UK Border Agency,CARLSON WAGONLIT TRAVEL,1845473,"88,508.62"
Home Office,UKBA - UK Border Agency,09/11/2010,Asylum Services.Public Expense Removals,UKBA - UK Border Agency,CARLSON WAGONLIT TRAVEL,1845470,"84,617.48"
Home Office,UKBA - UK Border Agency,09/11/2010,Asylum Services.Public Expense Removals,UKBA - UK Border Agency,CARLSON WAGONLIT TRAVEL,1845468,"77,179.16"
Home Office,UKBA - UK Border Agency,09/11/2010,Asylum Services.Public Expense Removals,UKBA - UK Border Agency,CARLSON WAGONLIT TRAVEL,1845740,"34,360.00"
Home Office,UKBA - UK Border Agency,09/11/2010,Defense & Law Enforcement.Police Liaison Officers,UKBA - UK Border Agency,THE METROPOLITAN POLICE,1846891,"281,168.00"
Home Office,UKBA - UK Border Agency,09/11/2010,Defense & Law Enforcement.Police Liaison Officers,UKBA - UK Border Agency,THE METROPOLITAN POLICE,1846790,"105,265.59"
Home Office,UKBA - UK Border Agency,09/11/2010,Defense & Law Enforcement.Police Liaison Officers,UKBA - UK Border Agency,GREATER MANCHESTER POLICE,1846783,"28,090.64"
Home Office,UKBA - UK Border Agency,09/11/2010,Defense & Law Enforcement.Police Liaison Officers,UKBA - UK Border Agency,DURHAM POLICE AUTHORITY,1845813,"25,549.86"
Home Office,UKBA - UK Border Agency,09/11/2010,Politics & Civic Affairs.Displaced pers.assistance,UKBA - UK Border Agency,SODEXHO PASS LTD,1845923,"989,651.78"
Home Office,UKBA - UK Border Agency,09/11/2010,Politics & Civic Affairs.Displaced pers.assistance,UKBA - UK Border Agency,SODEXHO PASS LTD,1845924,"257,686.89"
Home Office,UKBA - UK Border Agency,09/11/2010,Politics & Civic Affairs.Human aid & relief Sect 4,UKBA - UK Border Agency,BIRMINGHAM CITY COUNCIL,1846868,"490,515.22"
Home Office,UKBA - UK Border Agency,09/11/2010,"Public Order, Security, Safety.Security Guard Services - PROG",UKBA - UK Border Agency,EAMUS CORK SOLUTIONS,1845475,"167,646.80"
Home Office,UKBA - UK Border Agency,09/11/2010,Travel & Food & Lodging.Juxtaposed Oversea Trav�PROG,UKBA - UK Border Agency,THE CHANNEL TUNNEL GROUP LTD,1845424,"64,158.00"
Home Office,UKBA - UK Border Agency,09/11/2010,Grant,UKBA - UK Border Agency,DEPARTMENT OF WORK & PENSIONS (G),1847057,"184,668.00"
Home Office,UKBA - UK Border Agency,10/11/2010,Asylum Services.Public Expense Removals,UKBA - UK Border Agency,CARLSON WAGONLIT TRAVEL,1847009,"96,174.65"
Home Office,UKBA - UK Border Agency,10/11/2010,Defense & Law Enforcement.Police Liaison Officers,UKBA - UK Border Agency,NOTTINGHAMSHIRE POLICE AUTHORITY 1,1846934,"31,551.69"
Home Office,UKBA - UK Border Agency,10/11/2010,Defense & Law Enforcement.Police Liaison Officers,UKBA - UK Border Agency,NORTHAMPTONSHIRE POLICE 2,1846936,"30,738.47"
Home Office,UKBA - UK Border Agency,10/11/2010,Healthcare Services.Healthcare Services - ADMN,UKBA - UK Border Agency,HEALTH MANAGEMENT LTD,1845415,"93,032.28"
Home Office,UKBA - UK Border Agency,10/11/2010,IT & Telecoms Components.Computer Equip (FA),UKBA - UK Border Agency,SPECIALIST COMPUTER CENTRES PLC,1846780,"84,930.18"
Home Office,UKBA - UK Border Agency,10/11/2010,IT & Telecoms Components.Computer Equip (FA),UKBA - UK Border Agency,SPECIALIST COMPUTER CENTRES PLC,1841593,"56,546.88"
Home Office,UKBA - UK Border Agency,10/11/2010,IT & Telecoms Components.Computer Equip (FA),UKBA - UK Border Agency,SPECIALIST COMPUTER CENTRES PLC,1845816,"27,688.88"
Home Office,UKBA - UK Border Agency,10/11/2010,Professional & Admin Services.Corp Business IT Serv - PROG,UKBA - UK Border Agency,ERNST AND YOUNG LLP,1845688,"59,086.05"
Home Office,UKBA - UK Border Agency,10/11/2010,Storage & Mail Services.Messenger & Reception Services,UKBA - UK Border Agency,NPIA (National Policing Improvement Agency),1844312,"66,898.44"
Home Office,UKBA - UK Border Agency,10/11/2010,Grant,UKBA - UK Border Agency,RB OF WINDSOR & MAIDENHEAD (G),1844349,"82,665.93"
Home Office,UKBA - UK Border Agency,10/11/2010,Grant,UKBA - UK Border Agency,POWYS COUNTY COUNCIL 1 (G),1844344,"28,663.29"
Home Office,UKBA - UK Border Agency,10/11/2010,Grant,UKBA - UK Border Agency,OLDHAM MBC 1 (G),1844339,"60,020.67"
Home Office,UKBA - UK Border Agency,10/11/2010,Grant,UKBA - UK Border Agency,NORFOLK COUNTY COUNCIL 1 (G),1844337,"179,353.92"
Home Office,UKBA - UK Border Agency,10/11/2010,Grant,UKBA - UK Border Agency,CORPORATION OF LONDON (G),1844332,"60,252.15"
Home Office,UKBA - UK Border Agency,10/11/2010,Grant,UKBA - UK Border Agency,DEPARTMENT OF WORK & PENSIONS (G),1847059,"25,182.00"
Home Office,UKBA - UK Border Agency,10/11/2010,Grant,UKBA - UK Border Agency,DEPARTMENT OF WORK & PENSIONS (G),1847058,"47,542.00"
Home Office,UKBA - UK Border Agency,10/11/2010,Grant,UKBA - UK Border Agency,LONDON SOUTHBANK UNIVERSITY (G),1847855,"103,125.00"
Home Office,UKBA - UK Border Agency,11/11/2010,Defense & Law Enforcement.Police Liaison Officers,UKBA - UK Border Agency,WEST MIDLANDS POLICE,1848282,"32,938.78"
Home Office,UKBA - UK Border Agency,11/11/2010,Defense & Law Enforcement.Police Liaison Officers,UKBA - UK Border Agency,HUMBERSIDE POLICE AUTHORITY,1848008,"27,198.54"
Home Office,UKBA - UK Border Agency,11/11/2010,Generators & Equip (FA).Plant & machinery (FA),UKBA - UK Border Agency,ARQIVA LTD,1840214,"60,598.91"
Home Office,UKBA - UK Border Agency,11/11/2010,Management & Admin Serv.Temp IT N/w Specialists - PROG,UKBA - UK Border Agency,TRIBAL CONSULTING LTD,1848120,"25,013.40"
Home Office,UKBA - UK Border Agency,11/11/2010,Professional & Admin Services.Consultant - Imp & Del - PROG,UKBA - UK Border Agency,TRIBAL HELM CORPORATION LTD,1848855,"25,145.00"
Home Office,UKBA - UK Border Agency,11/11/2010,"Public Order, Security, Safety.Domestic Escort Services",UKBA - UK Border Agency,G4S CARE & JUSTICE SERVICES (UK) LTD,1838854,"1,487,190.17"
Home Office,UKBA - UK Border Agency,11/11/2010,"Science, Technical & Research.Computer services - PROG",UKBA - UK Border Agency,IBM DIRECT UNITED KINGDOM LTD,1848213,"694,235.83"
Home Office,UKBA - UK Border Agency,11/11/2010,"Transport, Storage & Mail Serv.Fuel & Vehicle Supp Serv- PROG",UKBA - UK Border Agency,ARVAL UK LTD,1847801,"34,543.12"
Home Office,UKBA - UK Border Agency,11/11/2010,Utilities.Small Scale Radio Sys - PROG,UKBA - UK Border Agency,AIRWAVE SOLUTIONS LTD,1832149,"801,753.06"
Home Office,UKBA - UK Border Agency,11/11/2010,Utilities.Small Scale Radio Sys - PROG,UKBA - UK Border Agency,AIRWAVE SOLUTIONS LTD,1840733,"738,089.58"
Home Office,UKBA - UK Border Agency,11/11/2010,Other Gov't Dept. -Request For Transfer,UKBA - UK Border Agency,TREASURY SOLICITOR CLIENT MONIES,1851504,"97,150.00"
Home Office,UKBA - UK Border Agency,11/11/2010,Grant,UKBA - UK Border Agency,DEPARTMENT OF WORK & PENSIONS (G),1847068,"45,381.00"
Home Office,UKBA - UK Border Agency,11/11/2010,Grant,UKBA - UK Border Agency,DEPARTMENT OF WORK & PENSIONS (G),1847064,"176,274.00"
Home Office,UKBA - UK Border Agency,12/11/2010,Asylum Services.Public Expense Removals,UKBA - UK Border Agency,CARLSON WAGONLIT TRAVEL,1848856,"232,993.82"
Home Office,UKBA - UK Border Agency,12/11/2010,Asylum Services.Public Expense Removals,UKBA - UK Border Agency,CARLSON WAGONLIT TRAVEL,1848857,"27,304.52"
Home Office,UKBA - UK Border Agency,12/11/2010,Asylum Services.Public Expense Removals,UKBA - UK Border Agency,CARLSON WAGONLIT TRAVEL,1850061,"25,353.77"
Home Office,UKBA - UK Border Agency,12/11/2010,Defense & Law Enforcement.Police Liaison Officers,UKBA - UK Border Agency,SOUTH YORKSHIRE POLICE,1848130,"33,776.23"
Home Office,UKBA - UK Border Agency,12/11/2010,Defense & Law Enforcement.Police Liaison Officers,UKBA - UK Border Agency,SOUTH YORKSHIRE POLICE,1827060,"33,569.34"
Home Office,UKBA - UK Border Agency,12/11/2010,IT & Telecoms Components.Computer Equip (FA),UKBA - UK Border Agency,IBM DIRECT UNITED KINGDOM LTD,1839210,"245,028.28"
Home Office,UKBA - UK Border Agency,12/11/2010,IT & Telecoms Components.Computer Equip (FA),UKBA - UK Border Agency,ADVANTAGE TECHNICAL RESOURCING,1842234,"27,965.00"
Home Office,UKBA - UK Border Agency,12/11/2010,"Public Order, Security, Safety.Domestic Escort Services",UKBA - UK Border Agency,G4S CARE & JUSTICE SERVICES (UK) LTD,1829821,"75,538.97"
Home Office,UKBA - UK Border Agency,12/11/2010,"Transport, Storage & Mail Serv.Mailing, Mail Delivery Service",UKBA - UK Border Agency,FRANCOTYP-POSTALIA LIMITED,1849376,"40,000.00"
Home Office,UKBA - UK Border Agency,15/11/2010,"Public Order, Security, Safety.Escorting services",UKBA - UK Border Agency,G4S CARE & JUSTICE SERVICES (UK) LTD,1832085,"74,434.59"
Home Office,UKBA - UK Border Agency,15/11/2010,Legal Services,UKBA - UK Border Agency,PINSENT MASONS,1849926,"407,098.24"
Home Office,UKBA - UK Border Agency,15/11/2010,Other Gov't Dept. -Request For Transfer,UKBA - UK Border Agency,SECURITY SERVICES GROUP,1853700,"25,585.43"
Home Office,UKBA - UK Border Agency,16/11/2010,IT & Telecoms Components.Computer Equip (FA),UKBA - UK Border Agency,ADVANTAGE TECHNICAL RESOURCING,1842230,"35,056.13"
Home Office,UKBA - UK Border Agency,16/11/2010,Other Gov't Dept. -Request For Transfer,UKBA - UK Border Agency,TREASURY SOLICITOR CLIENT MONIES,1855356,"107,606.50"
Home Office,UKBA - UK Border Agency,16/11/2010,Grant,UKBA - UK Border Agency,OISC (G),1843346,"339,750.00"
Home Office,UKBA - UK Border Agency,17/11/2010,Asylum Services.Public Expense Removals,UKBA - UK Border Agency,CARLSON WAGONLIT TRAVEL,1853571,"202,500.00"
Home Office,UKBA - UK Border Agency,17/11/2010,Asylum Services.Public Expense Removals,UKBA - UK Border Agency,CARLSON WAGONLIT TRAVEL,1852871,"84,713.51"
Home Office,UKBA - UK Border Agency,17/11/2010,Asylum Services.Public Expense Removals,UKBA - UK Border Agency,CARLSON WAGONLIT TRAVEL,1853568,"27,651.17"
Home Office,UKBA - UK Border Agency,17/11/2010,Management & Admin Serv.Overseas Posting Costs-PROG,UKBA - UK Border Agency,CROWN RELOCATIONS,1852885,"108,556.80"
Home Office,UKBA - UK Border Agency,17/11/2010,"Public Order, Security, Safety.PORT AUTHORITY DETENTION",UKBA - UK Border Agency,HARWICH INTL PORT LTD,1852970,"35,300.20"
Home Office,UKBA - UK Border Agency,17/11/2010,"OGDs, Councils & Police Authorities",UKBA - UK Border Agency,BIRMINGHAM CITY COUNCIL,1852377,"40,560.00"
Home Office,UKBA - UK Border Agency,17/11/2010,Other Gov't Dept. -Request For Transfer,UKBA - UK Border Agency,FCO SERVICES,1857500,"28,934.85"
Home Office,UKBA - UK Border Agency,17/11/2010,Grant,UKBA - UK Border Agency,LONDON BOROUGH  WALTHAM FOREST (G),1851754,"172,763.82"
Home Office,UKBA - UK Border Agency,17/11/2010,Grant,UKBA - UK Border Agency,SHROPSHIRE COUNTY COUNCIL 1 (G),1851753,"32,170.80"
Home Office,UKBA - UK Border Agency,17/11/2010,Grant,UKBA - UK Border Agency,SALFORD CITY COUNCIL (G),1851752,"64,777.65"
Home Office,UKBA - UK Border Agency,17/11/2010,Grant,UKBA - UK Border Agency,LB OF BRENT CHILDRENS DIRECTORATE (G),1851742,"542,713.20"
Home Office,UKBA - UK Border Agency,17/11/2010,Grant,UKBA - UK Border Agency,SURREY COUNTY COUNCIL 1 (G),1848221,"168,150.00"
Home Office,UKBA - UK Border Agency,17/11/2010,Grant,UKBA - UK Border Agency,HERTFORDSHIRE COUNTY COUNCIL 1 (G),1848219,"87,750.00"
Home Office,UKBA - UK Border Agency,17/11/2010,Grant,UKBA - UK Border Agency,LONDON BOROUGH OF HARROW 1 (G),1848218,"101,400.00"
Home Office,UKBA - UK Border Agency,17/11/2010,Grant,UKBA - UK Border Agency,RUTLAND COUNTY COUNCIL DC (G),1847825,"57,326.58"
Home Office,UKBA - UK Border Agency,17/11/2010,Grant,UKBA - UK Border Agency,ROTHERHAM MBC 2 (G),1847822,"73,317.75"
Home Office,UKBA - UK Border Agency,17/11/2010,Grant,UKBA - UK Border Agency,BRADFORD COUNCIL(G),1847819,"234,223.68"
Home Office,UKBA - UK Border Agency,17/11/2010,Grant,UKBA - UK Border Agency,LANCASHIRE ADULT LEARNING (G),1853764,"66,836.31"
Home Office,UKBA - UK Border Agency,17/11/2010,Grant,UKBA - UK Border Agency,UGANDA COMMUNITY RELIEF ASSOCIATION (UCRA) (G),1853664,"29,070.50"
Home Office,UKBA - UK Border Agency,18/11/2010,"IT, Broadcasting & Telecomms.IT Run Costs other -Prog",UKBA - UK Border Agency,ATOS ORIGIN IT SERVICES UK LIMITED- MEDICAL SERVICES,1836701,"230,022.70"
Home Office,UKBA - UK Border Agency,18/11/2010,"IT, Broadcasting & Telecomms.IT Run Costs other -Prog",UKBA - UK Border Agency,ATOS ORIGIN IT SERVICES UK LIMITED- MEDICAL SERVICES,1836703,"30,362.00"
Home Office,UKBA - UK Border Agency,18/11/2010,"Law Enforcement & safety Equip.Haulage, Storage & Disp (HSD)",UKBA - UK Border Agency,ASSOCIATED BRITISH PORTS,1854335,"438,783.78"
Home Office,UKBA - UK Border Agency,19/11/2010,Asylum Provision.Asylum accom Sect 98,UKBA - UK Border Agency,SERCO  LTD,1822173,"90,874.38"
Home Office,UKBA - UK Border Agency,19/11/2010,Asylum Provision.Asylum serv Sect4Vouchers,UKBA - UK Border Agency,SODEXHO PASS LTD,1854406,"190,591.65"
Home Office,UKBA - UK Border Agency,19/11/2010,Asylum Services.Public Expense Removals,UKBA - UK Border Agency,CARLSON WAGONLIT TRAVEL,1854684,"190,744.19"
Home Office,UKBA - UK Border Agency,19/11/2010,Asylum Services.Public Expense Removals,UKBA - UK Border Agency,CARLSON WAGONLIT TRAVEL,1854682,"80,958.87"
Home Office,UKBA - UK Border Agency,19/11/2010,"Building, Construction Service.Build a new structure (FA)",UKBA - UK Border Agency,INTERSERVE PROJECT SERVICES LIMITED,1855308,"545,214.10"
Home Office,UKBA - UK Border Agency,19/11/2010,"Building, Construction Service.Build a new structure (FA)",UKBA - UK Border Agency,INTERSERVE PROJECT SERVICES LIMITED,1855303,"542,838.25"
Home Office,UKBA - UK Border Agency,19/11/2010,Defense & Law Enforcement.Police Liaison Officers,UKBA - UK Border Agency,THE METROPOLITAN POLICE,1854611,"80,770.56"
Home Office,UKBA - UK Border Agency,19/11/2010,Financial & Insurance Services.Banking & Monetary Serv - PROG,UKBA - UK Border Agency,STREAMLINE,1842578,"27,751.80"
Home Office,UKBA - UK Border Agency,19/11/2010,Politics & Civic Affairs.Displaced pers.assistance,UKBA - UK Border Agency,SODEXHO PASS LTD,1854409,"971,534.53"
Home Office,UKBA - UK Border Agency,19/11/2010,Politics & Civic Affairs.Human aid & relief Sect 4,UKBA - UK Border Agency,PRIORITY PROPERTIES NORTH WEST,1854564,"506,989.14"
Home Office,UKBA - UK Border Agency,19/11/2010,Politics & Civic Affairs.Human aid & relief Sect 4,UKBA - UK Border Agency,PRIORITY PROPERTIES NORTH WEST,1854567,"340,813.27"
Home Office,UKBA - UK Border Agency,19/11/2010,Politics & Civic Affairs.Human aid & relief Sect 4,UKBA - UK Border Agency,PRIORITY PROPERTIES NORTH WEST,1854557,"217,145.48"
Home Office,UKBA - UK Border Agency,19/11/2010,Politics & Civic Affairs.Human aid & relief Sect 4,UKBA - UK Border Agency,PRIORITY PROPERTIES NORTH WEST,1854561,"154,768.54"
Home Office,UKBA - UK Border Agency,19/11/2010,"Public Order, Security, Safety.Confinement Surveillance",UKBA - UK Border Agency,SERCO  LTD,1835616,"86,628.13"
Home Office,UKBA - UK Border Agency,19/11/2010,Storage & Mail Services.Messenger & Reception Services,UKBA - UK Border Agency,IDENTITY & PASSPORTS SERVICE,1846799,"49,664.73"
Home Office,UKBA - UK Border Agency,19/11/2010,Other Gov't Dept. -Request For Transfer,UKBA - UK Border Agency,TREASURY SOLICITOR CLIENT MONIES,1860375,"146,580.36"
Home Office,UKBA - UK Border Agency,22/11/2010,Asylum Services.Public Expense Removals,UKBA - UK Border Agency,CARLSON WAGONLIT TRAVEL,1856223,"67,244.30"
Home Office,UKBA - UK Border Agency,22/11/2010,Politics & Civic Affairs.Human aid & relief Sect 4,UKBA - UK Border Agency,CLEARSPRINGS MANAGEMENT LTD,1856302,"397,627.23"
Home Office,UKBA - UK Border Agency,22/11/2010,Politics & Civic Affairs.Human aid & relief Sect 4,UKBA - UK Border Agency,JOMAST PROPERTY AND FINANCE CO LTD,1855540,"315,535.15"
Home Office,UKBA - UK Border Agency,22/11/2010,Politics & Civic Affairs.Human aid & relief Sect 4,UKBA - UK Border Agency,CLEARSPRINGS MANAGEMENT LTD,1856299,"279,073.60"
Home Office,UKBA - UK Border Agency,22/11/2010,Politics & Civic Affairs.Human aid & relief Sect 4,UKBA - UK Border Agency,CLEARSPRINGS MANAGEMENT LTD,1856296,"171,774.45"
Home Office,UKBA - UK Border Agency,22/11/2010,"Public Order, Security, Safety.Domestic Escort Services",UKBA - UK Border Agency,G4S CARE & JUSTICE SERVICES (UK) LTD,1839201,"1,537,876.84"
Home Office,UKBA - UK Border Agency,22/11/2010,"Public Order, Security, Safety.Domestic Escort Services",UKBA - UK Border Agency,G4S CARE & JUSTICE SERVICES (UK) LTD,1829766,"42,435.53"
Home Office,UKBA - UK Border Agency,22/11/2010,"Public Order, Security, Safety.Escorting services",UKBA - UK Border Agency,G4S CARE & JUSTICE SERVICES (UK) LTD,1839203,"53,265.43"
Home Office,UKBA - UK Border Agency,22/11/2010,"Public Order, Security, Safety.Escorting services",UKBA - UK Border Agency,G4S CARE & JUSTICE SERVICES (UK) LTD,1839194,"25,788.14"
Home Office,UKBA - UK Border Agency,22/11/2010,Storage & Mail Services.Messenger & Reception Services,UKBA - UK Border Agency,CSC COMPUTER SCIENCES CORPORATION,1850431,"2,102,402.20"
Home Office,UKBA - UK Border Agency,22/11/2010,Other Gov't Dept. -Request For Transfer,UKBA - UK Border Agency,TREASURY SOLICITOR CLIENT MONIES,1862086,"152,486.60"
Home Office,UKBA - UK Border Agency,23/11/2010,Asylum Provision.Asylum serv Sect4Vouchers,UKBA - UK Border Agency,SODEXHO PASS LTD,1857651,"187,158.38"
Home Office,UKBA - UK Border Agency,23/11/2010,Asylum Services.Public Expense Removals,UKBA - UK Border Agency,CARLSON WAGONLIT TRAVEL,1856880,"96,961.38"
Home Office,UKBA - UK Border Agency,23/11/2010,Asylum Services.Public Expense Removals,UKBA - UK Border Agency,CARLSON WAGONLIT TRAVEL,1856877,"76,950.41"
Home Office,UKBA - UK Border Agency,23/11/2010,IT & Telecommunications.IT & Telecommunications - PROG,UKBA - UK Border Agency,FUJITSU SERVICES LTD,1839324,"25,754.35"
Home Office,UKBA - UK Border Agency,23/11/2010,IT & Telecoms Components.Computer Equip (FA),UKBA - UK Border Agency,FUJITSU SERVICES (ALCEDO) LTD,1839262,"40,165.42"
Home Office,UKBA - UK Border Agency,23/11/2010,IT & Telecoms Components.Computer Equip (FA),UKBA - UK Border Agency,IBM DIRECT UNITED KINGDOM LTD,1855645,"40,032.24"
Home Office,UKBA - UK Border Agency,23/11/2010,IT & Telecoms Components.Computer Equip (FA),UKBA - UK Border Agency,FUJITSU SERVICES (ALCEDO) LTD,1839272,"39,183.95"
Home Office,UKBA - UK Border Agency,23/11/2010,"IT, Broadcasting & Telecomms.IT Running Cost - Maint - PROG",UKBA - UK Border Agency,FUJITSU SERVICES LTD,1839356,"33,307.17"
Home Office,UKBA - UK Border Agency,23/11/2010,Politics & Civic Affairs.Displaced pers.assistance,UKBA - UK Border Agency,SODEXHO PASS LTD,1857654,"971,847.78"
Home Office,UKBA - UK Border Agency,23/11/2010,Politics & Civic Affairs.Human aid & relief Sect 4,UKBA - UK Border Agency,LEEDS CITY COUNCIL,1857417,"733,206.56"
Home Office,UKBA - UK Border Agency,23/11/2010,Politics & Civic Affairs.Human aid & relief Sect 4,UKBA - UK Border Agency,UNITED PROPERTY MANAGEMENT,1857599,"706,993.87"
Home Office,UKBA - UK Border Agency,23/11/2010,Politics & Civic Affairs.Human aid & relief Sect 4,UKBA - UK Border Agency,ANGEL GROUP,1857502,"473,100.33"
Home Office,UKBA - UK Border Agency,23/11/2010,Politics & Civic Affairs.Human aid & relief Sect 4,UKBA - UK Border Agency,UNITED PROPERTY MANAGEMENT,1857590,"453,949.70"
Home Office,UKBA - UK Border Agency,23/11/2010,Politics & Civic Affairs.Human aid & relief Sect 4,UKBA - UK Border Agency,UNITED PROPERTY MANAGEMENT,1857596,"200,010.20"
Home Office,UKBA - UK Border Agency,23/11/2010,Politics & Civic Affairs.Human aid & relief Sect 4,UKBA - UK Border Agency,CLEARSPRINGS MANAGEMENT LTD,1856389,"155,557.30"
Home Office,UKBA - UK Border Agency,23/11/2010,Politics & Civic Affairs.Human aid & relief Sect 4,UKBA - UK Border Agency,ANGEL GROUP,1857505,"149,082.60"
Home Office,UKBA - UK Border Agency,23/11/2010,Politics & Civic Affairs.Human aid & relief Sect 4,UKBA - UK Border Agency,ANGEL GROUP,1857504,"117,587.93"
Home Office,UKBA - UK Border Agency,23/11/2010,Politics & Civic Affairs.Refugee repatriation.serv,UKBA - UK Border Agency,G4S JUSTICE SERVICES LTD - AIM,1840230,"193,328.91"
Home Office,UKBA - UK Border Agency,23/11/2010,Public Order.Jail or prison services,UKBA - UK Border Agency,BRITISH TRANSPORT POLICE,1856372,"25,908.75"
Home Office,UKBA - UK Border Agency,23/11/2010,Storage & Mail Services.Messenger & Reception Services,UKBA - UK Border Agency,TNT UK LIMITED,1856669,"28,595.51"
Home Office,UKBA - UK Border Agency,24/11/2010,Asylum Services.Public Expense Removals,UKBA - UK Border Agency,CARLSON WAGONLIT TRAVEL,1856882,"52,678.31"
Home Office,UKBA - UK Border Agency,24/11/2010,IT & Telecoms Components.Computer Equip (FA),UKBA - UK Border Agency,IBM DIRECT UNITED KINGDOM LTD,1854631,"866,675.30"
Home Office,UKBA - UK Border Agency,24/11/2010,IT & Telecoms Components.Computer Equip (FA),UKBA - UK Border Agency,FUJITSU SERVICES LTD,1839333,"139,798.76"
Home Office,UKBA - UK Border Agency,24/11/2010,Politics & Civic Affairs.Human aid & relief Sect 4,UKBA - UK Border Agency,NEWCASTLE CITY COUNCIL,1858022,"547,365.14"
Home Office,UKBA - UK Border Agency,24/11/2010,Politics & Civic Affairs.Human aid & relief Sect 4,UKBA - UK Border Agency,HAPPY HOMES UK LTD,1855477,"469,172.09"
Home Office,UKBA - UK Border Agency,24/11/2010,Politics & Civic Affairs.Human aid & relief Sect 4,UKBA - UK Border Agency,METROPOLITAN SUPPORT TRUST (EAST MIDLANDS),1857934,"295,192.34"
Home Office,UKBA - UK Border Agency,24/11/2010,Politics & Civic Affairs.REFUGEE PROG. SECT 95,UKBA - UK Border Agency,MANCHESTER CITY COUNCIL,1857978,"583,187.28"
Home Office,UKBA - UK Border Agency,24/11/2010,Politics & Civic Affairs.REFUGEE PROG. SECT 95,UKBA - UK Border Agency,CITY AND COUNTY OF SWANSEA,1858702,"67,583.25"
Home Office,UKBA - UK Border Agency,24/11/2010,Professional & Admin Services.Visa Processing Services,UKBA - UK Border Agency,VF WORLDWIDE HOLDINGS LTD,1857523,"3,724,359.08"
Home Office,UKBA - UK Border Agency,24/11/2010,"Public Order, Security Service.Detention Services Contracts",UKBA - UK Border Agency,SERCO  LTD,1845378,"2,143,947.19"
Home Office,UKBA - UK Border Agency,24/11/2010,"Public Order, Security Service.Detention Services Contracts",UKBA - UK Border Agency,SERCO  LTD,1845384,"897,746.31"
Home Office,UKBA - UK Border Agency,24/11/2010,"Public Order, Security Service.Detention Services Contracts",UKBA - UK Border Agency,SERCO  LTD,1845333,"161,301.30"
Home Office,UKBA - UK Border Agency,24/11/2010,Grant,UKBA - UK Border Agency,TAMESIDE MBC (G),1860101,"26,599.05"
Home Office,UKBA - UK Border Agency,24/11/2010,Grant,UKBA - UK Border Agency,LONDON BOROUGH OF SUTTON 1 (G),1860096,"40,213.50"
Home Office,UKBA - UK Border Agency,24/11/2010,Grant,UKBA - UK Border Agency,MILTON KEYNES COUNCIL 1 (G),1860092,"390,638.07"
Home Office,UKBA - UK Border Agency,24/11/2010,Grant,UKBA - UK Border Agency,LONDON BOROUGH HAVERING (G),1860089,"71,366.85"
Home Office,UKBA - UK Border Agency,24/11/2010,Grant,UKBA - UK Border Agency,CALDERDALE MBC (G),1860080,"40,087.71"
Home Office,UKBA - UK Border Agency,24/11/2010,Grant,UKBA - UK Border Agency,LIVERPOOL CITY COUNCIL 1 (G),1860032,"402,000.00"
Home Office,UKBA - UK Border Agency,24/11/2010,Grant,UKBA - UK Border Agency,NEWCASTLE CITY COUNCIL (G),1857479,"61,200.00"
Home Office,UKBA - UK Border Agency,24/11/2010,Grant,UKBA - UK Border Agency,MANCHESTER CITY COUNCIL 2 (G),1857475,"546,000.00"
Home Office,UKBA - UK Border Agency,24/11/2010,Grant,UKBA - UK Border Agency,BIRMINGHAM CITY COUNCIL (G),1857470,"217,650.00"
Home Office,UKBA - UK Border Agency,24/11/2010,Grant,UKBA - UK Border Agency,TELFORD & WREKIN COUNCIL (G),1857460,"32,587.74"
Home Office,UKBA - UK Border Agency,24/11/2010,Grant,UKBA - UK Border Agency,BOROUGH OF POOLE 1 (G),1857458,"124,854.63"
Home Office,UKBA - UK Border Agency,24/11/2010,Grant,UKBA - UK Border Agency,NORTH TYNESIDE COUNCIL 1 (G),1857455,"48,963.84"
Home Office,UKBA - UK Border Agency,24/11/2010,Grant,UKBA - UK Border Agency,KIRKLEES METROPOLITAN COUNCIL 2 (G),1857450,"52,263.69"
Home Office,UKBA - UK Border Agency,24/11/2010,Grant,UKBA - UK Border Agency,KINGSTON UPON HULL CITY COUNCIL 2 (G),1857446,"32,101.74"
Home Office,UKBA - UK Border Agency,25/11/2010,Asylum Services.Public Expense Removals,UKBA - UK Border Agency,CARLSON WAGONLIT TRAVEL,1858806,"260,760.00"
Home Office,UKBA - UK Border Agency,25/11/2010,"Public Order, Security Service.Detention Services Contracts",UKBA - UK Border Agency,THE GEO GROUP UK LTD,1859073,"91,702.88"
Home Office,UKBA - UK Border Agency,25/11/2010,Grant,UKBA - UK Border Agency,REFUGEE ACTION (G),1853653,"367,251.45"
Home Office,UKBA - UK Border Agency,26/11/2010,Asylum Services.Public Expense Removals,UKBA - UK Border Agency,CARLSON WAGONLIT TRAVEL,1860886,"87,545.68"
Home Office,UKBA - UK Border Agency,26/11/2010,Defense & Law Enforcement.Police Liaison Officers,UKBA - UK Border Agency,THE METROPOLITAN POLICE,1860226,"288,179.00"
Home Office,UKBA - UK Border Agency,26/11/2010,IT & Telecoms Components.Standard Software (FA),UKBA - UK Border Agency,IBM DIRECT UNITED KINGDOM LTD,1848217,"4,421,118.45"
Home Office,UKBA - UK Border Agency,26/11/2010,IT & Telecoms Components.Standard Software (FA),UKBA - UK Border Agency,IBM DIRECT UNITED KINGDOM LTD,1848224,"3,808,552.18"
Home Office,UKBA - UK Border Agency,26/11/2010,IT & Telecoms Components.Standard Software (FA),UKBA - UK Border Agency,IBM DIRECT UNITED KINGDOM LTD,1848220,"3,316,544.43"
Home Office,UKBA - UK Border Agency,26/11/2010,Management & Admin Serv.Corp & Bus Org Structure- PROG,UKBA - UK Border Agency,SERCO  LTD,1841447,"80,928.13"
Home Office,UKBA - UK Border Agency,26/11/2010,Management & Admin Serv.Corp & Bus Org Structure- PROG,UKBA - UK Border Agency,SERCO  LTD,1841438,"35,250.00"
Home Office,UKBA - UK Border Agency,26/11/2010,Politics & Civic Affairs.Human aid & relief Sect 4,UKBA - UK Border Agency,CARDIFF COUNTY COUNCIL,1860179,"339,530.77"
Home Office,UKBA - UK Border Agency,26/11/2010,"Public Order, Security Service.Detention Services Contracts",UKBA - UK Border Agency,G4S CARE & JUSTICE SERVICES (UK) LTD,1842349,"1,238,184.90"
Home Office,UKBA - UK Border Agency,26/11/2010,"Public Order, Security Service.Detention Services Contracts",UKBA - UK Border Agency,G4S CARE & JUSTICE SERVICES (UK) LTD,1842368,"1,004,263.20"
Home Office,UKBA - UK Border Agency,26/11/2010,"Public Order, Security Service.Detention Services Contracts",UKBA - UK Border Agency,G4S CARE & JUSTICE SERVICES (UK) LTD,1842495,"521,361.69"
Home Office,UKBA - UK Border Agency,26/11/2010,"Public Order, Security, Safety.Escorting services",UKBA - UK Border Agency,G4S CARE & JUSTICE SERVICES (UK) LTD,1841442,"610,500.89"
Home Office,UKBA - UK Border Agency,26/11/2010,"Science, Technical & Research.Computer services - PROG",UKBA - UK Border Agency,ATOS ORIGIN IT SERVICES UK LIMITED- MEDICAL SERVICES,1859987,"137,557.25"
Home Office,UKBA - UK Border Agency,26/11/2010,"Science, Technical & Research.Computer services - PROG",UKBA - UK Border Agency,ATOS ORIGIN IT SERVICES UK LIMITED- MEDICAL SERVICES,1859970,"117,906.55"
Home Office,UKBA - UK Border Agency,26/11/2010,"Transport, Storage & Mail Serv.Vehicle Hire Rent & Lease-PROG",UKBA - UK Border Agency,TNT UK LIMITED,1860850,"297,225.90"
Home Office,UKBA - UK Border Agency,26/11/2010,Other Gov't Dept. -Request For Transfer,UKBA - UK Border Agency,TREASURY SOLICITOR CLIENT MONIES,1862910,"127,796.17"
Home Office,UKBA - UK Border Agency,26/11/2010,Grant,UKBA - UK Border Agency,MANNINGHAM HOUSING ASSOCIATION (G),1860362,"60,364.00"
Home Office,UKBA - UK Border Agency,26/11/2010,Grant,UKBA - UK Border Agency,MANNINGHAM HOUSING ASSOCIATION (G),1860360,"60,226.00"
Home Office,UKBA - UK Border Agency,26/11/2010,Grant,UKBA - UK Border Agency,WORCESTERSHIRE COUNTY COUNCIL 1 (G),1860020,"562,209.21"
Home Office,UKBA - UK Border Agency,26/11/2010,Grant,UKBA - UK Border Agency,LONDON BOROUGH OF HACKNEY 1,1859971,"57,394.14"
Home Office,UKBA - UK Border Agency,26/11/2010,Grant,UKBA - UK Border Agency,SHEFFIELD PRIMARY CARE TRUST (G),1860356,"29,506.39"
Home Office,UKBA - UK Border Agency,29/11/2010,Politics & Civic Affairs.Human aid & relief Sect 4,UKBA - UK Border Agency,CLEARSPRINGS MANAGEMENT LTD,1856294,"848,465.88"
Home Office,UKBA - UK Border Agency,29/11/2010,"Public Order, Security Service.Detention Services Contracts",UKBA - UK Border Agency,G4S CARE & JUSTICE SERVICES (UK) LTD,1842357,"464,849.98"
Home Office,UKBA - UK Border Agency,29/11/2010,"Public Order, Security Service.Detention Services Contracts",UKBA - UK Border Agency,G4S CARE & JUSTICE SERVICES (UK) LTD,1843168,"126,740.37"
Home Office,UKBA - UK Border Agency,29/11/2010,"Science, Technical & Research.Computer services - PROG",UKBA - UK Border Agency,SPECIALIST COMPUTER CENTRES PLC,1839213,"25,027.52"
Home Office,UKBA - UK Border Agency,29/11/2010,Storage & Mail Services.Messenger & Reception Services,UKBA - UK Border Agency,SIEMENS BUSINESS SERVICES LTD,1842420,"240,963.62"
Home Office,UKBA - UK Border Agency,29/11/2010,Grant,UKBA - UK Border Agency,MANCHESTER CITY COUNCIL 2 (G),1853626,"244,065.70"
Home Office,UKBA - UK Border Agency,30/11/2010,Asylum Provision.Asylum accom Sect 98,UKBA - UK Border Agency,SERCO  LTD,1845371,"90,874.38"
Home Office,UKBA - UK Border Agency,30/11/2010,Asylum Provision.Asylum Cont Out Serv,UKBA - UK Border Agency,SCOTTISH REFUGEE COUNCIL ( SCOTLAND ),1863072,"32,847.00"
Home Office,UKBA - UK Border Agency,30/11/2010,Asylum Provision.Asylum Cont Out Serv,UKBA - UK Border Agency,NORTH OF ENGLAND REFUGEE SERVICES LTD,1862338,"28,628.00"
Home Office,UKBA - UK Border Agency,30/11/2010,Asylum Services.Public Expense Removals,UKBA - UK Border Agency,CARLSON WAGONLIT TRAVEL,1860889,"159,915.95"
Home Office,UKBA - UK Border Agency,30/11/2010,Asylum Services.Public Expense Removals,UKBA - UK Border Agency,CARLSON WAGONLIT TRAVEL,1862180,"75,657.92"
Home Office,UKBA - UK Border Agency,30/11/2010,Law Enforcement & safety Equip.Security & Control Equip- PROG,UKBA - UK Border Agency,AMERICAN SCIENCE & ENGINEERING INC,1862236,"44,425.58"
Home Office,UKBA - UK Border Agency,30/11/2010,Law Enforcement & safety Equip.Surveillance & Detection-PROG,UKBA - UK Border Agency,RAPISCAN SYSTEMS LTD,1863106,"51,894.59"
Home Office,UKBA - UK Border Agency,30/11/2010,Management & Admin Serv.Overseas Posting Costs-PROG,UKBA - UK Border Agency,PARIS APARTMENT SERVICES,1860184,"59,704.00"
Home Office,UKBA - UK Border Agency,30/11/2010,Politics & Civic Affairs.Human aid & relief Sect 4,UKBA - UK Border Agency,NORTHERN IRELAND HOUSING EXEC,1862923,"144,989.65"
Home Office,UKBA - UK Border Agency,30/11/2010,Professional & Admin Services.Residential Rental - PROG,UKBA - UK Border Agency,ARORA MANAGEMENT SERVICES ON BEHALF OF AP24 LTD,1861698,"318,615.94"
